{"text_format":"1","workbook":"xlsx","n_sheets":5,"sheets":["Base de données fournisseurs","Sourcing mis en forme","Objectif Report Auto Sourcing","Feuil1","Feuil2"],"not_rendered":{"charts":0,"images":4,"macros":1,"external_links":0,"defined_names":4,"comments":0,"pivot_tables":0},"unopened":[],"bounds":{"document_bytes":16777216,"sheet_cells":100000,"rows_first":2000,"rows_last":500,"rows_between":2000,"halvings":0,"cell_chars":16384,"cell_head_chars":4096},"cells_cut":0,"cells_raw":0,"read":"whole","date_system":"1900"}

{"sheet":"Base de données fournisseurs","index":0,"n_rows":439,"n_cols":15,"rows_kept":439,"cut":false,"hidden":false,"merged":[[5,12,5,13],[2,4,2,5],[1,4,1,5],[4,0,4,3]]}
[]
[null,null,null,null,"Fournisseurs archive Sourcing",null,null,null,null,null,null,null,null,"  "]
[null,null,null,null,"Fournisseurs RAN"]
[]
[{"$f":"\"        \"&\"BASE DE DONNÉES FOURNISSEURS:\"&\" (\"& (COUNTA(B8:B1048576))&\")\"","v":"        BASE DE DONNÉES FOURNISSEURS: (432)"}]
[]
["Séléction","Raison Social","Contact","Adresse","Mail","N° de Téléphone","Local / National","RCS","Code Fournisseur","NAF","Activité","Capital Social","Date de Création","Forme Juridique","Codes postaux"]
[null,"2H ENERGY",null,"ZI DE BABEUF PARC ACTIVITE HAUTES FALAISES 76400 SAINT-LEONARD - FRANCE",null,null,null,"353 926 447","FA01J","2712Z - Fabrication de matériel de distribution et de commande électrique",null,2000000,"1990-02-19","5710 - Société par actions simplifiée (SAS)",{"$f":"RecupCP(D8)","v":"76400"}]
[null,"ACTI VERT"," Mickaël ALEXANDRE","4 rue des Ondelles \nZAC les Ondelles 76240 Belbeuf","m.alexandre@activert.com",null,null,"382 769 255","Non Référencé","8130Z","Services d'aménagement paysager",150000,"1991-07-01","SAS","76240"]
[null,"ABSCISSE GEOMETRE EXPERT",null,"11 PL DE L HOTEL DIEU 11-13 60000 BEAUVAIS",null,"03 44 48 05 89","LOCAL","532 862 687",null,"7112A ","Activité des géomètres",10000,"2011-07-01","SAS","60000"]
[null,"AGILEC",null,"9002 rue Octave Fauquet| ZA du buisson| 76350 Oissel",null,"02 35 68 54 82",null,"453 420 374",null,"4321A","Travaux d'installation électrique dans tous locaux",7500,"2004-04-02","SARL","76350"]
[null,"ACCEO",null,"ACCEO Campus\n65, rue Jean Jacques ROUSSEAU 92150 Suresnes\n ","mustapha.oudni@acceo.eu","01 78 14 47 74","national","500 286 638","FA4NG","7112B","Ingenierie, études techniques","1 965k€","2007-10-04","SAS","92150"]
[null,"AM ATELIER",null,"221 Impasse du Boulay, 76690 Sierville","Antoine.mazy@am-atelier.fr","0672.31.91.89",null,"",null,null,null,null,null,null,"76690"]
[null,"AMAZON EU SARL",null,"5 RUE PLAETIS L 2338 LUXEMBOURG - LUXEMBOURG",null,null,null,"","FA6JP","4791A - Vente à distance sur catalogue général",null,37500,"2006-03-01","3120 - Société étrangère immatriculée au RCS",""]
[null,"AMBIANCE BUREAU",null,"9 RUE DES NONETTES 77500 CHELLES",null,null,null,"790 905 343",null,"4665Z","Commerce de gros (commerce interentreprises) de mobilier de bureau",null,null,"SARL","77500"]
[null,"AMT TRANSFERT",null,"7 RUE DE SAINTE HELENE | 75013 PARIS",null,null,null,"390 230 878","prospection","4942Z","Service de déménagement",null,null,"SAS","75013"]
[null,"ANTALVERT","Valerie BRETON","8 route de Rouen 76270 QUIEVRECOURT","info@antalvert.com",null,null,"17 180 043","Non Référencé","8130Z","Services d'aménagement paysager",100000,"1971-01-01","SAS","76270"]
[null,"APAVE",null,"Marie BARRE| 191 rue de Vaugirard | 75015 PARIS","marie.barre@apave.com","02 35 52 61 64","national","527 573 141\n",null,"7120B","Analyses, essais et inspections techniques",184688,"2010-10-12","SA","75015"]
[null,"ASPIROTECHNIQUE",null,"28 RUE JEAN JAURES 92800 PUTEAUX ",null,null,null,"652 011 404",null,"8121Z","nettoyage courant des bâtiments",153000,null,"SA","92800"]
[null,"ATALIAN PROPRETE",null,"110 rue de l'Ourcq 75019 PARIS",null,null,null,"321 253 965",null,"8121Z","Nettoyage courant de bâtiments",18653720,null,"SAS","75019"]
[null,"ATELIER MICHEL TAILLIS",null,"Zone artisanale| 76890 TOTES",null,"02 35 32 69 54",null,"385 103 361 ",null,"3240ZZ","Fabrication de jeux et jouets",30000,"1992-04-29","SASU","76890"]
[null,"ATMOSPH'AIR SERVICES",null,"M.FISCHEL| 62 boulebard Davout| 75020 PARIS","jp.fischel@groupe-mongreville.fr","01 40 21 84 52","Local","828 498 931","FA65F","3312Z","Réparation de machines et équipements mécaniques","820k€","2017-03-21","SAS","75020"]
[null,"AUX DEMENAGEURS DE NORMANDIE",null,"39 RUE SAINT SEVER | 76100 ROUEN",null,null,null,"453 737 710","prospection","4942Z","Service de déménagement",null,null,"SARL","76100"]
[null,"BASILLE FLEURS",null,"40 rue de la mare du Parc| 76000","\ncontact@basillefleurs.fr","02 35 72 04 78",null,"450 401 971 ",null,"4776Z"," Commerce de détail de fleurs, plantes, graines, engrais, animaux de compagnie et aliments pour ces animaux en magasin spécialisé",7500,"2003-11-13","SARL","76000"]
[null,"Bene","Jean-Claude VERRAEST\nSales Manager Regions\n",null,"\nMailto : jean-claude.verraest@bene.com  \n",null,null,null,null,null,null,null,null,null,""]
[null,"BGI Cartes"," +33 02 99 00 89 97","BG Ingénierie 4 rue Paul Langevin 35220 Châteaubourg  France",null,null,null,null,null,null,null,78400,null,"SARL","35220"]
[null,"BLACHERES",null,"t.bouland@blachere-illumination.com",null,"06 70 20 70 15",null,null,null,null,null,null,null,null,""]
[null,"ALISE ENVIRONNEMENT",null,"102 rue du Bois Tison| 76160 Saint-Jacques-sur-Darnétal| ",null,"02.35.61.30.19","local","424 893 774",null,"7112B ","Ingénierie, études techniques",100000,"1999-11-03","SARL","76160"]
[null,"ALIVE TECHNOLOGY",null,"186-191 186 rue Des Cinq Voies 59200 TOURCOING",null,null,null,"465 501 161",null,"4643Z","Commerce de gros (commerce interentreprises) d'appareils électroménagers",157500,"1965-01-01","SAS, société par actions simplifiée","59200"]
[null,"BOUYGUES ENERGIES ET SERVICES",null,"19 rue Stephensin| 78180 MO?TIGNY LE BRETONNEUX",null,"01 80 61 50 000","National","775 664 873 "," - ","4321A",null,"50 574 k€","1955-07-19","SASU","78180"]
[null,"BRUNO DOLIS",null,"ZA Lionne Chazeau| 302 rue Gay Lussac| 33127 St Jean d'ILLAC","contact@bruno-dolis.com","05 57 26 99 67",null,null,null,null,null,null,null,null,"33127"]
[null,"BURODOC",null,"2, RUE RICHARD WADDINGTON 76160 DARNÉTAL",null,null,null,"398 805 978",null,"4665Z","Commerce de gros (commerce interentreprises) de mobilier de bureau\n",15244.9,"1994-12-13","SARL","76160"]
[null,"BURO'DOC",null,"2 RUE RICHARD WADDINGTON 76160 DARNETAL",null,null,null,"398 805 978",null,"4665Z","Commerce de gros (commerce interentreprises) de mobilier de bureau",15245,null,"SARL","76160"]
[null,"BURONOMIC",null,"RTE CHAMPLAIN BP 60100 14603 HONFLEUR CEDEX",null,null,null,"321 407 173",null,"4665Z","Commerce de gros (commerce interentreprises) de mobilier de bureau",6100000,null,"SAS","60100"]
[null,"Burosys","Christophe RITTER    \nBurosys\n1095, rte de Paris\n76520 FRANQUEVILLE ST PIERRE\nTél.    02 32 86 86 81  \nPort.  06 03 62 88 73\nFax   02 32 86 05 55\ncritter@burosys.fr\n","1095 ROUTE DE PARIS 76520 FRANQUEVILLE SAINT\nPIERRE",null,null,null,"337 988 505",null,"4665Z","4665Z - Commerce de gros (commerce\ninterentreprises) de mobilier de bureau",250000,null,"SASU","76520"]
[null,"CARAY",null,"12 AV DE L ILE DE FRANCE  95310 SAINT OUEN L'AUMONE",null,null,null,"552 069 825",null,"4665Z","Intermédiaires du commerce en meubles, articles de ménage et quincaillerie",1400000,null,"SAS","95310"]
[null,"CIDER",null,"15 SQ EDOUARD VII 75009 PARIS",null,null,null,"788 797 108",null,"4615Z","Intermédiaires du commerce en meubles, articles de ménage et quincaillerie",710000,null,"SAS","75009"]
[null,"CLIMAGINE",null,"M.TIXIER| 26 rue du docteur Heulin| 75017 PARIS","climagine@wanadoo.fr","06 07 40 74 40","Local","353 982 804","FA10B","4322B","Travaux d'installation d'équipements thermiques et de climatisation","9k€","1990-03-20","SARL","75017"]
[null,"CLIMATICIENS DE France",null,"M. SEMBENINI\n32 rue arago 92800 PUTEAUX","direction@climaticiens.net","01 71 13 00 70\n06 09 06 90 00","National","445 392 665","FA10D","4322B"," travaux d'installation d'équipements thermiques et de climatisation","319K€","2009-06-05","SAS","92800"]
[null,"ANTE",33235612754,"5 BD INDUSTRIEL CS 50094 76300 SOTTEVILLE-LES-ROUEN\n",null,null,null,"51 371 380",null,null,null,16000,null,"SARL","50094"]
[null,"COREP ROUEN",null,"Université de Rouen 11, rue Lavoisier 76130 - Mont-St-Aignan","rouen@corep.fr","02 32 10 05 74","LOCAL","328 730 361",null,"8219Z ","Photocopie, préparation de documents et autres activités spécialisées de soutien de bureau","37k€","1983-11-15","SASU","76130"]
[null,"CRAM",null,"203 rue Demidoff| 76600 LE HAVRE| Fabien FLOURY","ffloury@cram.fr","02 35 24 25 26","National","788 212 660 ","FA1SX","3530Z",null,"1 428k€","1960-06-10","SAS","76600"]
[null,"CREAVERT","Eliott JEANNINGROS","4000 route de Neufchatel, Le nouveau monde 76230 Quincampoix","bet@creavert.fr",null,null,"329 805 279","FA1R0","8130Z","Services d'aménagement paysager",40000,"1984-06-19","SA","76230"]
[null,"DALKIA",null,"37 av maréchal de lattre de tassigny BP 38| 59350 ST ANDRE LES LILLES","bruno.bellamy@dalkia.fr\nsandy.elachaq@dalkia.fr","03 20 63 42 42\n 06 01 17 12 85","National","456 500 537 ","FA1SX","3530Z",null,"220 047k€","1956-02-06","SA","59350"]
[null,"AQUITEN",null,"23 QUAI DE PALUDATE 33800 BORDEAUX - FRANCE",null,null,null,"752 974 691","/","7112B - Ingénierie, études techniques",null,12000,"2012-07-07","5499 - Société à responsabilité limitée (SARL)","33800"]
[null,"DECA PROPRETE",null,"3 rue Du Chateau De Bel Air 44470 CARQUEFOU ",null,null,null,"408 949 675",null,"8121Z","nettoyage courant des bâtiments",145000,null,"SAS","44470"]
[null,"ARENGI",null,"Lionel D'Harcourt| 15 rue la Fayette | 75009 PARIS",null,null,"National","519 564 645",null,"7022Z","Conseil pour les affaires et autres conseils de getsion","308k€","2010-01-21","SAS","75009"]
[null,"DEMECO TRANSFERT\nNASSE ET MARCHAND TRANSFERT",null,"5 RUE DE LA BATARDIERE | 45140 SAINT JEAN DE LA RUELLE",null,null,null,"410 307 615","prospection","4942Z","Service de déménagement",null,null,"SARL","45140"]
[null,"DEMEPOOL",null,"5 RUE GALLIENI | 92230 GENNEVILLIERS",null,null,null,"303 972 061","prospection","4942Z","Service de déménagement",null,null,"SA","92230"]
[null,"ARTELIA INDUSTRIE",null,"171 BD AMIRAL MOUCHEZ 76600 LE HAVRE - FRANCE",null,null,null,"306 100 421","/","7112B - Ingénierie, études techniques",null,430000,"1976-01-01","5710 - Société par actions simplifiée (SAS)","76600"]
[null,"DEMVAL",null,"57 AVENUE DE BRETAGNE| 76100 ROUEN ",null,null,null,"507 982 114","A1UT","4941A","Transport routier de fret interurbain",null,null,"SARL","76100"]
[null,"DENIOS",null,"HAM DU VAL 27550 NASSANDRES SUR RISLE",null,null,null,"393 665 179","non référencé","2511Z","Fabrication de structures métalliques et de parties de structures",500000,null,"SARL","27550"]
[null,"DERICHEBOURG PROPRETE",null,"6 ALLEE DES COQUELICOTS 94470 BOISSY SAINT LEGER ",null,null,null,"702 021 114",null,"8121Z","nettoyage courant des bâtiments",20000000,null,"SAS","94470"]
[null,"DHL INTERNATIONAL EXPRESS","Nacera LAIDAOUI\n","Bat A  Le Mermoz| 53 Av Jean Jaures| 93350 LE BOURGET","nacera.laidaoui@dhl.com",null,"National","494 956 774",null,"4941B","Transports routiers de fret de proximité","19 347k€","2007-03-21","SAS","93350"]
[null,"Dionet",null,"84 RUE MAURICE BEJART 34080 MONTPELLIER - FRANCE","info@dionet.fr",null,"National","827 763 004",null,"8121Z",null,5000,"2016-09-23","SARL","34080"]
[null,"EDF",null,"22 Avenue de Wagram| 75008 PARIS","david.hamelin@edf.fr","06 69 67 92 43","National","552 081 317",null,"3511Z","Production d'électricité","1 505 133k€","1955-06-17","SA","75008"]
[null,"EIFFAGE TRAVAUX","M.BERQUET\nzac du clos de la tête rue, jacques prevert, 14730 GIBERVILLE\n","","philippe.berquet@eiffage.com","02 31 52 37 00\n06 17 90 07 99","National","398 461 582","FA1ZM","4321A","Travaux d'installation électrique dans tous locaux ","92 616K€","1931-05-07","SASU",""]
[null,"ELIOR SERVICES",null,"9-11 Allée de l'Arche 92400 COURBEVOIE",null,null,null,"303 409 593",null,"8121Z","nettoyage courant des bâtiments",41073970,null,"SAS","92400"]
[null,"ENGIE",null,"1 Place Samuel de Champlain| 92400 COURBEVOIE| Parc d'activités de la Bretèque 94 rue Louis Blériot| 76230 Bois Guillaume","thomas.poupardin@engie.com","06 18 88 29 28","National","542 107 651",null,"3523Z","Commerce de combustibles gazeux par conduites","2 435 285k€","1954-12-24","SA","92400"]
[null,"ENGIE",null,"M.BARRE\n2 bis rue d'alembert BP281\n76140 PETIT QUEVILLY\n+\nSiège  : 1 place Samule de champlain 92400 COURBEVOIE","nicolas.barre@engie.com","01 44 22 00 00","National","542 107 651","FA10W","3523Z","Commerce de combustible  gazeux par conduites","2 435 285k€","1954-12-24","SA","92400"]
[null,"ENGIE COFELY","2 rue d'Alembert\n76140 LE PETIT QUEVILLY\nJean Paul LEGRAND","","jean-paul.legrand@engie.com","06 63 22 03 10","Local","552 046 955",null,"3530Z","Production et distribution de vapeur et d'air conditionné",null,"2010-04-27","SA",""]
[null,"AUZOU JOSE GILBERT DANIEL",null,"2020 RTE DE BECQUIGNY 76570 LIMESY - FRANCE",null,null,null,"382 197 374","/","4779Z - Commerce de détail de biens d'occasion en magasin",null,"NC","1991-01-01","1200 - Commerçant","76570"]
[null,"AVENEL SAS","\nAgence de proximité : \nAVENEL SAS\n1 Rue Lucien Fromage, \n76160 DARNETAL\n02 35 08 53 53\n\n\nContact pour l'AO:\nJonathan DROUIN\nj.drouin@avenel.fr","1 RUE LUCIEN FROMAGE 76160 DARNETAL - FRANCE",null,null,null,"670 500 560","FA6ZV","4321A - Travaux d'installation électrique dans tous locaux",null,2000000,"1988-04-14","5710 - Société par actions simplifiée (SAS)","76160"]
[null,"AVLS",null,"17B res Des Gemeaux 94260 FRESNES France",null,null,null,"377 934 278",null,"4743Z","Commerce de détail de matériels audio et vidéo en magasin spécialisé",50000,"1990-05-02","Société à responsabilité limitée (sans autre indication)","94260"]
[null,"ENGIE INEO ",null,"1 Place Samuel De Champlain faubourg de l'arche| 92930 Courbevoie Cedex",null,"05 61 17 15 00",null,"552 108 797",null,"4321A","Travaux d'installation électrique dans tous locaux",106637716,null,"SA","92930"]
[null,"ENI",null,"24 rue jacques ibert| 92300 LEVALLOIS PERRET| Cédric DRABOWICZ","mathieu.dehaut@eni.com","06 66 73 50 67","National","451 225 692","FA5E6","3523Z","Commerce de combustibles gazeux par conduites","29 937k€","2003-12-16","SA","92300"]
[null,"ENTERPRISE GEORGES LANFRY",null,"18 IMP BARBET 76250 DEVILLE-LES-ROUEN - France",null,null,"LOCAL","348 922 741",null,4391,"travaux de charpente",1440000,"1988-07-12","SAS","76250"]
[null,"ENTREPRISE FOUCHARD","Avenue de Verdun\n50200 COUTANCES\nrue de la Grande Epine\n78600 St ETIENNE DU ROUVRAY\nMichael GARNIER","","fouchard@fouchard.fr","02 33 76 61 61","Local","377 730 874",null,"4322B","Travaux d'installation d'équipements thermiques et de climatisation","700k€","1990-04-25","SAS",""]
[null,"BGI Cartes","Typhaine VANNIER\n\nvannier.typhaine@bginge.com\n\n06 16 05 08 83","4 RUE PAUL LANGEVIN 35220 CHATEAUBOURG",null,null,null,"422 808 907",null,null,"Lot 1 - Badges",null,null,"SARL","35220"]
[null,"ENVIRONNEMENT SERVICE","Sébastien LECHEVALLIER","2600 route de Neufchatel 76230 QUINCAMPOIX","environnement-service@orange.fr",null,null,"352 563 241","Non Référencé","8130Z","Services d'aménagement paysager",150000,"1989-11-20","SARL","76230"]
[null,"BIELEC ECLA INGENIERIE",null,"10 rue Andreï Sakharov| Parc d’activités technologiques de la Vatine| 76130 Mont-Saint-Aignan","bielec@bielec.fr","02 35 98 16 18","local","500 450 689",null,"7112B","Ingénierie, études techniques",10000,"2007-10-03","SARL","76130"]
[null,"EOS France (CONTENTIA)","Nicolas SCHNEIDER \nThomas COLLINEAU ","74 RUE DE LA FEDERATION 75015 PARIS 15"," nicolas.schneider@eos-france.com\nThomas.COLLINEAU@eos-france.com ",null,null,"488 825 217",null,"8291Z","Activités des agences de recouvrement de factures et des sociétés d'information financière sur la clientèle",18300000,null,"SAS",{"$f":"RecupCP(D72)","v":"75015"}]
[null,"EPOXIA",null,"6 AV CHARLES DE GAULLE 78150 LE CHESNAY-ROCQUENCOURT",null,null,null,"495 005 928",null,"4665Z","Commerce de gros (commerce interentreprises) de mobilier de bureau",37774,null,"SARL","78150"]
[null,"ESSI",null,"12 rue Courat 75020 PARIS 20 France",null,null,null,"327 435 137",null,"7010Z","Activité des sièges sociaux",503500,null,"SAS","75020"]
[null,"ETS GUY  CHALLANCAIN",null,"99 avenue Michelet 93400 SAINT OUEN France",null,null,null,"572 053 833",null,"8121Z","nettoyage courant des bâtiments",1075000,null,"SAS","93400"]
[null,"EUCLYD EUROTOP",null,"33 BD DE L YSER 76000 ROUEN\nM.QUINEL","ao@euclyd-eurotop.fr","02 35 71 42 32","LOCAL","432 811 651",null,"7112A ","Activité des géomètres",763300,"2000-08-01","SELARL","76000"]
[null,"EUROFLASH",null,"12 RUE VERGNIAUD\n 92300 LEVALLOIS PERRET ",null,null,null,"330 065 889","A12Q","4942Z","Service de déménagement",null,null,"SAS","92300"]
[null,"EURONERGY",null,"M.COURGEAU\n45 boulevard des remparts 83300 DRAGUIGNAN","euronergy@wanadoo.fr","04 94 67 74 23","Local","443 402 920","FA12U","4322B","Travaux d'installation d'équipements thermiques et de climatisation","50k€","2002-02-19","SARL","83300"]
[null,"BUREAU VERITAS CONSTRUCTION",null,"Laurent MERLIERE","laurent.merliere@bureauveritas.com","06 85 82 27 76","national","790 182 786",null,"7120B","Analyses, essais et inspections techniques",15800,"2012-12-24","SASU",""]
[null,"BUREAU VERITAS EXPLOITATION",null,"8 CRS DU TRIANGLE 92800 PUTEAUX - FRANCE",null,null,null,"790 184 675","FA6MH","7120B - Analyses, essais et inspections techniques",null,36315050,"2012-12-20","5710 - Société par actions simplifiée (SAS)","92800"]
[null,"FERET HEBBERT",null,"110 AV DU MONT RIBOUDET 110-112 76000 ROUEN\nAlexis HEBBERT","contact@feret-hebbert.fr","02 78 77 04 04","LOCAL","807 660 733",null,"7112A ","Activité des géomètres",10000,"2014-10-23","SELARL","76000"]
[null,"Burod'oc","Benjamin SEMARD\n","2 RUE RICHARD WADDINGTON 76160 DARNETAL","\nbenjamin.semard@burodoc.com",null,null,"398 805 978",null,null,"4665Z - Commerce de gros (commerce\ninterentreprises) de mobilier de bureau",15245,null,"SARL","76160"]
[null,"FERMATIC",null,"6 rue Verdun| 76240 BIHOREL","d.neveu@fermatic.fr","06 25 89 69 02","Régional","792 193 476","FA13W","4329b","autres travaux d'installation","200 k€","2013-04-02","SASU","76240"]
[null,"FONTEYRAUD",null,"M.FONTEYRAUD| 17 avenue du pont| 33410 CADILLAC","sarl.fonteyraud@wanadoo.fr","05 56 62 66 09","Local","314 831 793","FA15R","4322A","travaux d'installation d'eau et de gaz en tous locaux","7k€","1979-03-08","SARL","33410"]
[null,"FORMA DESIGN",null,"1 MAIL FRANCOIS MITERRAND 35000 RENNES",null,null,null,"379 275 977",null,"4759A","Commerce de détail de meubles",25000,null,"SAS","35000"]
[null,"France Hygiène Ventilation","Fabien Thomas","17 RUE REMBRANDT BUGATTI 14370 MOULT-CHICHEBOVILLE- France ","rouen@francehygieneventilation.fr",null,"National","501 002 000",null,"8122Z",null,8000,"2007-11-21","SARL","14370"]
[null,"CALESTOR PERYWAY",null,"14 RUE ALEXANDRE 14 AU 38 92230 GENNEVILLIERS - FRANCE",null,null,null,"393 858 543","FA4D7","4651Z - Commerce de gros (commerce interentreprises) d'ordinateurs, d'équipements informatiques périphériques et de logiciels",null,230000,"1994-02-01","5710 - Société par actions simplifiée (SAS)","92230"]
[null,"FRANCIS PLAGNOL",null,"LES FUCHSIAS RTE DE CORMEILLES 27210 BEUZEVILLE - France",null,null,"LOCAL","808 935 233",null,4391,"travaux de charpente",1000,"2014-12-01","artisan","27210"]
[null,"GARD ROLAND",null,"M.ARGAUD| 6 ave Maurice Rene Simonet| 26000 VALENCE","joel.argaud@roland-gard.fr","04 75 82 02 60","Local","437 380 181","FA18P","4321A","travaux d'installation électrique dans tous les locaux","269k€","1973-01-26","SA","26000"]
[null,"GDA SERVICES",null,"69 AVENUE DES CHATAIGNIERS | 95150 TAVERNY ",null,null,null,"335 233 409","prospection","4941A","Transports routiers de fret interurbains",null,null,"SARL","95150"]
[null,"GE360",null,"1042 RUE AUGUSTIN FRESNEL ZAC PLAINE DE LA RONCE 76230 BOIS-GUILLAUME",null,"02 35 70 54 60","LOCAL","321 194 094",null,"7112A ","Activité des géomètres",60679,"1981-01-02","SARL","76230"]
[null,"GEODIS CALBERSON France Express","Marilyn OZEEL\n","| Rue de l'etang Delpech| 76805 ST ETIENNE DU ROUVRAY","marilyn.ozeel@geodis.com",null,"National","393 123 724\n",null,"5229A","Messagerie, fert express","1 388k€","1993-11-25","SAS","76805"]
[null,"GEODIS GE",null,"\n14 AV DE LA VOIE AU COQ ZA DES FORQUES 14760 BRETTEVILLE-SUR-ODON \nEmilie LECHEVALIER","e.lechevalier@geodis-ge.com","02 31 75 85 01","LOCAL","384 139 689",null,"7112A ","Activité des géomètres",450000,"1992-01-02","Société d'exercice libéral à forme anonyme à conseil d'administration","14760"]
[null,"GLS EXPRESS","Mathias GOURCI\n","| Zac des Portes de Val de Reuil - Voie du Testelet| 27100 VAL DE REUIL","mathias.gourci@gls-france.com",null,"National","315 334 011",null,"5229B","Affrétement et organistaion des transports","7 782k€","1979-03-20","SAS","27100"]
[null,"Clen","Patrick AMRAM\n","16 Zone Industrielle| BP 30140| 37500 Saint-Benoît-la-Forêt| France","patrick.amRAM@clen.fr\n",null,null,"444 540 124",null,null,"6820B - Location de terrains et d'autres biens immobiliers",10207835,null,"SA","37500"]
[null,"GRAPHELIO",null,"P.A.T La Vatine| 7 rue Linus Carl Pauling| 76130 Mont-Saint-Aignan","contact@graphelio-rouen.fr","02 35 61 14 93","LOCAL","997 878 004",null,"8219Z ","Photocopie, préparation de documents et autres activités spécialisées de soutien de bureau","200k€","1977-01-01","SAS","76130"]
[null,"GREENOFFICE",null,"22 rue du Président Wilson 22 a 24 92300 LEVALLOIS PERRET",null,null,null,"479 919 755","FA2B5","4669C","Commerce de gros et fournitures et équipements divers pour le commerce et les services",70000,null,"SAS","92300"]
[null,"GSF",null,"49 rue de Trevise 75009 PARIS ",null,null,null,"775 675 291",null,"7070Z","Activité des sièges sociaux",9000000,null,"SAS","75009"]
[null,"COELYS",null,"36 - 38 Avenue Salvador Allendé| Parc Mykonos - Bâtiment F| 60 000 Beauvais| ",null,"03 448 448 60","national","450 894 258",null,"7112B ","Ingénierie, études techniques",10500,"2003-12-01","SARL",""]
[null,"HELIO SERVICES",null,"16 bis rue Alfred Kastler| 76130 Mont Saint aignan","franck.lys@helio-service.fr","02 32 19 50 15","LOCAL","650 501 703",null,"4649Z","Commerce de gros (commerce interentreprises) d'autres biens domestiques","450k€","1965-01-01","SA","76130"]
[null,"COMPAGNIE GENERALE DE LOCATION",null,"360 RTE DE TOULOUSE 33130 BEGLES - FRANCE",null,null,null,"775 582 026","/","7732Z - Location et location-bail de machines et équipements pour la construction",null,220000,"1963-01-01","5599 - SA à conseil d'administration (SA)","33130"]
[null,"COMPLIANCE IN",null,"Apolline BUCHLER| 12 place de la defense | 92974 PUTEAUX","abuchler@compliance-in.com","06 86 08 70 90","National","844 925 511",null,"7022Z","Conseil pour les affaires et autres conseils de getsion",null,"2018-12-12","SASU","92974"]
[null,"HERVE THERMIQUE",null,"SOUCHET Laurent| 14 rue denis papin| 37300 JOUE LES TOURS","Laurent.SOUCHET@herve-thermique.com","06 45 80 81 68","National"," 627 220 049",null,4322,"Travaux d'installation d'équipements thermiques et de climatisation",null,"1972-01-01","SAS","37300"]
[null,"HERVE THERMIQUE",null,"M.GANDON| 14 rue denis Papin BP105| 37301 JOUE LES TOURS","patrick.gandon@herve-thermique.com","02 47 68 36 00","Local","627 220 049","FA2EH","4322B","Travaux d'installation d'équipements thermiques et de climatisation","3 000k€","1972-01-24","SAS","37301"]
[null,"HYGIS France",null,"509 AV DES FONTAINES 30320 POULX - France","contact76@hygis.com",null,"National","823 296 439",null,"6420Z",null,50000,"2016-10-10","SAS","30320"]
[null,"COSEBA",null,"57 rue Benoit Malon, 94250 Gentilly","albin.angeli@coseba.fr","01 45 46 45 66","national","408 197 002",null,"7112B","Ingénierie, études techniques",20000,"1996-07-05","SAS","94250"]
[null,"ID RESTAURATION",null,"9 boulevard Richard Lenoir| 75011 Paris",null,"01 55 28 98 80 ",null,"349 675 280",null,"5629B","Autres services de restauration n.c.a.","180 K€","1989-02-13","SAS","75011"]
[null,"ID VERDE","Severine SZULCZYK","122 RUE EDOUARD VAILLANT 92300 LEVALLOIS-PERRET","laurence.dubois@idverde.com",null,null,"339 609 661","Non Référencé","8130Z","Services d'aménagement paysager",19923480,"1986-10-01","SAS","92300"]
[null,"INSTITUT FORGECO",null,"6 bis, rue Emile Duclaux | 92150 Suresnes",null,"01 45 06 73 45 ",null,"391 247 582",null,"8559A","Formation continue d'adultes","40 K€","1993-04-15","SASU","92150"]
[null,"INTRUM France","Frédéric Martinez ","104 AV ALBERT 1ER PARC TECHNOLOGIQUE BATIMENT SEQUOIA 1 92500 RUEIL-MALMAISON","Frederic.MARTINEZ@lindorff.com",null,null,"797 546 769",null,"8291Z ","Activités des agences de recouvrement de factures et des sociétés d'information financière sur la clientèle",26155000,null,"SAS","92500"]
[null,"IQERA - Ex-DSO","Marie CARTIER","256 Bis RUE DES PYRENEES 75020 PARIS 20","macartier@iqera.com",null,null,"435 198 627","FA31U","8299Z","Autres activités de soutien aux entreprises n.c.a.",13105940,null,"SAS","75020"]
[null,"ISOR",null,"18 rue d'Arras | 92000 NANTERRE",null,null,null,"339 447 534",null,"8121Z","nettoyage courant des bâtiments",2675475,null,"SAS","92000"]
[null,"ISS PROPRETE",null,"12 RUE FRUCTIDOR 75017 PARIS ",null,null,null,"542 016 951",null,"8121Z","nettoyage courant des bâtiments",165000000,null,"SASU","75017"]
[null,"JARDINS CONSULTING ESPACES VERTS","N.C","RUE DU BOIS CORDIEU 27110 VITOT","j.cev@orange.fr",null,null,"482 258 258","Non Référencé","8130Z","Services d'aménagement paysager",30000,"2005-04-21","SARL","27110"]
[null,"DARTY GRAND OUEST",null,"32 RUE DE COULONGE PARC TERTIAIRE ERAUDIERE 44300 NANTES - FRANCE",null,null,null,"339 403 933","FA4H7","4754Z - Commerce de détail d'appareils électroménagers en magasin spécialisé",null,30612,"1986-11-03","5202 - Société en nom collectif (SNC)","44300"]
[null,"KINNARPS SA",null,"1712 route de Quarante Sous 78630 Orgeval",null,null,null,"337 879 464",null,"4665Z","Commerce de gros (commerce interentreprises) de mobilier de bureau\n",5000000,"1986-07-07","SA à conseil d'administration","78630"]
[null,"KONE",null,"| 28 boulevard industriel| 76800 ST Etienne du Rouvray| Philippe ROUDAUT","philippe.roudaut@kone.com","06 30 32 45 23\n09 70 80 80 80","National","592 052 302","FA2KW","4329b","fabrication, installation, maintenance d'ascenseurs, portes\nautomatiques et escaliers mécaniques","10 410k€","1935-04-05","SA","76800"]
[null,"DEEPKI",null,"28 BD ROCHECHOUART 75018 PARIS 18E ARRONDISSEMENT - FRANCE",null,null,null,"804 763 670","/","6209Z - Autres activités informatiques",null,39541,"2014-09-23","5710 - Société par actions simplifiée (SAS)","75018"]
[null,"KONECT DESIGN",null,"2 RUE CLAUDE CHAPPE BATIMENT B 35230 NOYAL-CHATILLON-SUR-SEICHE",null,null,null,"838 157 675",null,"4759A","Commerce de détail de meubles",30000,null,"SAS","35230"]
[null,"DEKOM",null,"14 rue Laplace 33700 MERIGNAC France",null,null,null,"795 070 283",null,"4743Z","Commerce de détail de matériels audio et vidéo en magasin spécialisé",50000,"2013-09-03","SAS, société par actions simplifiée","33700"]
[null,"DEKRA INDUSTRIAL",null,"19 RUE STUART MILL ZI MAGRE 87008 LIMOGES CEDEX - FRANCE",null,null,null,"433 250 834","FA375","7120B - Analyses, essais et inspections techniques",null,25060000,"2000-10-01","5710 - Société par actions simplifiée (SAS)","87008"]
[null,"DEKRA INDUSTRIAL SAS",null,"Ludovic LENDORMY| Agence Normandie| 39 rue Raymon Aron| CS 70406| 76137 MONT ST AIGNAN","ludovic.lendormy@dekra.com","02 35 12 83 20\n06 25 16 67 47","national","433 250 834",null,"7120B","Analyses, essais et inspections techniques",25060,"2000-10-24","SAS","76137"]
[null,"LA MAISON DUPUIS",null,"RTE DE SAINT GERMAIN SOUS CAILLY 76690 CAILLY",null,"02 35 34 92 58","LOCAL","408 858 710",null,4391,"travaux de couverture par éléments",80000,"1995-05-17","SAS","76690"]
[null,"LANEF",null,"76250 DEVILLE LES ROUEN",null,null,null,"429 726 763","A2CN","4669C","Commerce de gros (commerce interentreprises) de fournitures et équipements divers pour le commerce et les services",400000,"2000-03-07","SARL","76250"]
[null,"LES ATELIERS AUBERT LABANSAT",null,"LE GRAND VAUDOME 50200 COUTANCES",null," 02 33 76 60 60","LOCAL","424 458 305",null,1623,"Fabrication de charpentes et d'autres menuiseries",122000,"1999-09-29","SAS","50200"]
[null,"LES FLEURS DU PASSAGE",null,"2 Passage de l'Ancien Hôtel de Ville| 76000 ROUEN","felix.nicolas76360@gmail.com","06 83 13 62 28",null,"",null,null,null,null,null,null,"76000"]
[null,"LES JARDINS DE GALLY",null,"Ferme de Vauluceau| 78870 BAILLY","sdemmi@gally.com"," 01 39 63 48 00",null,"729 803 973 ",null,"8130Z","Services d'aménagement paysager",202498,"1972-05-15","SARL","78870"]
[null,"LYOVEL NORD PICARDIE NORMANDIE",null,"",null,null,null,"387 452 436",null,"4799B","Vente par automates et autres commerces de détail hors magasin, éventaires ou marchés n.c.a.",10100807,"1992-05-19","SASU",""]
[null,"DEPANNAGE RENOVATION ELECTRICITE",null,"40 RUE EMILE ZOLA 76300 SOTTEVILLE-LES-ROUEN - FRANCE",null,null,null,"498 862 515","/","4321A - Travaux d'installation électrique dans tous locaux",null,10000,"2007-06-25","5499 - Société à responsabilité limitée (SARL)","76300"]
[null,"MADELINE CONSTRUCTION",null,"48 RTE DE PARIS 76240 LE MESNIL-ESNARD - FRANCE",null,"02 35 79 89 47",null,"792 073 843",null,"4120A","Construction de maisons individuelles",null,"2013-01-14","SAS","76240"]
[null,"MAJENCIA",null,"24 QUAI DU PRESIDENT CARNOT 92210 SAINT CLOUD ",null,null,null,"353 311 525","A2TB","3101Z","Fabrication de meubles de bureau et de magasin",9175000,"1990-01-30","SA","92210"]
[null,"MANGANELLI",null,"340 8 340 avenue De La Marne 59700 MARCQ EN BAROEUL",null,null,null,"",null,"4652Z","Commerce de gros (commerce interentreprises) de composants et d'équipements",227500,"2005-06-10","SAS, société par actions simplifiée","59700"]
[null,"MANUTAN\nA245551",null,"AV DU XXIEME SIECLE 95500 GONESSE ",null,null,null,"334 668 852","FA2TK","4669B","Commerce de gros (commerce interentreprises) de fournitures et équipements industriels divers",16072720,null,"SA","95500"]
[null,"MARTINON MSE",null,"Mme LESAGE| ZI de charneveuax - 575 rouete de givors| 38670 CHASSE SUR RHONE","sav@martinon-mse.com","04 78 07 40 74","Local","389 573 064",null,"3312Z","Réparation de machines et équipements mécaniques","200k€","1992-12-17","SAS","38670"]
[null,"MEULINE BENOIT",null,"50 RUE DU CORDONNIER 27340 CRIQUEBEUF-SUR-SEINE - France",null,null,"LOCAL","824 803 001",null,4391,"travaux de charpente"," - ","2016-12-01","artisan","27340"]
[null,"MP ALTOR",null,"37 RUE VOLTAIRE| 93700 DRANCY| ZA de la briqueterie Voie C - N°340| 76160 ST Jacques sur Darnetal","sylvie@mpaltor.com","01 48 31 06 10","National","492 083 910 ",null,"4329b","autres travaux d'installation","162k€","2006-09-27","SAS",{"$f":"RecupCP(D136)","v":"93700"}]
[null,"MUGO","A: Frederic LEVIN\nB: Antoine GOUDARD","359 rue Fourny 78530  BUC","flevin@mugo.fr\nagoudard@mugo.fr",null,null,"511 820 896","Non Référencé","8130Z","Services d'aménagement paysager",40000,"2009-04-14","SARL","78530"]
[null,"MUTERLOGER",null,"8 CHE DU JUBIN | 69570 DARDILLY",null,null,null,"409 593 431","prospection","7022Z","Conseil pour les affaires et autres conseils de gestion",null,null,"SASU","69570"]
[null,"Nexity",null,"19 rue De Vienne - 75008 PARIS",null,null,null,"444 346 795",null,null,null,273915085,"21/11/202",null,"75008"]
[null,"Norma Froid",null,"76360 BARENTIN",null,null,null,"341 850 857","A204M","3320B","Installation de machines et équipements mécaniques",63000,"1987-09-28","SAS","76360"]
[null,"NORMADECO",null,"10 Rue du 8 juin 1944| 14740 BRETEVILLE L'ORGUEILLEUSE","olivierpinier@normadeco.fr","02 31 75 18 99",null,"484 684 519 ",null,"7729Z","Location et location bail d'autres biens personnels et domestiques",200000,"2005-10-24","SARL","14740"]
[null,"Normandie Equipement",null,"76800 ST ETIENNE DU ROUVRAY",null,null,null,"414 538 322","A5ZN","3320B","Installation de machines et équipements mécaniques",40000,"1997-11-27","SA","76800"]
[null,"NORMANDVERT","Laurent ELY","RUE SANTOS DUMONT ZAC MULTISITE LONG BUISSON 27930 GUICHAINVILLE","normandvert@wanadoo.fr",null,null,"451 355 549","Non Référencé","8130Z","Services d'aménagement paysager",80000,"2004-01-02","SARL","27930"]
[null,"DUVAL",33235614444,"RUE GUSTAVE EIFFEL ESPACE LEADER 76235 BOIS-GUILLAUME CEDEX - France",null,null,null,"60 501 264",null,null,null,258240,null,"SASU","76235"]
[null,"DUVAL ELECTRICITE","\nAgence de proximité : \nDUVAL ELECTRICITE\nrue Gustave Eiffel,\n76230 BOIS GUILLAUME \n02 35 61 44 44\n\n\nContact pour l'AO:\nSéverine VAUTHIER\nsmancelle@duval-electricite.fr","RUE GUSTAVE EIFFEL ESPACE LEADER 76235 BOIS-GUILLAUME CEDEX - FRANCE",null,null,null,"560 501 264","FA1X1","4321A - Travaux d'installation électrique dans tous locaux",null,258240,"1956-01-01","5710 - Société par actions simplifiée (SAS)","76235"]
[null,"NORMANDY TRANSFERT",null,"60 AV. CH DE GAULLE | 92200 NEUILLY SUR SEINE ",null,null,null,"493 672 471","A4AT","4942Z","Service de déménagement",null,null,"SARL","92200"]
[null,"NOUET",null,"AVENUE DES CARRIERES | 14760 BRETTEVILLE S/ODON",null,null,null,"384 087 326","A4F5","4942Z","Service de déménagement",null,null,"SAS","14760"]
[null,"NOVALAIR NORMANDIE","David Carrie","RUE DES BOURRELIERS ZAC DU BOIS DE L ARC NORD- BATIMENT 4 76760 YERVILLE - FRANCE","dcarrie@novalair.com",null,"National","519 695 654","FA5A1","8122Z",null,10000,"2009-12-21","SARL","76760"]
[null,"OMS SYNERGIE GROUP",null,"Zone des Béthunes 38 avenue du Fond de Vaux 95310 ST OUEN l'AUMONE ",null,null,null,"484 834 981",null,"7070Z","Activité des sièges sociaux",400000,null,"SAS","95310"]
[null,"ONET SERVICES",null,"36 BOULEVARD DE L OCEAN 13009 MARSEILLE ",null,null,null,"67 800 425",null,"8121Z","nettoyage courant des bâtiments",8153600,null,"SAS","13009"]
[null,"OTIS",null,"23 rue delariviere Lefoullon| 92800 PUTEAUX| Erika  QUELEN","erika.quelen@fr.otis.com\npatricia.lecomte@fr.otis.com\ndiane.godet@fr.otis.com","01 46 91 60 00","National","542 107 800 ",null,"4329b","autres travaux d'installation","6 202 k€","1954-12-27","société en commandite simple","92800"]
[null,"PAPREC GROUP",null,"7 RUE DU DOCTEUR LANCEREAUX 75008 PARIS 8",null,null,null,"489 455 360","non référencé","7010Z","Activités des sièges sociaux",124846152,null,"SAS","75008"]
[null,"EIFFAGE","BERQUET (philippe.berquet@eiffage.com)\n\n(06) 17 90 07 99","3 PL DE L EUROPE 78140 VELIZY-VILLACOUBLAY",null,null,null,"709 802 094",null,null,"Lot 1 - Badges\nLot 2 - Migration de la technologie de carte d'accès\nLot 3 - Maintenance",null,null,"SA","78140"]
[null,"EIFFAGE ENERGIE",null,"M.BERQUET\nZAC  du clos de la tête rue jacques prévert 14730 GIBERVILLE","philippe.berquet@eiffage.com","02 31 52 37 00","National","775 673 031","FA1ZM","4321A","travaux d'installation électrique dans tous les locaux","92 616k€","1931-05-07","SASU","14730"]
[null,"PAYSAGE ADELINE ","Stéphane GENECQUE","ZAC DES CHAMPS CHOUETTE RUE DU BOIS DE SAINT PAUL 27600 SAINT-AUBIN-SUR-GAILLON  27600 SAINT-AUBIN-SUR-GAILLON","commercial@paysagesadeline.com",null,null,"399 432 517","Non Référencé","8130Z","Services d'aménagement paysager",25000,"1994-12-15","SARL","27600"]
[null,"PERIER",null,"BD MAL DE LATTE DE TASSIGNY",null,null,null,"500 697 875","FA4UG","4939A","Transports routiers réguliers de voyageurs",747622,"2007-10-30","SASU",""]
[null,"POSTEL",null,"7 CHEMIN DE LA VOUTE | 76120 LE GRAND-QUEVILLY ",null,null,null,"312 669 336","A266","4942Z","Service de déménagement",null,null,"SARL","76120"]
[null,"elliaden",null,"11 RUE MARJOLIN 92300 LEVALLOIS-PERRET - France",null,null,null,"484 132 337",null,null,null,300000,null,"EURL","92300"]
[null,"PROPOST SERVICES",null,"82, rue Jeanne d'Arc| 76000 ROUEN",null,"02 35 15 58 59","LOCAL","",null,null,null,null,null,null,"76000"]
[null,"RBC",null,"1 AV FONTANISSE ZAC POLE ACTIF 30660 GALLARGUES-LE-MONTUEUX",null,null,null,"327 448 825",null,"4759A","Commerce de détail de meubles",152257,null,"SARL","30660"]
[null,"RECY GO",null,"57 RUE YVES KERMEN 57-59 92100 BOULOGNE-BILLANCOURT",null,null,null,"509 430 724","non référencé","3832Z","Récupération de déchets triés",37000,null,"SAS","92100"]
[null,"ROSSIGNOL",null,"RTE DE SAINT CENERE 53150 MONTSURS",null,null,null,"397 963 844","non référencé","2599A","Fabrication d'articles  métalliques ménagers",500000,null,"SASU","53150"]
[null,"SADA",null,"ZA DU PETIT VERGER - 1703 RTE DE GOURNAY  76160 PREAUX",null,null,null,"489 412 346","A5QB","4799B","Vente par automates et autres commerces de détail hors magasin, éventaires ou marchés n.c.a.",10000,"2006-03-31","SASU","76160"]
[null,"SAMSIC",null,"6 rue de Chatillon | 35510 CESSON SEVIGNE",null,null,null,"403 227 796",null,"7010Z","Activité des sièges sociaux",45000000,null,"SAS","35510"]
[null,"SAPIAN","Thierry Grail","31 PL RONDE 92800 PUTEAUX - France","thierry.grail@sapian.fr",null,"National","662 005 214","FA6ZB","8129A",null,"NC","1966-01-01","SAS","92800"]
[null,"SARAH FARSY",null,"ROUEN","sarah.farsy@hotmail.fr","06 88 96 76 83",null,"811 432 061",null,null,null,null,null,"TPE",""]
[null,"SARL ANGER",null,"104 RUE DU CHATEAU D EAU 76730 AVREMESNIL",null,"02 35 85 33 85","LOCAL","333 466 472",null,4391,"travaux de charpente",200000,"1985-07-01","SARL","76730"]
[null,"SARL DUCHESNE",null,"30 ALL DU TEMPLE AUTRETOT 76190 LES HAUTS-DE-CAUX - France",null,"02 35 95 13 85","LOCAL","393 580 048",null,4391,"travaux de charpente",100000,"1994-01-17","SARL","76190"]
[null,"SAVI","Sébastien CACAN","ZA des pointes rue des Canadiens 76520 Authieux Port Saint Ouen","sc@groupesavi.fr",null,null,"342 585 049","FA3FJ","8130Z","Services d'aménagement paysager",130200,"1987-10-12","SAS","76520"]
[null,"SCHENKER France","Clément PARMENTIER\n","Route de nantes| BP 49 | 85600 MONTAIGU","clement.parmentier@dbschenker.com",null,"National","311 799 456",null,"5229A","Messagerie Fret express","5 749k€","1977-12-29","SAS","85600"]
[null,"SCHINDLER",null,"1 rue Dewoitine| 78140 VELIZY VILLACOUBLAY","fabien.crestaux@schindler.com",613263128,"National","383 711 678",null,"4329b","autres travaux d'installation","8 594k€","1991-11-26","SA","78140"]
[null,"SCHNEIDER ELECTRIC ENERGY France",null,"35 rue Joseph Monier| 92500 Rueil-Malmaison",null,"01 41 39 62 00",null,"511 746 356",null,"2712Z","Fabrication de matériel de distribution et de commande électrique",6909620,"2009-04-08","SASU","92500"]
[null,"EODD",null,"171 RUE LEON BLUM 171-173 69100 VILLEURBANNE",null,"04 78 82 39 32","national","383 812 666",null,"7112B ","Ingénierie, études techniques",360000,"1991-11-18","SAS","69100"]
[null,"Eol","Pascal PHILIPPE\n","17 RUE J ET ETIENNE DE MONTGOLFIER CS 40004| 93110 ROSNY SOUS BOIS","pascal.philippe@eol-group.net\n",null,null,"380 937 169",null,null,"3101Z - Fabrication de meubles de bureau et de\nmagasin",3000000,null,"SASU","93110"]
[null,"SELECTA",null,"",null,null,null,"552 014 201",null,"4799B","Vente par automates et autres commerces de détail hors magasin, éventaires ou marchés n.c.a.",3323044,"1955-01-27","SA",""]
[null,"SEVDEC","M. SEVESTRE Jacky","20 rue David Ferrand| 76100 Rouen","sarl.sevdec@wanadoo.fr","02 35 73 73 93",null,"380 644 716","FA3JW","4321A","Travaux d'installation électrique dans tous locaux",16000,"1991-01-21","SARL","76100"]
[null,"SNEF CLIM",null,"54 rue d'arcueil | 94150 RUNGIS",null,"01 41 11 79 00\n01 60 48 81 81","National","751 067 216",null,"4322B","Travaux d'installation d'équipements thermiques et de climatisation","1 5000k€","2012-04-19","SASU","94150"]
[null,"SOGEDI","Régis GUERMEUR","48 RUE GEORGES CHARPAK 44115 HAUTE-GOULAINE","rguermeur@sogedis.fr",null,null,"440 614 816","FA34X","8291Z","Activités des agences de recouvrement de factures et des sociétés d'information financière sur la clientèle",1750000,null,"SAS","44115"]
[null,"ETABLISSEMENTS DESORMEAUX","\nAgence de proximité : \nETABLISSEMENTS DESORMEAUX\n38 rue Paul Lambard, \n76123 LE GRAND QUEVILLY CEDEX \n02 35 69 65 56\n\n\nContact pour l'AO:\n\nsecretariat@groupedgt.com\n","38 RUE PAUL LAMBARD 76120 LE GRAND-QUEVILLY - FRANCE",null,null,null,"387 934 177","/","4321A - Travaux d'installation électrique dans tous locaux",null,1297950,"1991-10-01","5710 - Société par actions simplifiée (SAS)","76120"]
[null,"SOLUTION JARDIN",null,"20 route de Rouen 27310 La Trinité de Thouberville",null,null,null,"488 342 528","Non référencé","8130Z","Services d'aménagement paysager",100000,"2006-01-02","SARL","27310"]
[null,"SONOLUX",null,"35 avenue Aristide Briand BP 827| 50100 CHERBOURG EN COTENTIN","sonolux@wanadoo.fr","02 33 44 64 24",null,"817 997 968 ",null,"9329Z","Autres activités récréatives et de loisirs",427000,"2016-02-02","SAS","50100"]
[null,"SOVIMEF","19 rue aristide Briand\nBP 5 \n76580 LE TRAIT\nRobin PECQUEUR","","r.pecqueur@sovimef.fr","02 35 05 62 62\n06 22 92 45 72","Local","775 702 145","FA5GZ","3320B","Installation de machines et équipements mécaniques","157 k€","1965-11-12","SAS",""]
[null,"SPECTACULAIRES",null,"21 avenue Cossinade| 35310 ST THURAIL",null,"02 99 87 07 07",null,"341 387 371 ",null,"4322AZ","Travaux  d'installation d'eau et de gaz en tous locaux",250000,"1987-06-16","SASU","35310"]
[null,"SPIE",null,"4 Avenue Jean Jaures| BP19| 69551 Feyzin Cedex",null,"04 72 21 12 00",null,"440 055 861","FA3OF","4321A","Travaux d'installation électrique dans tous locaux",81070272,"2001-10-09","SAS","69551"]
[null,"SPIE FACILITIES",null,"M.JEFFROY\n38 rue du bois des coutures BP60204\n76410 CLEON \n+\nM.BARBOSA\nservice mgt 23 montée castellane 69140","gregory.jeffroy@spie.com\ndomingos.barbosa@spie.com","01 48 13 42 42 ","National","538 700 022 ",null,"4321A",null,"35 227k€","2011-12-21","SAS","69140"]
[null,"Eurosit","Hugues DESERT\nResponsable réseau Ouest\nTél: 06 74 82 08 58\nFax:\nEmail:h.desert@eurosit.fr\n","ZI NEVERS SAINT ELOI BP 273 58000 SAINT ELOI",null,null,null,"775 732 811",null,null,"3101Z - Fabrication de meubles de bureau et de\nmagasin",2223318,null,"SA","58000"]
[null,"SPRINT IMPRESSION",null,"Pavillon Casimir Delavigne, 11 Boulevard André Siegfried, 76131 Mont-Saint-Aignan","campuspro@orange.fr","02 35 88 92 40","LOCAL","950 616 722",null,"8219Z ","Photocopie, préparation de documents et autres activités spécialisées de soutien de bureau","7ke","1989-09-01","SARL","76131"]
[null,"STEELCASE",null,"1 Allee d Oslo - 67300 Schiltigheim",null,null,null,"302 162 623",null,"3101Z","Fabrication de meubles de bureau et de magasin",117558895,"1900-01-01","SA à conseil d'administration","67300"]
[null,"FEMEL PROTECTION SARL","\nAgence de proximité : \nFEMEL PROTECTION SARL\n26 Bis Rue des Roses, \n76710 ESLETTES\n02 35 33 73 80\n\n\nContact pour l'AO :\nFranck ROUCOU\nFranck.roucou@femel-protection.fr\n06 48 60 53 22\n","26B RUE DES ROSES 76710 ESLETTES - FRANCE",null,null,null,"487 662 702","/","4321A - Travaux d'installation électrique dans tous locaux",null,300000,"2005-12-05","5499 - Société à responsabilité limitée (SARL)","76710"]
[null,"T2C",null,"473 rue des manets| 76520 Franqueville Saint Pierre",null,"02 32 86 80 80",null,"412 206 757","FA3QA","4399C","Travaux de maçonnerie générale et gros œuvre de bâtiment",323156,"1997-05-16","SAS","76520"]
[null,"TEMPERIA CLIMATISATION",null,"M.DELMOTTE| 430 rue de l'abbaye CS 70104| 82001 MONTAUBAN| | M.SENECAL| 26 rue Desseaux| 76100 ROUEN",null,"05 63 66 50 50","Multi régional","343 492 187","FA3Q2","4322B",null,"300k€","1988-01-28","SAS","82001"]
[null,"TEMPERIA CLIMATISATION","Mr SENECAL\n26 rue Desseaux \n 76100 ROUEN\n\n","","r.senecal@temperia.fr","06 99 47 81 54","Multi régional","343 492 187","FA3Q2","4322B","Travaux d'installation d'équipements thermiques et de climatisation ","300K€","1988-01-28","SAS",""]
[null,"FNAC DIRECT",null,"9 RUE DES BATEAUX - LAVOIRS ZAC PORT D IVRY 94200 IVRY-SUR-SEINE - FRANCE",null,null,null,"377 853 536","FA590","4791A - Vente à distance sur catalogue général",null,13583280,"1990-03-14","5710 - Société par actions simplifiée (SAS)","94200"]
[null,"THYSSENKRUPP ASCENSEUR",null,"8 rue parmentier| 92816 PUTEAUX","philippe.lebourhis@thyssenkrupp.com\nphilippe.huby@thyssenkrupp.com\n\n","06 29 87 51 35\n06 03 91 59 11","National","722 024 742 ","FA6L9","4329b","autres travaux d'installation","8 116k€","1972-04-25","SASU","92816"]
[null,"VEOLIA ENERGIE France",null,"21 rue de la Boetie 75008 PARIS",null,"01 85 57 70 00","National","508 867 124 ",null,"3530Z",null,"18 100ke","2008-11-05","SASU","75008"]
[null,"VICI RESTAURATION",null,"9 rue Georges Auric| ZA Mozart| 26000 Valence| ",null,"04 75 86 09 20",null,"338 063 092",null,"8299Z","Autres activités de soutien aux entreprises ","60 K€","1986-07-01","SARL","26000"]
[null,"VINCI FACILITIES",null,"23 -27 rue delarivière Lefoullon | 92 800 PUTEAUX","gabriel.martin@vinci-facilities.com","02 76 67 63 59\n07 85 68 95 11","National","503 117 228 ",null,"7022Z",null,"714 520k€","2008-03-13","SAS",""]
[null,"XELIANS",null,"ZA du Bois de l’Epicier| Route de Rambouillet| 78 550 Maulette| ","ana.pereira@xelians.fr>","01 30 88 11 99","LOCAL","324 847 094",null,"5210B \n"," Entreposage et stockage non frigorifique","1 495k€","1982-06-01","SAS",""]
[null,"6NAPSE","Quentin PELLOIE","VERNON - 27200","6napse@groupe-6napse.com","02 32 21 19 30",null,null,null,null,"bureaux d'études en ingénierie et expertise en laboratoire",null,null,null,"27200"]
[null,"AC2D","Joseph DUMONT","YERVILLE - 76760","ac2dtableau@gmail.com","02 35 96 41 55",null,null,null,null,"réalisation d'armoires électriques",null,null,null,{"$f":"RecupCP(D200)","v":"76760"}]
[null,"ACEREL","Geoffrey LIONNAIS","LOUVIERS - 27400","geoffrey.lionnais@acerel.fr","06 62 16 57 80",null,null,null,null,"installation électrique",null,null,null,"27400"]
[null,"ACFT CONSTRUCTION","Francesco TENUTA","BARC - 27170","contact@acft.fr","06 60 70 01 40",null,null,null,null,"fabrication de machine spéciales et équipements industriels",null,null,null,"27170"]
[null,"ACGM","Pierre Antoine BARON","ALIZAY - 27460","contact@acgm.fr","02 35 32 49 31",null,null,null,null,"fabrication et pose de matelas isolant thermique, acoustique et chauffant",null,null,null,"27460"]
[null,"ADIAMIX","Baptiste ESNAULT","LE SAP EN AUGE - 61470","b.esnault@adiamix.com","07 56 05 05 32",null,null,null,null,"usinage-découpe-pliage-assemblage-emboutissage",null,null,null,"61470"]
[null,"GENELEC",null,"68 RUE MARIUS BERLIET 69400 ARNAS - FRANCE",null,null,null,"383 241 312","/","4669A - Commerce de gros (commerce interentreprises) de matériel électrique",null,3100000,"1991-07-01","5710 - Société par actions simplifiée (SAS)","69400"]
[null,"ADISTA","Davy VOIVENEL","COLOMBELLES - 14460","dvoivenel@adista.fr","07 60 42 99 04",null,null,null,null,"intégrateur de solutions voix ip, hébergement informatique ,\ncyber sécurité",null,null,null,"14460"]
[null,"ADVANCE ENGINEERING, GROUPE CERAP","Norbert GODEY","CHERBOURG OCTEVILLE - 50130","contact@advance-eng.fr","05 56 23 12 10",null,null,null,null,"assistance technique et ingénierie",null,null,null,"50130"]
[null,"GEP ELECTRICITE","\nAgence de proximité : \nGEP ELECTRICITE\nParc Activités Ondelles, 76240 BELBEUF\n02 35 79 03 37\n02 35 64 04 48\n\nContact pour l'AO:\nSylvie POINSSONET\ncontact@gepelectricite.com\n","LES ONDELLES PARC D'ACTIVITES 76240 BELBEUF - FRANCE",null,null,null,"380 113 662","FA19Z","4321A - Travaux d'installation électrique dans tous locaux",null,24000,"1990-11-01","5499 - Société à responsabilité limitée (SARL)","76240"]
[null,"AEI-ATMP","Jeremy PODEVIN","BAYEUX - 14402","contact@aei-atmp.fr","06 07 21 22 85",null,null,null,null,"mécano-soudure, usinage, chaudronnerie",null,null,null,"14402"]
[null,"AENTEC NORMANDIE-ETS","Mohamed KEBAILI","LE HAVRE - 76600","m.kebaili@aentec-groupe.com","09-53-06-23-08",null,null,null,null,"ingénierie et études techniques",null,null,null,"76600"]
[null,"AGENCE NORMANDIE TRADUCTION","Jacques CEREZO","ROUEN - 76750","jacques.cerezo@agencenormandietraduction.com","02 78 08 98 06",null,null,null,null,"ingénierie linguistique et documentaire",null,null,null,"76750"]
[null,"AIR FRANCE","Claire MONNERIE","BOUGUENAIS - 44340",null,null,null,null,null,null,"voyages d'affaires",null,null,null,"44340"]
[null,"AIR8 SAS","Anthony BEAUDU","ST OUEN DE THOUBERVILLE - 27310","abeaudu@air8.fr","02 27 36 56 15",null,null,null,null,"travaux publics",null,null,null,"27310"]
[null,"Gosto","Frédéric COUPEZ","408 RUE ALBERT BAILLY 59290 WASQUEHAL","\nf.coupez@gosto.fr",null,null,"489 807 750",null,null,"4665Z - Commerce de gros (commerce\ninterentreprises) de mobilier de bureau",100000,null,"SARL","59290"]
[null,"ALARMCOM SARL","FREDERIC PENVERNE","IFS - 14123","alarmcom@wanadoo.fr","02 31 35 44 64",null,null,null,null,"protection des bien et des personnes",null,null,null,"14123"]
[null,"ALGPLAST","David AUVRAY","CARPIQUET - 14650","contact@algplast.fr","06 25 17 64 98",null,null,null,null,"chaudronnerie et tuyauterie plastique",null,null,null,"14650"]
[null,"ALUBAT NORMANDIE","Jean-Baptiste SAVALLE","TÔTES - 76890","jb.savalle@alubat-normandie.com","02 35 32 23 50",null,null,null,null,"menuiserie aluminium",null,null,null,"76890"]
[null,"AMETHYSTE","Agnès GAILLARD","LE HAVRE - 76600","agnes.gaillard@amethyste.fr","06 07 79 79 89",null,null,null,null,"logiciels de gestion de l'intégrité des actifs industriels",null,null,null,"76600"]
[null,"AN DIAG","Christophe AUDOUARD","SAINT ETIENNE DU ROUVRAY - 76800","an.diag@yahoo.fr","06 84 61 39 50",null,null,null,null,"specialistes amiante: analyses - diagnostic - strategies -\nprelevements air et materiaux",null,null,null,"76800"]
[null,"ANFRY SAS","Christophe DELABRE","DEAUVILLE - 14800","info@anfry.fr","02 31 88 25 13",null,null,null,null,"systèmes sécurité & sureté & smart home & borne de de recharge",null,null,null,"14800"]
[null,"ANOXA","Fabrice VITIS","VAL DE REUIL - 27100","f.vitis@anoxa.fr","06 72 42 29 64",null,null,null,null,"metallerie alu - acier - inox",null,null,null,"27100"]
[null,"ANTEA","benoit LEREVEREND","COLOMBELLES - 14461","secretariat.caen@anteagroup.fr","02 31 46 12 46",null,null,null,null,"ingénierie",null,null,null,"14461"]
[null,"APN","CHRISTIAN PENIN","MOULT - 14370","apndirection@orange.fr","06 26 63 92 60",null,null,null,null,"traitement de surfaces sur tous supports",null,null,null,"14370"]
[null,"APPLIPLAST TECHNOLOGIES - GROUPE WEDO","William JULIEN","ALENCON - 61000","w.julien@wedo.team","02 43 69 36 14",null,null,null,null,"injection plastique et sous-ensembles plastiques",null,null,null,"61000"]
[null,"Haworth","Constantin BOLLET\n06 31 16 99 09\nconstantin.bollet@haworh.com","LES LANDES DE ROUSSAIS 85600 MONTAIGU",null,null,null,"545 750 580",null,null,"3101Z - Fabrication de meubles de bureau et de magasin",2000000,null,"SAS","85600"]
[null,"ARDATEM","Stéphane QUENTIN","CHERBOURG EN COTENTIN - 50120","squentin@ardatem.fr","02 33 03 84 61",null,null,null,null,"assistance technique et prestations intellectuelles",null,null,null,"50120"]
[null,"ARKANCE SYSTEMS FRANCE","Claire CHAUSSEPIED","BOIS GUILLAUME - 76230","claire.chaussepied@arkance-systems.com","06 07 01 25 88",null,null,null,null,"platinum autodesk partner et acteur de la digitalisation de la construction, de l'infrastructure et de l'industrie",null,null,null,"76230"]
[null,"ARTEC","Anthony MURY","LE HOULME - 76770","contact@artec-application.com","02 35 37 89 77",null,null,null,null,"application de revêtements techniques",null,null,null,"76770"]
[null,"ASTN","Romain LEJEUNE","LE HAVRE - 76620","criou@seine-estuaire.cci.fr","06 26 75 09 57",null,null,null,null,"tuyauterie soudure montage",null,null,null,"76620"]
[null,"HERVE THERMIQUE",null,"14 RUE DENIS PAPIN 37300 JOUE-LES-TOURS - FRANCE",null,null,null,"627 220 049","FA2EH","4322B - Travaux d'installation d'équipements thermiques et de climatisation",null,3000000,"1972-01-01","5710 - Société par actions simplifiée (SAS)","37300"]
[null,"HEURTEVENT",null,"970 RTE D EURVILLE 76890 VAL-DE-SAANE - FRANCE",null,null,null,"350 693 560","/","4322B - Travaux d'installation d'équipements thermiques et de climatisation",null,180000,"1989-04-01","5499 - Société à responsabilité limitée (SARL)","76890"]
[null,"ATD - GROUPE EPC","Victor LAURENT","PETIT-QUEVILLY - 76140","vlaurent@atd-demolition.com","02 35 62 19 88",null,null,null,null,"désamiantage, démolition, déplombage, dépollution",null,null,null,"76140"]
[null,"ATELIER BAGLIN","Gérald GREGOIRE","ARGENTAN - 62200","atelier@baglin.fr","06 89 15 25 44",null,null,null,null,"soudure, rechargement et reparation de pieces mecaniques",null,null,null,"62200"]
[null,"ATELIER MECANIQUE ET TECHNIQUE - A.M.T","Cameron GRIEVE","SOULEUVRE EN BOCAGE - 14350","contact@amt.fr","02 31 67 33 40",null,null,null,null,"mecanique, outillage de precision, mecanique generale, fabrication de moules et assemblage, ajustage",null,null,null,"14350"]
[null,"ICEGEM",null,"170 allée Robert Lemasson| 76230 BOIS GUILLAUME| M.CAVELIER","cavelier@icegem.fr","02 35 61 34 93","local","335 093 233",null,"7490A ","Activité des économistes de la construction",94300,"1976-03-01","SARL","76230"]
[null,"ATELIER REGIONAL DE BOBINAGE","Jean-Charles CHOMBART","LE GRAND-QUEVILLY - 76 - 76120","rouen@atbgroupe.com","02 32 11 14 10",null,null,null,null,"bobinage de moteurs electrique",null,null,null,"76120"]
[null,"AUTOMATISMES CG","ERIC CHABOTY","TINCHEBRAY BOCAGE - 61800","eric.chaboty@wanadoo.fr","06 76 82 00 40",null,null,null,null,"constructeur de systèmes automatisés et robotisés",null,null,null,"61800"]
[null,"IEC",null,"141 avenue Des Gresillons 92230 GENNEVILLIERS France",null,null,null,"350 093 704",null,"4652Z","Commerce de gros (commerce interentreprises) de composants et d'équipements",2000000,"1989-03-08","SAS, société par actions simplifiée","92230"]
[null,"IKARIAN",null,"Anna KORNYUKHINA| 3 rue de Teheran | 75008 PARIS","akorn@ikarian.eu","06 03 99 34 69","National","812 293 074",null,"7022Z","Conseil pour les affaires et autres conseils de getsion","2k€","2015-06-30","SARL","75008"]
[null,"AXOTOITS","Rodolphe LEJEUNE","DÉVILLE-LÈS-ROUEN - 76250","slaisney@axotoits.fr","06 43 49 85 58",null,null,null,null,"maintenance et entretien de tous types de toitures",null,null,null,"76250"]
[null,"INEO NORMANDIE","\nAgence de proximité : \nINEO NORMANDIE\nrue Boulaie, \n76800 SAINT ETIENNE DU ROUVRAY \n 02 32 95 86 10\n\n\nContact pour l'AO:\nRichard LE GOADEC\nrichard.legoadec@engie.com","94 RUE LOUIS BLERIOT 76230 BOIS-GUILLAUME - FRANCE",null,null,null,"409 881 083","/","4321A - Travaux d'installation électrique dans tous locaux",null,1000000,"1996-11-15","5202 - Société en nom collectif (SNC)","76230"]
[null,"AZ BOX EMBALLAGES","Olivier MAUCOTEL","LOUVERSEY - 27190","contact@az-box.fr","02 32 58 20 10",null,null,null,null,"negoce en emballages industriels",null,null,null,"27190"]
[null,"BMM","FRANCISCO MARTINS","GOURNAY EN BRAY - 76220","bmm.direction@orange.fr","02 35 09 36 30",null,null,null,null,"mécanique de précision",null,null,null,"76220"]
[null,"BORFLEX","Yannick BOCK","EQUEURDREVILLE-HAINNEVILLE - 50120","y.bock@borflex.fr","02 33 03 50 20",null,null,null,null,"fabrications en caoutchouc",null,null,null,"50120"]
[null,"BRANGEON TRANSPORTS ET LOGISTIQUE","Hassan EL HADAOUI","SAINT MACLOU - 27210","transport@brangeon.fr","02 41 72 11 59",null,null,null,null,"transports et logistique",null,null,null,"27210"]
[null,"BTSI","YANNICK LEBREC","SOLIERS - 14540","direction@btsi.fr","02 31 08 68 51",null,null,null,null,"tolerie fine",null,null,null,"14540"]
[null,"CAEN COUVERTURE","VINCENT MICHEL","MONDEVILLE - 14120","info@caencouverture.fr","02 31 35 17 65",null,null,null,null,"couverture etancheite zinguerie",null,null,null,"14120"]
[null,"CALOMATECH SAS","Breton GWENAEL BRETON","GIBERVILLE - 14730","gwenael.breton@calomatech.fr","06 38 51 72 16",null,null,null,null,"fabrication de matelas isolants thermiques",null,null,null,"14730"]
[null,"CEPIC","Jean-Marc LETONDOT","SAINT ETIENNE DU ROUVRAY - 76800","marie.spriet@cepic.fr","02 32 82 37 82",null,null,null,null,"fabriquant de solutions complètes pour les problèmes de\ncorrosion",null,null,null,"76800"]
[null,"CG2I","Thomas MECHEMACHE","YVETOT - 76190","contact@cg2i.org","03 21 07 72 42",null,null,null,null,"concepteur et constructeur de bâtiments professionnels, contractant général, maîtrise d'œuvre, ingénierie fluides",null,null,null,"76190"]
[null,"CHATEL TRANSPORTS GROUPE ZIEGLER","Pauline TRUSSART","SAINT VIGOR LE GRAND - 14400","pauline.trussart@zieglergroup.com","02 31 51 15 15",null,null,null,null,"transport",null,null,null,"14400"]
[null,"CHEVALIER DIAG","Nicolas CRAMET","CHERBOURG EN COTENTIN - 50100","n.cramet@chevalierdiag.fr","02 33 52 64 30",null,null,null,null,"diagnostic des polluants du bâtiment (amiante ; plomb;\nradon...)",null,null,null,"50100"]
[null,"CLOSYSTEM","Amaury CLAISE","CARPIQUET - 14650","contact@closystem.com","02 31 15 51 31",null,null,null,null,"clôtures - portail - contrôle d'accès - serrurerie - métallerie",null,null,null,"14650"]
[null,"CO-JAMET-G","Marc GUIGUEN","VALLIQUERVILLE - 76190","co-jamet@wanadoo.fr","02 35 56 20 40",null,null,null,null,"menuiserie agencement peinture",null,null,null,"76190"]
[null,"CONCEPT ISOLATION","Sébastien HONORÉ","DOUDEVILLE - 76560","contact@concept-isolation.com","09 70 19 16 76",null,null,null,null,"calorifuge, ventilation, chambre froide, porte industrielle",null,null,null,"76560"]
[null,"CONDI OUEST","Arthur VISENTIN","MENILLES - 27120","emballage@condi-ouest.com","02 32 37 30 88",null,null,null,null,"fabrication d'emballages en matières plastiques",null,null,null,"27120"]
[null,"CPM INDUSTRIES","MIKE HAUTERS","SAINT ROMAIN DE COLBOSC - 76430","mike.hauters@cpmindustries.fr","02 35 47 55 19",null,null,null,null,"expert en sur mesure industriel",null,null,null,"76430"]
[null,"JM BLAIS ENVIRONNEMENT",null,"10 Boulevard Félix Faure| 86100 Châtellerault| ","jean-marc.blais@blais-environnement.fr","05 49 20 49 51","national","392 172 995",null,"7112B ","Ingénierie, études techniques",13270,"1993-08-23","SARL","86100"]
[null,"CREDIT AGRICOLE NORMANDIE","Matthieu NOVELIN BALDINI","CAEN - 14000","matthieu.novelinbaldini@ca-normandie.fr","02 31 55 61 11",null,null,null,null,"banque",null,null,null,"14000"]
[null,"CRIT","Grégory BRIAND","VAL-DE-REUIL - 27100",null,"02 32 09 35 50",null,null,null,null,"activités liées à l'emploi",null,null,null,"27100"]
[null,"DACHSER","Sandrine BIANNIC","SAINT ETIENNE DU ROUVRAY - 76800","sandrine.biannic@dachser.com","02 35 65 72 56",null,null,null,null,"transports routiers europeens de marchandises - logistique",null,null,null,"76800"]
[null,"DALKIA SPONSOR","Soazic MARY","SAINT ANDRE LEZ LILLE - 59350",null,"03 20 63 42 42",null,null,null,null,"services energétiques",null,null,null,"59350"]
[null,"DB SCHENKER FRANCE","parmentier CLEMENT","SAINT ETIENNE DU ROUVRAY - 76800","clement.parmentier@dbschenker.com","07 69 14 37 10",null,null,null,null,"transport routier",null,null,null,"76800"]
[null,"Kinnarps","Mme Aicha CAMARA\nResponsable Grandes Organisations\n","1712 ROUTE DE QUARANTE SOUS 78630 ORGEVAL","\n\naicha.camara@kinnarps.fr\nKinnarps France\n1712 route de 40 sous - 78630 Orgeval\nkinnarps.fr\n",null,null,"337 879 464",null,null,"4665Z - Commerce de gros (commerce\ninterentreprises) de mobilier de bureau",5000000,null,"SA",{"$f":"RecupCP(D264)","v":"78630"}]
[null,"DEF","LAURENT AGASSE","ISNEAUVILLE - 76230","laurent.agasse@def-online.com","06 88 51 68 05",null,null,null,null,"expert en solution de système de sécurité incendie",null,null,null,"76230"]
[null,"Knoll","Catherine ROYER\nKnoll International\n","268 BOULEVARD SAINT GERMAIN 75007 PARIS 7","\nc.royer@knolleurope.com",null,null,"334 069 457",null,null,"4665Z - Commerce de gros (commerce interentreprises) de\nmobilier de bureau",800000,null,"SAS","75007"]
[null,"DEKRA INDUSTRIAL SAS","Romain LEFRANCOIS","CAEN - 14000","romain.lefrancois@dekra.com","06 11 23 09 85",null,null,null,null,"bureau de contrôle",null,null,null,"14000"]
[null,"DEKRA INDUSTRIAL SAS","Elise MALA","MONT-SAINT-AIGNAN - 76137","alexia.bernardo@dekra.com","06 24 57 31 46",null,null,null,null,"bureau de contrôle",null,null,null,"76137"]
[null,"DEREMAUX","Stéphane DEREMAUX","AUMALE - 76390","sd.deremaux@deremaux.net","02 35 94 60 97",null,null,null,null,"construction mecanique",null,null,null,"76390"]
[null,"DEVATECH","SARA HEFNAOUI","ELBEUF - 76500","contact@devatech.fr","09 88 57 10 00",null,null,null,null,"integration & prestations intellectuelles",null,null,null,"76500"]
[null,"DGC","LAURENT GUIDEZ","PETIT COURONNE - 76650","laurent.guidez@dgcnormandie.com","02 32 18 42 61",null,null,null,null,"distribution de pompe à chaleur, système de ventilation et climatisation pour l'industrie, le tertiaire et le logement",null,null,null,"76650"]
[null,"DIMOE","Sylvain GOUFFIER","LE HAVRE - 76600","contact@dimo-energie.fr","09 87 15 65 13",null,null,null,null,"amo énergies et be cvc",null,null,null,"76600"]
[null,"DINACTIS","Joris GAHÉRY","LILLEBONNE - 76170","contact@dinactis.com","02 35 38 44 27",null,null,null,null,"installation de système de ventilation, climatisation et\ndépoussiérage industriel",null,null,null,"76170"]
[null,"DLE OUEST","Pascal LUMINEAU","GRAND COURONNE - 76530","dleouest.normandie@eiffage.com","02 35 69 10 99",null,null,null,null,"travaux de canalisation",null,null,null,"76530"]
[null,"DML BOVIS","VANESSA PRAT","BOURGUEBUS - 14540","dml@bovis.fr","02 31 72 50 05",null,null,null,null,"levage/ manutention/ transfert industriel",null,null,null,"14540"]
[null,"DMP","Nicolas CHAUVIN","CUVERVILLE - 14780","contact@dmp-industrie.com","02 31 35 81 60",null,null,null,null,"développement de machines spéciales et usinage",null,null,null,"14780"]
[null,"Linéa France","Christine Godefroy\nConsultante Commerciale","ALLEE DES MARRONNIERS BP 223 27400 HEUDEBOUVILLE","Email c.godefroy.sedia@gmail.com \n",null,null,"489 321 745",null,null,"3101Z - Fabrication de meubles de bureau et de magasin",37000,null,"SAS","27400"]
[null,"DUHAMEL LOGISTIQUE","Florian GERBRON","VAL DE REUIL - 27100","n.nollet@duhamel-logistique.fr","02 32 09 32 65",null,null,null,null,"logistique - conditionnement - preparation de commandes -\ntransports",null,null,null,"27100"]
[null,"DUHAMEL SARL","Frédéric DUHAMEL","AUTIGNY - 76740","qualite@duhamel-charpentes.com","02 35 57 25 68",null,null,null,null,"fabrication et pose de charpentes lamellé-collé",null,null,null,"76740"]
[null,"DUMONT MÉTAL INDUTRIE","Guillaume ADE","SAINT NICOLAS D'ALIERMONT - 76510","g.ade@amgeindustrie.fr","02 35 04 24 65",null,null,null,null,"atelier tôlerie, chaudronnerie",null,null,null,"76510"]
[null,"LOXAM",null,"256 RUE NICOLAS COATANLEM 56850 CAUDAN - FRANCE",null,null,null,"450 776 968","/","7732Z - Location et location-bail de machines et équipements pour la construction",null,224818150,"2003-10-15","5710 - Société par actions simplifiée (SAS)","56850"]
[null,"ECOMETHODES SMEE","Ludovic PIERRE","ÉTERVILLE - 14930","ac.trochu@ecomethodes.fr","06 42 64 30 40",null,null,null,null,"efficacité énergétique / économies d'eau et d'énergie /\nvalorisation primes cee",null,null,null,"14930"]
[null,"ECOSYSTEM CLEON 4.0","Annick AUGER"," - ",null,null,null,null,null,null,null,null,null,null,""]
[null,"EDC TRANSMOUSS","Romaric DUSSUS","MORTAGNE AU PERCHE - 61400","romaric.dussus@edc-transmouss.fr","06 59 75 28 79",null,null,null,null,"emballages carton sur mesure",null,null,null,"61400"]
[null,"EDF EPR2","Laurent JAVELLE"," - ",null,null,null,null,null,null,null,null,null,null,""]
[null,"EDSVI","anthony ROUILLARD","MONTIVILLIERS - 76290","a.rouillard@edsvi.fr","02 35 54 53 30",null,null,null,null,"amenagement de vehicule",null,null,null,"76290"]
[null,"MANEXI",null,"19 CHE DE PRUNAY 78430 LOUVECIENNES - FRANCE",null,null,null,"390 393 916","/","7120B - Analyses, essais et inspections techniques",null,77000,"1993-03-09","5710 - Société par actions simplifiée (SAS)","78430"]
[null,"EG - ENTREPRISES EN GROUPEMENT","STEPHANE CLEMENT","LE HAVRE - 76600","stephane.clement@egsas.fr","06 72 20 74 13",null,null,null,null,"développement commercial de sociétés de services à\nl'industrie",null,null,null,"76600"]
[null,"ELAIRGIE","DAVID MORENO","LE CASTELET - 14540","caen@elairgie.fr","02 31 79 89 91",null,null,null,null,"genie climatique",null,null,null,"14540"]
[null,"EMANOR","GUILLAUME LANGRENE","ST ROMAIN DE COLBOSC - 76430","contact@emanor.fr","06 17 41 75 70",null,null,null,null,"ingénierie et maintenance industrielle, réalisation de\nmachines spéciales, cobotique, projet clés en main",null,null,null,"76430"]
[null,"EMPACABOIS","Clémence MARQUES","PACY-SUR-EURE - 27120","commercial@empacabois.fr","06 33 87 75 48",null,null,null,null,"fabrication de carton ondulé, conditionnement à façon, logistique",null,null,null,"27120"]
[null,"ENDEL","EDOUARD CHAUVRIS","CLEON - 76410","edouard.chauvris@altradendel.com","02 32 93 82 60",null,null,null,null,"chaudronnerie - tuyauterie - electromécanique - robinetterie\n- machine spéciale",null,null,null,"76410"]
[null,"MARELLI MOTORI SPA",null,"4 RUE 36071 ARZIGNANO 1 VIA SABBIONARA - ITALIE",null,null,null,"403 305 014","/","2790Z - Fabrication d'autres matériels électriques",null,5164.57,"1996-01-01","3120 - Société étrangère immatriculée au RCS","36071"]
[null,"ENGIE ENERGIE SERVICES","Pascal LECREUX","PETIT-QUEVILLY - 76140","pascal.lecreux@engie.com","06 74 33 82 52",null,null,null,null,55204695503047,null,null,null,"76140"]
[null,"ENRI","Stéphane BILLON","EPAIGNES - 27260","contact@enri.fr","02 32 57 87 89",null,null,null,null,"fab de rouleaux industriels revetements en elastomere et\ntoutes pieces techniques",null,null,null,"27260"]
[null,"ENVOYE SPECIAL","Sabrina GOMIS","LESQUIN - 59812","e.moya@envoye-special.fr","06 19 22 70 94",null,null,null,null,"transport routier de marchandises",null,null,null,"59812"]
[null,"ESAT LES CONQUÉRANTS / GIE NORM'HANDI","Patrick MAUDUIT","FALAISE - 14700","pmauduit@apaeipapf.fr","06 82 70 11 41",null,null,null,null,"insertion par le travail des personnes en situation de\nhandicap",null,null,null,"14700"]
[null,"MEDIAS PLUS",null,"BD DE NORMANDIE 76360 BARENTIN - FRANCE",null,null,null,"325 291 367","FA2U5","4652Z - Commerce de gros (commerce interentreprises) de composants et d'équipements électroniques et de télécommunication",null,121960,"1982-09-01","5599 - SA à conseil d'administration (SA)","76360"]
[null,"ETMP","Bernard POULET","OISSEL - 76350","contact@etmp.net","02 35 64 94 94",null,null,null,null,"chaudronnerie plastique, composites, tuyauterie process",null,null,null,"76350"]
[null,"ETN","Nicolas DENTZ","SOTTEVILLE LES ROUEN - 76300","ndentz@etn.fr","02 32 91 51 51",null,null,null,null,"distribution de matériel d'automatisme, robotique, ethernet industriel, electrotechnique",null,null,null,"76300"]
[null,"FACILIBOT","MARTIAL BEUQUE","LE HAVRE - 76600","contact@azurnettoyage.fr","02 32 79 64 70",null,null,null,null,"nettoyage robotise",null,null,null,"76600"]
[null,"FAUCHÉ","Bruno MEYER","CANTELEU - 76380","bmeyer@fauche.com","06 15 69 75 04",null,null,null,null,"electricité industrielle, automatisme, robotique, et électricité\ntertiaire",null,null,null,"76380"]
[null,"FERTIVERT","LUDOVIC DUFOUR","BELLEVILLE EN CAUX - 76890","ludo.dufour@wanadoo.fr","02 35 80 86 46",null,null,null,null,"traitement et compostage de dechets verts",null,null,null,"76890"]
[null,"GARDET ET DE BEZENAC BAUDELET ENVIRONNEMENT","Paul GRANGER","GREMONVILLE - 76970","normandie@baudelet.fr","02 35 95 16 34",null,null,null,null,"dechets",null,null,null,"76970"]
[null,"MTCA",null,"4, rue Nicéphore Niépce | 76300 Sottevile-lès-Rouen",null,null,null,"304 669 666",null,"9002Z","Activités de soutien au spectacle vivant","400 000,00","2005-06-10","SAS, société par actions simplifiée","76300"]
[null,"MTCA",null,"4 RUE NICEPHORE NIEPCE 76300 SOTTEVILLE-LES-ROUEN - FRANCE",null,null,null,"304 669 666","FA2ZA","9002Z - Activités de soutien au spectacle vivant",null,400000,"1975-01-01","5710 - Société par actions simplifiée (SAS)","76300"]
[null,"GCI CONSTRUCTION","Benoit CONTAMIN","COLOMBELLES - 14460","accueil@gci-construction.fr","02 31 72 51 51",null,null,null,null,"maîtrise d'oeuvre et clés en mains",null,null,null,"14460"]
[null,"GECI INGÉNIERIE","Stéphane LEBAS","SAINT-CONTEST - 14280","s.lebas@geci-ingenierie.fr","02 78 94 14 28",null,null,null,null,"construction et réhabilitation clé en main de bâtiments professionnels bureaux, industrie, commerce, logistique (...)",null,null,null,"14280"]
[null,"GEFCO","Eric ARMAND","COLOMBES - 92700","eric.armand@gefco.net","06 48 73 33 62",null,null,null,null,"transport",null,null,null,"92700"]
[null,"NAMIXIS",null,"Avenue des hauts grigneux| 76230 BOIS GUILLAUME","luc.dandre@groupesystea.com","09 60 37 40 55\n06 13 12 04 64","local","393 488 531",null,"7112B","Ingénierie, études techniques",481600,"1994-01-01","SAS","76230"]
[null,"GEPSA","Claudie PATELLI","CONDE SUR SARTHE - 61250","claudie.patelli@gepsa.fr","06 71 12 86 38",null,null,null,null,"sous-traitance industrielle et tertiaire",null,null,null,"61250"]
[null,"NEXECUR","Alain BEDOUET\nDirecteur Développement Commercial Grands Comptes\nTél. 06.42.02.75.80\n22/24 Rue Lavoisier\n92000 NANTERRE\n\nBEDOUET Alain <alain.bedouet@nexecur.fr> ","13 RUE DE BELLE ILE 72190 COULAINES",null,null,null,"799 869 342",null,null,"Lot 2 - Migration de la technologie de carte d'accès\nLot 3 - Maintenance",null,null,"SAS","72190"]
[null,"GH CONNECTIVE","Mylène LANTEUIL","LE HAVRE - 76600","syonnet@ghconnective.com","06 44 15 32 09",null,null,null,null,"cabinet de conseil en management de projets",null,null,null,"76600"]
[null,"NEXUS","Radhouane CHABBI\n\nMobile : +33(0) 6 73 44 60 07\n \nRadhouane.chabbi@nexusgroup.com\n","1 RUE JOUFFROY D'ABBANS 75017 PARIS 17",null,null,null,"348 219 916",null,null,"Lot 1 - Badges",null,null,"SAS","75017"]
[null,"GILLES GUESNET SARL","Vincent GUESNET","BERNAY - 27300","gilles.guesnet@wanadoo.fr","06 44 35 08 87",null,null,null,null,"peinture en batiment / menusierie/ isolation",null,null,null,"27300"]
[null,"GINGER BURGEAP","Emilie BRUNEL-RAYMOND","SAINT-ETIENNE-DU-ROUVRAY - 76800","burgeap.rouen@groupeginger.com","02 32 81 45 00",null,null,null,null,"bet environnement",null,null,null,"76800"]
[null,"GROUPE CANDOR","Franck LEMAITRE","VAL-DE-REUIL - 27701","flemaitre@groupecandor.fr","02 32 63 43 00",null,null,null,null,"entreprise de propreté et services associés",null,null,null,"27701"]
[null,"GROUPE IDEA","Nicolas GUILLERET","CHERBOURG EN COTENTIN - 50100","contact@groupe-idea.com","02 40 90 08 09",null,null,null,null,"prestataire en logistique industrielle",null,null,null,"50100"]
[null,"GSE","François NAITALI","SAINT-ETIENNE DU ROUVRAY - 76800","fnaitali@gsegroup.com","07 86 68 59 27",null,null,null,null,"construction de bâtiments clef en main",null,null,null,"76800"]
[null,"GSF NEPTUNE","Kévin DERAYMOND","BOIS GUILLAUME - 76230","abaudinet@gsf.fr","02 32 19 61 50",null,null,null,null,"nettoyage industriel, logistique générale, services aux occupants des locaux nettoyés, services, manutention,\nnettoyage aéroportuaires",null,null,null,"76230"]
[null,"GUERIN","Jonathan BO","TESSY BOCAGE - 50420","dubourg@guerin-elec.com","02 33 77 38 36",null,null,null,null,"solutions et services pour le raccordement, la distribution et la production de l'énergie électrique hta et bt.",null,null,null,"50420"]
[null,"HANDYJOB","Philippe PALAMARAS","BRETTEVILLE SUR ODON - 14760","contact@handycom.fr","02 50 22 00 09",null,null,null,null,"multiservices - nettoyage - marquage au sol - espaces verts - communication",null,null,null,"14760"]
[null,"HANDYJOB","Stéphane PERIN","BRETTEVILLE SUR ODON - 14760","s.perin@handycom.fr","06 75 00 06 70",null,null,null,null,"multiservices - nettoyage - marquage au sol - espaces verts -\ncommunication",null,null,null,"14760"]
[null,"HEBERT","Mathieu KIERS","HARFLEUR - 76700","direction@hebert-elec.fr","02 35 22 46 68",null,null,null,null,"électricité industrielle, instrumentation, contrôle commande, le câblage courant faible, la vidéosurveillance, l’interphonie, le contrôle d'accès, alarme intrusion",null,null,null,"76700"]
[null,"HISA INGENIERIE","ALEXANDRE PAMPOLARI","ST ROMAIN DE COLBOSC - 76430","c.lecoq@hisa.fr","02 35 47 76 76",null,null,null,null,"ingénierie / bureau d'études",null,null,null,"76430"]
[null,"HYDRAUHAVRE","Paul COUSINARD","ROGERVILLE - 76700","c.gilbert@hydrauhavre.fr","02 35 47 02 82",null,null,null,null,"vente et reparation de materiels hydrauliques",null,null,null,"76700"]
[null,"IMETAL","Sabrina ALLORY","SAINT LAURENT DE BREVEDENT - 76700","sabrina.allory@imetalgroupe.com","02 35 55 24 70",null,null,null,null,"tolerie industrielle-integrateur",null,null,null,"76700"]
[null,"Nowy styl-Majencia","Hervé Burel.\nManager Commercial Normandie / Hauts de France Nowy Styl - Majencia SAS.\nArea Sales Manager Normandie / Hauts de France at the Nowy Styl - Majencia SAS.\n","10 RUE LA FONTAINE BP 164 38160 SAINT MARCELLIN","NOWY STYL GROUP | www.nowystylgroup.com\n\nE: herve.burel@majencia.com\n",null,null,"347 866 576",null,null,"4665Z - Commerce de gros (commerce\ninterentreprises) de mobilier de bureau",250000,null,"SAS",{"$f":"RecupCP(D328)","v":"38160"}]
[null,"INEVO","Cécile LECUYER","SAINT ETIENNE DU ROUVRAY - 76800","clecuyer@inevo.fr","33 63 14 07 57 5",null,null,null,null,"conseil en génie des procédés",null,null,null,"76800"]
[null,"OISSELEC","\nAgence de proximité : \nOISSELEC\n2 Avenue Philippe Lebon, 76120 LE GRAND-QUEVILLY\n 02 32 11 65 75\n\n\nContact pour l'AO:\nMaria DUFROY\nreseaux@oisselec.fr","2 AV PHILIPPE LEBON 76120 LE GRAND-QUEVILLY - FRANCE",null,null,null,"329 845 507","FA210","4321A - Travaux d'installation électrique dans tous locaux",null,130000,"1984-04-01","5710 - Société par actions simplifiée (SAS)","76120"]
[null,"INEXCO GROUPE","Flavien COTTARD","GONFREVILLE L'ORCHER - 76700","flavien.cottard@inexco-groupe.com","06 02 57 47 75",null,null,null,null,"activités d'architecture et d'ingénierie ; activités de contrôle\net analyses techniques",null,null,null,"76700"]
[null,"INGELIANCE","Quentin BOIDIN","LE HAVRE - 76600","quentin.boidin@ingeliance.com","06 79 99 77 19",null,null,null,null,"ingénierie / bureau d'etudes",null,null,null,"76600"]
[null,"INGELIANCE TECHNOLOGIES","Anne-Claire PERROT","CHERBOURG EN COTENTIN - 50100","administratif.cherbourg@ingeliance.com","02 33 22 89 00",null,null,null,null,"bureau d'2tude conception mecanique et simulation\nnumerique",null,null,null,"50100"]
[null,"INSTITUT DE SOUDURE INDUSTRIE","ALLISON LELONG","EQUEURDREVILLE HAINNEVILLE - 50120","al.lelong@isgroupe.com","02 33 41 20 38",null,null,null,null,"formation professionnelle / inspection contrôle",null,null,null,"50120"]
[null,"INTERFILTRE","Christophe COLOMER","FERVAQUES - 14140","interfiltre@interfiltre.fr","02 31 32 08 57",null,null,null,null,"fabrication d'équipement pour améliorer la qualité de l'air",null,null,null,"14140"]
[null,"Optimobi","Sylvie KOLP\n06.84.10.82.80\nsylvie.kolp@optimobi.fr\n","LE PETIT MOULIN 85700 REAUMUR\n",null,null,null,"792 915 118",null,null,"4690Z - Commerce de gros (commerce interentreprises) non\nspécialisé",15000,null,"SARL","85700"]
[null,"IPE OUEST","Olivier QUINCÉ","CAEN - 14000","info@ipe-ouest.fr","02 31 84 68 05",null,null,null,null,"maître d'oeuvre et contractant général - conception et\nréalisation de bâtiment d'entreprise",null,null,null,"14000"]
[null,"ISODIAG","ERIC MARINELLO","LE HAVRE - 76620","contact@isodiag.net","02 35 53 76 34",null,null,null,null,"diagnostic amiante / plomb et prélèvement d'air - milieu\nindustriel, bâtiment et sols pollués",null,null,null,"76620"]
[null,"ISOLATION CONSEIL","Franck DORAY","ALIZAY - 27460","contact@isolation-conseil.com","02 35 12 04 58",null,null,null,null,"isolation thermique, protection passive, ventilation",null,null,null,"27460"]
[null,"J - CARDON ET FILS","DAVID HEUZE","LE HAVRE - 76057","info@j-cardon.fr","02 35 25 06 25",null,null,null,null,"ventes accessoires de levage et de manutention et epi",null,null,null,"76057"]
[null,"KAPA LOGISTIC","Fabrice GIRARD","ALIZAY - 27460","fgirard@kapa-reynolds.com","06 25 42 72 18",null,null,null,null,"service intégré de prestation logistique, en b2b et en b2c",null,null,null,"27460"]
[null,"KILOUTOU","Nathalie GUIGOURESE","MONDEVILLE - 14120","@kiloutou.fr","02 31 82 80 80",null,null,null,null,"location de materiels et services",null,null,null,"14120"]
[null,"KILOUTOU","Georges MERIEULT","SOTTEVILLE-LES-ROUEN - 76300","@kiloutou.fr","02 25 65 71 71",null,null,null,null,"location de materiels et services",null,null,null,"76300"]
[null,"KILOUTOU","Benoit LEBLANC","LE HAVRE - 76600","agence0396@kiloutou.fr","02 35 13 08 08",null,null,null,null,"location de matériels et services",null,null,null,"76600"]
[null,"KILOUTOU MODULE","Pierre LEGAL","EPOUVILLE - 76133","plegal@kiloutou-module.fr","06 03 21 01 57",null,null,null,null,"location modulaire",null,null,null,"76133"]
[null,"KONICA MINOLTA BUSINESS SOLUTIONS FRANCE","Florent BERRANGER","SAINT CONTEST - 14280","jean-marc.aubrion@konicaminolta.fr","06 65 20 55 57",null,null,null,null,"commerce de détail d'ordinateurs, d'unités périphériques et de logiciels en magasin spécialisé",null,null,null,"14280"]
[null,"KPMG","Paul COISNARD","HÉROUVILLE SAINT CLAIR CEDEX - 14209",null,"02 14 37 55 00",null,null,null,null,"activités comptables",null,null,null,"14209"]
[null,"QCS SERVICES",null,"1B RUE DU PETIT CLAMART VELIZY PLUS BATIMENT D 78140 VELIZY-VILLACOUBLAY - FRANCE",null,null,null,"804 448 587","/","7112B - Ingénierie, études techniques",null,300000,"2014-09-01","5710 - Société par actions simplifiée (SAS)","78140"]
[null,"QCS Services (AMO ICPE)",null,"1 bis rue du petit Clamart, Bât. D, 78140 Vélizy-Villacoublay\n",null,"01 73 95 11 09","national","804 448 587",null,"7112B ","Ingénierie, études techniques",300000,"2014-09-01","SAS","78140"]
[null,"LEGOUPIL INDUSTRIE","Ludovic CHAMPION","VIRE - 14500","siege@legoupil-industrie.com","02 31 68 16 16",null,null,null,null,"location et vente de bâtiments industriels et constructions\nmodulaires",null,null,null,"14500"]
[null,"LMB DESIGN SAS","Laurence MARIN BRUNEL","CAEN - 14000","contact@lmb-design.com","06 42 96 68 40",null,null,null,null,"aménagement d'espace tertiaire et space planning",null,null,null,"14000"]
[null,"LOGFRET SAS","david BOULAUD","LE HAVRE - 76086","dboulaud@logfret.com","33 67 52 72 32 3",null,null,null,null,"transitaire",null,null,null,"76086"]
[null,"LOGISTIC TWICE ASA","Olivier BOURGET","HEUDEBOUVILLE - 27400","aphilippe@logistic-twice-asa.com","07 66 61 51 79",null,null,null,null,"prestataire logistique",null,null,null,"27400"]
[null,"LOXAM RENTAL","Jean-François BLANCHARD","SAINT JEAN DU CARDONNAY - 76150","jeanfrancois.blanchard@loxam.fr","06 80 35 94 87",null,null,null,null,"location de materiel",null,null,null,"76150"]
[null,"RFID LABS\n\nGSP TECHNOLOGIES","Gilles PERROTEY \n\nMob: +33 (0) 6 12 19 12 69\n\ngperrotey@rfid-labs.com\n","1235 CHE DE LA BOSQUE D'ANTONNELLE 13090 AIX-ENPROVENCE",null,null,null,"519 939 755",null,null,"Lot 1 - Badges",null,null,"SARL","13090"]
[null,"MA SOLUTION GESTION","Brice LEDORMEUR","MONDEVILLE - 14120","b.ledormeur@masolution-gestion.fr","06 61 66 99 37",null,null,null,null,"logiciels de gestion",null,null,null,"14120"]
[null,"MANUCO-SERVICES","Rémy POTIER","ST JACQUES SUR DARNETAL - 76160","contact@manuco-services.fr","02 32 98 98 18",null,null,null,null,"vente / location / sav matériel de manutention mitsubishi et matériel btp bobcat",null,null,null,"76160"]
[null,"S.D.M.O. INDUSTRIES",null,"270B RUE DE KERERVERN 29490 GUIPAVAS - FRANCE",null,null,null,"548 202 985","/","2711Z - Fabrication de moteurs, génératrices et transformateurs électriques",null,17066520,"1974-01-01","5710 - Société par actions simplifiée (SAS)","29490"]
[null,"MANUMESURE","Régis RAOELINA","REUX - 14130","industrie@manumesure.fr","02 31 64 51 55",null,null,null,null,"métrologie et contrôle réglementaire",null,null,null,"14130"]
[null,"MARCHANI","Nassereddine MARCHANI","SAINT ETIENNE DU ROUVRAY - 76800","n.marchani@marchani.fr","09 53 01 59 53",null,null,null,null,"tuyauterie chaudronnerie mecanique industrielle",null,null,null,"76800"]
[null,"SAFENGY",null,"26-28 rue de Londres, 75009 Paris",null," 02 47 75 18 87","national","507 600 260",null,"7112B ","Ingénierie, études techniques",21000,"2008-08-07","SARL","75009"]
[null,"MASSELIN FABRICATION","JEROME RENAULT","CORMELLES LE ROYAL - 14123","acceuil@masselin-fabrication.fr","02 31 35 04 66",null,null,null,null,"tolerie / chaudronnerie - application peinture - cablage",null,null,null,"14123"]
[null,"MATMUT - SPONSOR","Elyse MARTIN"," - ",null,null,null,null,null,null,null,null,null,null,""]
[null,"MCE AUTOMATION","JUSTINE MENARD","SAINT-ROMAIN-DE-COLBOSC - 76430","contact@mce-automation.com","02 78 94 02 90",null,null,null,null,"automatisme-safety-sncc-supervision scada-informatique- réseau-etude et conception electrique/instrumentation- préparation et supervision travaux ei",null,null,null,"76430"]
[null,"MEGA P","Gilles TURGIS","LE VAL D'HAZEY - 27940","contact@mega-p.fr","02 32 77 52 77",null,null,null,null,"ingenierie mecanique - usinage de precision",null,null,null,"27940"]
[null,"METALTECH LEGIRET","Francois-Eric LEGIRET","ST JEAN DE SAVIGNY - 50680","gestion@legiret.com","02 33 77 50 14",null,null,null,null,"toutes activités d’usinage par enlèvement de métal, décolletage, autres travaux d’usinage, façons de tournage",null,null,null,"50680"]
[null,"MHBT","Cédric MACQUET","ESLETTES - 76710","c.macquet@mhbt.fr","06 43 59 71 54",null,null,null,null,"maintenance ht et bt",null,null,null,"76710"]
[null,"MIL ECLAIR","Jean-Marc VOLCK","TROUVILLE-SUR-MER - 14360","contact@mileclair.fr","02 31 85 32 10",null,null,null,null,"nettoyage industriel",null,null,null,"14360"]
[null,"NAITE SAS","laurent PIERROZ","FAUVILLE EN CAUX - 76640","lpierroz@naite.fr","02 35 95 91 10",null,null,null,null,"tuyauterie",null,null,null,"76640"]
[null,"NETMAN","Yvan LOUIS","VALLIQUERVILLE - 76190","info@netman.fr","02 35 95 30 79",null,null,null,null,"prestations de logistique et propreté",null,null,null,"76190"]
[null,"NIORT FRÈRES DISTRIBUTION","CEDRICK ROGE","SAINT JEAN DU CARDONNAY - 76150","c-roge@niortfreres.fr","06 09 84 40 27",null,null,null,null,"vente d'équipement industriel",null,null,null,"76150"]
[null,"NOMEA","Jérôme ONOF","TURRETOT - 76280","jerome.onof@nomea.fr","06 63 82 12 36",null,null,null,null,"prestations de service intellectuelles",null,null,null,"76280"]
[null,"NORMANDIE EMBALLAGES","YOHANN MONTIEL","MONDEVILLE - 14120","contact@normandie-emballages.com","02 31 35 63 35",null,null,null,null,"negoce en emballages industriels",null,null,null,"14120"]
[null,"NORMANDIE MANUTENTION","David ERNOULT","SAINT ETIENNE DU ROUVRAY - 76800","isabelle.guerin@normandie.manutention.fr","02 35 69 99 00",null,null,null,null,"location et location-bail d'autres machines, équipements et\nbiens matériels",null,null,null,"76800"]
[null,"NORPALEX","Henry DE BEAUPUIS","CALLENGEVILLE - 76270","norpalex@norpalex.fr","06 80 45 35 61",null,null,null,null,"achat vente palettes neuve et reconditionné",null,null,null,"76270"]
[null,"SCOPUS OMNIBADGES","Thomas PAYA\n\nTél: :+33 (0)1 46 54 15 13 | Port: +33 (0)6 77 01 49 70\n\nEmail: tp@scopus.fr \n","RUE NICOLAS LEBLANC 33700 MERIGNAC",null,null,null,"438 065 070",null,null,"Lot 1 - Badges",null,null,"SASU","33700"]
[null,"SCOPUS OMNIBADGES"," +3 35 56 34 38","RUE NICOLAS LEBLANC 33700 MERIGNAC",null,null,null,"438 065 070",null,null,null,820000,null,"SASU","33700"]
[null,"NOVAT","Yannis GUILLOTEAU","LE THUIT DE L'OISON - 27370","contact-cmt@novat.fr","02 35 05 90 07",null,null,null,null,"chaudronnerie - metallerie - tuyauterie - découpe laser",null,null,null,"27370"]
[null,"OFRACAR","Gilles CRAIGNOU","MONT-SAINT-AIGNAN CEDEX - 76136",null,"02 35 12 35 50",null,null,null,null,"courtage en assurance",null,null,null,"76136"]
[null,"OMNIAS","Bertrand RENAULT","LE HAVRE - 76600","b.renault@omnias.fr","06 62 78 68 71",null,null,null,null,"etudes et ingénierie en informatique / automatismes /\ncybersecurité",null,null,null,"76600"]
[null,"OMNIDESK","Régis LE GOFF","CAEN - 14000","contact@omnidesk.fr","06 08 36 30 77",null,null,null,null,"informatique infrastructure et cybersecurite",null,null,null,"14000"]
[null,"OMNIPESAGE","Stéphane GANCEL","HEROUVILLE SAINT CLAIR - 14200","stephane.gancel@omnipesage.com","06 83 87 45 80",null,null,null,null,"pesage industriel",null,null,null,"14200"]
[null,"ORANO DS","Laurent JUMIAUX","GIF-SUR-YVETTE - 91190","laurent.jumiaux1@orano.group","02 35 97 23 54",null,null,null,null,"démentelement & services",null,null,null,"91190"]
[null,"OVERSPEED","Annie GRENIER","ROUEN - 76000","annie.grenier@overspeed.fr","02 35 60 28 18",null,null,null,null,"bureau d'études spécialisé dans la conception, le développement et la fabrication de produits électroniques connectés. nous élaborons des solutions électroniques innovantes pour le savoir, le confort, le bien-être, la mobilité, la sécurité des personnes et de leur environnement.",null,null,null,"76000"]
[null,"PIM-PME","Guillaume RICOUR","BAYEUX - 14400","contact@pim-pme.fr","01 80 75 02 95",null,null,null,null,"conseil en systèmes et logiciels informatiques",null,null,null,"14400"]
[null,"PLEXITECH","Charlotte BLOTIERE","SAINT ANDRE SUR ORNE - 14320","charlotte.blotiere@plexitech.fr","02 31 74 07 24",null,null,null,null,"transformation plastique",null,null,null,"14320"]
[null,"PORTAKABIN","Boutteville CHRISTEL","TEMPLEMARS - 59175","contact@portakabin.com","03 20 16 50 00",null,null,null,null,"bâtiment modulaire",null,null,null,"59175"]
[null,"RECYCLEOFFICE","Grégoire LÉVEILLÉ","ALENCON - 61000","contact@recycleoffice.com","02 33 28 00 00",null,null,null,null,"fournisseurs de fournitures et d'équipements divers pour le\ncommerce et les services",null,null,null,"61000"]
[null,"REENIU","Pascal BALLON","SAINT-MARTIN DE MAILLOC - 14100","ecrire@reeniu.eco","33 02 61 82 01 29",null,null,null,null,"decarbonation et economie d'eau",null,null,null,"14100"]
[null,"REGNARD TECHNOLOGIES","Julie FLORIN-REGNARD","RUGLES - 27250","contact@regnardtechnologie.com","02 33 34 43 16",null,null,null,null,"réparation servomoteurs, moteurs linéaires et codeurs",null,null,null,"27250"]
[null,"SI PREV",null,"21 rue Jacques Cartier - Bâtiment F| 78960 - VOISINS-LE-BRETONNEUX","emilie.loizon@si-prev.fr","01 30 55 71 74","national","814 748 786",null,"8020Z","Activités liées aux systèmes de sécurité",58000,"2015-12-01","SAS","78960"]
[null,"ROAV7","GREGOIRE GRANDJEAN","LE HAVRE - 76600","gregoire.grandjean@roav7.com","07 63 32 67 17",null,null,null,null,"inspection par drone",null,null,null,{"$f":"RecupCP(D392)","v":"76600"}]
[null,"SIEMENS","Pascal DUCY\n\nMobil: +33 6 2435-4778\n\nmailto:pascal.ducy@siemens.com\n","Siemens SAS| 47, avenue du Général Leclerc| 76120 Le Grand-Quevilly, France",null,null,null,"562 016 774",null,null,"Lot 1 - Badges\nLot 2 - Migration de la technologie de carte d'accès\nLot 3 - Maintenance",null,null,"SASU","76120"]
[null,"SADE CGTH","BERTRAND PASQUIER","SOTTEVILLE LES ROUEN - 76300","commercial.normandie@sade-cgth.fr","02 35 63 74 35",null,null,null,null,"travaux publics et industriels",null,null,null,"76300"]
[null,"SINTEO",null,"29 RUE SAINT LAZARE 75009 PARIS 9E ARRONDISSEMENT - FRANCE",null,null,null,"502 080 104","/","8121Z - Nettoyage courant des bâtiments",null,14160,"2008-01-01","5710 - Société par actions simplifiée (SAS)","75009"]
[null,"SIS","M. SEMBIANTE\n\nMail : b.sembiante@sis-france.eu\n\nGSM : 06.77.83.84.71\nTEL : 01.85.08.15.27","SIS FRANCE| Z.A.C LEONARD DE VINCI 24-28 Avenue Graham Bell| 77600 BUSSY SAINT GEORGES",null,null,null,"799 994 413",null,null,"Lot 2 - Migration de la technologie de carte d'accès\nLot 3 - Maintenance",null,null,"SARL","77600"]
[null,"SAFENGY","Arnaud VAUTIER","VERNON - 27200","admin@safengy.com","06 31 15 55 28",null,null,null,null,"spécialisés en étude d'ingénierie de sécurité et risques\nindustriels",null,null,null,"27200"]
[null,"SMED SOCIETE DE MAINTENANCE ELECTRO MECANIQUE ET DISTRIBUTION",null,"287 RTE DES ENTREPRISES 76430 OUDALLE - FRANCE",null,null,null,"480 878 818","/","3314Z - Réparation d'équipements électriques",null,500000,"2005-03-01","5499 - Société à responsabilité limitée (SARL)","76430"]
[null,"SARENS NORMANDIE","AMELIE LEMETAIS","LE GRAND QUEVILLY - 76120","kevin.delarue@sarens.fr","06 03 78 48 03",null,null,null,null,"levage",null,null,null,"76120"]
[null,"SAS ALLURE SOUS TRAITANCE INDUSTRIELLE","Esin GUNES","ELBEUF - 76500","contact@sasallure.fr","06 95 78 97 12",null,null,null,null,"son activité&#1113130; consiste en des travaux de sous- traitance : d’assemblage, de tri, de conditionnement, de fabrication, de distribution, de remise en conformité, de revalorisation des rebuts industriels, ainsi que le conseil, l’audit, des prestations se rapportant au domaine de\nl’industrie.",null,null,null,"76500"]
[null,"SASP","Elodie HINFRAY","SAINT ROMAIN DE COLBOSC - 76430","contact@sasp.fr","02 35 42 02 88",null,null,null,null,"informatique industrielle, sncc et automatisme,\ncybersecurite",null,null,null,"76430"]
[null,"SCHILO","Didier QUINGARE","CHERBOURG-EN-COTENTIN - 50100","direction@schilo.fr","02 33 88 46 07",null,null,null,null,"maîtrise d'oeuvre opérationnelle",null,null,null,"50100"]
[null,"SECURIT INGENIERIE","José LACHERAY","PETIT COURONNE - 76650","j.lacheray@securit-ingenierie.com","02 35 68 87 64",null,null,null,null,"etudes, conseils, formations et assistance dans les domaines\nqualité sécurité santé et environnement",null,null,null,"76650"]
[null,"SEHYMA","Jean-François JAVEY","MONDEVILLE - 14120","contact@sehyma.fr","06 28 59 75 87",null,null,null,null,"commerce de gros",null,null,null,"14120"]
[null,"Sokoa","Maria Oliveira\nResponsable Prescription\n","26 ROUTE DE BEHOBIE BP 404 64700 HENDAYE","\nm.oliveira@sokoa.com\n\nM + 33 6 42 90 66 29\n",null,null,"712 720 374",null,null,"3101Z - Fabrication de meubles de bureau et de\nmagasin",14074470,null,"SA","64700"]
[null,"SELLTEN","Damien PENOT","NORMANVILLE - 27930","contact@sellten.com","02 32 33 00 56",null,null,null,null,"confection et pose de bâches de protection sur mesure",null,null,null,"27930"]
[null,"SOLUTIONS CONSOMMABLES",null,"RUE DE LA GRANDE EPINE PARS ACTIVITES DE LA BASSE SEINE 76800 SAINT-ETIENNE-DU-ROUVRAY - FRANCE",null,null,null,"530 953 850","FA3NC","4651Z - Commerce de gros (commerce interentreprises) d'ordinateurs, d'équipements informatiques périphériques et de logiciels",null,130000,"2011-03-15","5710 - Société par actions simplifiée (SAS)","76800"]
[null,"SERIMATEC","Julien UGUZZOLI","VAL-DE-REUIL - 27100","commercial@serimatec-sn.com","02 32 61 34 64",null,null,null,null,"manutention et transitique robotisés - gestion de flux",null,null,null,"27100"]
[null,"SERIMATEC 2","Audrey FONTAINE","VAL-DE-REUIL - 27100","commercial@serimatec-sn.com","02 32 61 34 64",null,null,null,null,"manutention et transitique automatisée/robotisée",null,null,null,"27100"]
[null,"SERODEM","Franck DUMAINE","SAINT PIERRE D'ENTREMONT - 61800","serodem@serodem.fr","02 33 98 17 70",null,null,null,null,"mecanique de precision : usinage pièces unitaires - conception et réalisation outillages de presse - réalisation unités de taillage - machines spéciales - ingénierie mécanique",null,null,null,"61800"]
[null,"SERVALY","Valéry DAJON","GROSSOEUVRE - 27220","nathalie.eluecque@servaly.com","02 32 30 98 97",null,null,null,null,"sous-traitance en assemblage et câblage électrique et\nélectronique",null,null,null,"27220"]
[null,"SESA SYSTEMS","Magali LODIEU","CRIQUEBEUF SUR SEINE - 27340","ygrillot@sesa-systems.com","02 32 96 06 72",null,null,null,null,"lean manufacturing",null,null,null,"27340"]
[null,"SETEC EOCEN","CYRILLE LAPLANCHE-DUHAMEL","CHERBOURG OCTEVILLE - 50103","info.eocen@setec.com","01 82 51 50 50",null,null,null,null,"management et gestion de projet",null,null,null,"50103"]
[null,"SFC DESIGN 1","Antoine LOUVET","MESNILS-SUR-ITON - 27240","contact@sfcdesign.fr","06 12 40 67 20",null,null,null,null,"modélisation de model 3d, mise en plan 2d, administration\nd'outils (cao) et data management",null,null,null,"27240"]
[null,"SFC DESIGN 2","Florian SINET","MESNILS-SUR-ITON - 27240","contact@sfcdesign.fr","06 12 40 67 20",null,null,null,null,"modélisation de model 3d, mise en plan 2d, administration\nd'outils (cao) et data management",null,null,null,"27240"]
[null,"Steelcase","asoutiph@steelcase.com\n01 49 29 61 61\n","Direction commerciale\n23 Boulevard Jules Ferry, 75011 Paris","asoutiph@steelcase.com\n\n",null,null,null,null,null,"3101Z - Fabrication de meubles de bureau et de\nmagasin",45439205,null,"SAS","75011"]
[null,"SIATEL","HELENE GUILLOU","ROUEN - 76000","contact@siatel.com","02 78 77 13 00",null,null,null,null,"dématérialisation et digitalisation de processus documentaires, transformation numerique : accompagnement et edition logicielle",null,null,null,"76000"]
[null,"SYNCHRONIC",673864972,"393 RUE DES MANETS 76520 FRANQUEVILLE-SAINT-PIERRE",null,null,null,null,null,null,null,1000000,null,"SAS","76520"]
[null,"SIGMA MESURE","Frank FOULATIER","VERNON - 27200","infos@sigma-mesure.com","06 01 92 80 45",null,null,null,null,"maintenance préventive - analyse ultrasons sur hta htb",null,null,null,"27200"]
[null,"SMA","Sébastien KURTZ","SAINT-MARTIN D'ECUBLEI - 61300","contact@sma-laigle.fr","02 33 24 14 26",null,null,null,null,"usinage de pièces tous métaux, réalisation de pièces de maintenance, assemblage montage et mise au point, fabrication de convoyeurs et de machines spéciales",null,null,null,"61300"]
[null,"SNLD","BENJAMIN LEPICARD","LONGUEIL - 76860","snld@snld.fr","02 35 85 16 71",null,null,null,null,"chaudronnerie tuyauterie metallerie charpente",null,null,null,"76860"]
[null,"SOCAPS SA","Ryan VOLLARD","ROUEN - 76000","contact@socaps.fr","02 35 32 72 00",null,null,null,null,"assistance technique industrielle (ingénierie / renfort de production / installation / maintenance / optimisation / conseil)",null,null,null,"76000"]
[null,"SOCIÉTÉ NORMANDE DE SERVICES EN ELECTRONIQUE (SNSE)","Geoffrey MOUGEOT","FOUCARMONT - 76340","geoffrey.mougeot@snselec.com","06 31 31 95 78",null,null,null,null,"fabrication sous ensemble electronique - etude - prototypage",null,null,null,"76340"]
[null,"SOFREN","Olivier GREVELLEC","ST ROMAIN-DE-COLBOSC. - 76430","o.grevellec@sofrengroup.fr","06 07 61 31 03",null,null,null,null,"activite de prestation des services et bureau d’études",null,null,null,"76430"]
[null,"SONORCO","Philippe LECOEUR","CONDE-EN-NORMANDIE - 14110","tlevillain@sonorco.fr","07 87 36 03 03",null,null,null,null,"fabrication de vêtements de travail",null,null,null,"14110"]
[null,"STRUCTURE REALISATEUR D'ESPACES","Bruno PANTHOU","LISIEUX - 14100","b.panthou@agencestructure.com","02 31 62 95 55",null,null,null,null,"maîtrise d'œuvre, construction et rénovation bâtiment",null,null,null,"14100"]
[null,"TALKME","Olivier BELLET","ALENCON - 61000","nicolas.tessier@talkme.tech","06 37 49 98 59",null,null,null,null,"programmation de solutions informatique pour les industriels",null,null,null,"61000"]
[null,"TECHNI OUTILLAGES SAS","Karim KHOUIDER","INCHEVILLE - 76117","contact@techni-outillages.fr","02 27 28 21 30",null,null,null,null,"mécanique de précision, outillages de presses découpe et\nemboutissage, usinage de prototypes",null,null,null,"76117"]
[null,"TECHNODOC","Fréderic NAGA","CHERBOURG EN COTENTIN - 50130","contact@technodoc.fr","06 70 31 34 40",null,null,null,null,"ingenierie informationnelle",null,null,null,"50130"]
[null,"TRANSPORT NOYON","CEDRIC FULMES","MONDEVILLE - 14120","commerce.transports@noyon.eu","02 31 70 70 70",null,null,null,null,"transport",null,null,null,"14120"]
[null,"TREUIL CONSTRUCTION INGENIERIE","Damien MARECHAL","LE VIEIL EVREUX - 27930","accueil@tci-treuil.fr","02 32 62 18 62",null,null,null,null,"construction de batiment industriel cles en main. renovation energetique de batiment industriel",null,null,null,"27930"]
[null,"TSI NUCLEAIRE","Jean-Louis BILLARD","NEUVILLE LES DIEPPE - 76370","j-l.billard@orange.fr","06 01 78 77 09",null,null,null,null,"travaux et maintenance en tuyauterie",null,null,null,"76370"]
[null,"UCLER","taner UCLER","LE PETIT QUEVILLY - 76140","contact@cbr-batiment.fr","02 35 88 94 40",null,null,null,null,"renovation energetique",null,null,null,"76140"]
[null,"UNIFER ENVIRONNEMENT","Léo SANSON","LE HAVRE - 76600","clement.camoin@unifer.fr","06 51 05 89 17",null,null,null,null,"recyclage des déchets",null,null,null,"76600"]
[null,"USINAGE DIEPPOIS","Gaëtan MOTTE","ROUXMESNIL-BOUTEILLES - 76370","gaetan-motte@usinage-dieppois.fr","02 32 14 45 70",null,null,null,null,"sous-traitant mécanique de précision sur commande numérique, intégration, industrialisation,impression 3d.",null,null,null,"76370"]
[null,"VASSARD OMB MOBILIER","Benoit DUHEM","CAEN - 14000","direction@vassard-omb-mobilier.fr","02 31 46 41 41",null,null,null,null,"distributeur de mobilier de bureau",null,null,null,"14000"]
[null,"VFPI","Vincent DOCTEUR","ANGERVILLE L'ORCHER - 76280","contact@vfpi.fr","02 35 49 64 10",null,null,null,null,"façonnage matières plastiques et dérivés",null,null,null,"76280"]
[null,"WEEECYCLING","Mélanie BEDEL","TOURVILLE LES IFS - 76400","melanie.bedel@morphosis.fr","02 32 72 74 10",null,null,null,null,"récupération de déchets triés",null,null,null,"76400"]
[null,"YSEIS","caroline BRET","SAINT ETIENNE DU ROUVRAY - 76800","caroline.bret@yseis.com","06 67 48 69 36",null,null,null,null,"prevention, csps, formation",null,null,null,"76800"]

{"sheet":"Sourcing mis en forme","index":1,"n_rows":20,"n_cols":1,"rows_kept":20,"cut":false,"hidden":false,"merged":[[0,0,0,7]]}
["SOURCING"]
["Raison Social"]
["Contact"]
["Adresse"]
["Mail"]
["N° de Téléphone"]
["Local / National"]
["RCS"]
["Code Fournisseur"]
["NAF"]
["Activité"]
["Capital Social"]
["Date de Création"]
["Forme Juridique"]
["CA 2022 en k€"]
["CA 2021 en k€"]
["Nbre salariés"]
["Score Infolégale"]
["Seuil Dépendance k€"]
["Remarque/préconisations"]

{"sheet":"Objectif Report Auto Sourcing","index":2,"n_rows":2,"n_cols":20,"rows_kept":2,"cut":false,"hidden":false,"merged":[[0,13,0,18],[0,0,0,12]]}
["Automatique",null,null,null,null,null,null,null,null,null,null,null,null,"Manuel"]
["Raison Social","Contact","Adresse","Mail","N° de Téléphone","Local / National","RCS","Code Fournisseur","NAF","Activité","Capital Social","Date de Création","Forme Juridique","CA 2022 en k€","CA 2021 en k€","Nbre salariés","Score Infolégale","Seuil Dépendance k€","Remarque/préconisations",{"$f":"COUNTA('Base de données fournisseurs'!A8:A1048576)","v":0}]

{"sheet":"Feuil1","index":3,"n_rows":16,"n_cols":18,"rows_kept":16,"cut":false,"hidden":true,"merged":[[4,0,4,17],[7,17,8,17],[7,0,8,0],[7,1,8,1],[7,2,8,2],[7,3,8,3],[7,4,8,4],[7,9,7,12],[7,13,7,16],[7,5,7,8]]}
[]
[]
[]
[]
["BASE DE DONNEES FOURNISSEURS"]
["Inventaire de l'ensemble des fournisseurs contactés au moins une fois dans le cadre d'un sourcing, prospection .."]
[]
["Nom société ","Siret","NAF","Activité déclarée","Périmètre proposé ","Agence de proximité",null,null,null,"Contact commercial",null,null,null,"Contact technique ",null,null,null,"Code fournisseur si existant "]
[null,null,null,null,null,"Adresse ","Code postal ","Ville","Tel Agence","Nom ","Fonction","Tel.","Mail.","Nom","Fonction","Tel.","Mail."]
["INEO NORMANDIE",40988108300045,"4321A","Travaux d'installation électrique dans tous locaux","SME - ELEC","94 rue Louis Bleriot ",76230,"BOIS GUILLAUME","02 32 95 86 10 ","LEGOADEC Richard","Responsable d'activité"," 06 73 69 73 48","richard.legoadec@equans.com"]
["EIFFAGE ENERGIE SYSTEMES - CLEVIA OUEST",39846158200015,"4321A ","Travaux d'installation électrique dans tous locaux","SME - ELEC","ZI DU MARTRAY",14730,"GIBERVILLE","02 31 52 38 05","CHEVANCE Loïc","Directeur","33(0)6 14 26 40 93","Loic.CHEVANCE@eiffage.com","FREY Sylvain","Responsable Performance Energétique et Environnementale National","06 78 98 86 47","Sylvain.FREY@eiffage.com","FA1ZM"]
[]
[]
[]
[]
[null,null,null,"reporter"]

{"sheet":"Feuil2","index":4,"n_rows":469,"n_cols":14,"rows_kept":469,"cut":false,"hidden":true,"merged":[]}
["Périmètre","NOM","CONTACT","Adresse","MAIL","TEL: ","Local / National","RCS","Code fournisseur","NAF","Activite","K social","Date de Création","Forme"]
[null,"2H ENERGY",null,"ZI DE BABEUF PARC ACTIVITE HAUTES FALAISES 76400 SAINT-LEONARD - FRANCE",null,null,null,"LE HAVRE B 353 926 447","FA01J","2712Z - Fabrication de matériel de distribution et de commande électrique",null,2000000,"1990-02-19","5710 - Société par actions simplifiée (SAS)"]
[null,"2H ENERGY",null,"ZI DE BABEUF PARC ACTIVITE HAUTES FALAISES 76400 SAINT-LEONARD - FRANCE",null,null,null,"LE HAVRE B 353 926 447","FA01J","2712Z - Fabrication de matériel de distribution et de commande électrique",null,2000000,"1990-02-19","5710 - Société par actions simplifiée (SAS)"]
[null,"6NAPSE","Quentin PELLOIE","VERNON - 27200","6napse@groupe-6napse.com","02 32 21 19 30",null,null,null,null,"bureaux d'études en ingénierie et expertise en laboratoire"]
[null,"ABSCISSE GEOMETRE EXPERT",null,"11 PL DE L HOTEL DIEU 11-13 60000 BEAUVAIS",null,"03 44 48 05 89","LOCAL",53286268700029,null,"7112A ","Activité des géomètres",10000,"2011-07-01","SAS"]
[null,"AC2D","Joseph DUMONT","YERVILLE - 76760","ac2dtableau@gmail.com","02 35 96 41 55",null,null,null,null,"réalisation d'armoires électriques"]
[null,"ACCEO",null,"ACCEO Campus\n65, rue Jean Jacques ROUSSEAU\n92150 Suresnes\nMustapha OUDNI ","mustapha.oudni@acceo.eu","01 78 14 47 74","national",50028663800027,"FA4NG","7112B","Ingenierie, études techniques","1 965k€","2007-10-04","SAS"]
[null,"ACEREL","Geoffrey LIONNAIS","LOUVIERS - 27400","geoffrey.lionnais@acerel.fr","06 62 16 57 80",null,null,null,null,"installation électrique"]
[null,"ACFT CONSTRUCTION","Francesco TENUTA","BARC - 27170","contact@acft.fr","06 60 70 01 40",null,null,null,null,"fabrication de machine spéciales et équipements industriels"]
[null,"ACGM","Pierre Antoine BARON","ALIZAY - 27460","contact@acgm.fr","02 35 32 49 31",null,null,null,null,"fabrication et pose de matelas isolant thermique, acoustique et chauffant"]
[null,"ACTI VERT"," Mickaël ALEXANDRE","4 rue des Ondelles \nZAC les Ondelles 76240 Belbeuf","m.alexandre@activert.com",null,null,382769255,"Non Référencé","8130Z","Services d'aménagement paysager",150000,"1991-07-01","SAS"]
[null,"ACTI VERT",null,"4 rue des Ondelles \nZAC les Ondelles 76240 Belbeuf",null,null,null,382769255,"Non Référencé","8130Z","Services d'aménagement paysager",150000,"1991-07-01","SAS"]
[null,"ADIAMIX","Baptiste ESNAULT","LE SAP EN AUGE - 61470","b.esnault@adiamix.com","07 56 05 05 32",null,null,null,null,"usinage-découpe-pliage-assemblage-emboutissage"]
[null,"ADISTA","Davy VOIVENEL","COLOMBELLES - 14460","dvoivenel@adista.fr","07 60 42 99 04",null,null,null,null,"intégrateur de solutions voix ip, hébergement informatique ,\ncyber sécurité"]
[null,"ADVANCE ENGINEERING, GROUPE CERAP","Norbert GODEY","CHERBOURG OCTEVILLE - 50130","contact@advance-eng.fr","05 56 23 12 10",null,null,null,null,"assistance technique et ingénierie"]
[null,"AEI-ATMP","Jeremy PODEVIN","BAYEUX - 14402","contact@aei-atmp.fr","06 07 21 22 85",null,null,null,null,"mécano-soudure, usinage, chaudronnerie"]
[null,"AENTEC NORMANDIE-ETS","Mohamed KEBAILI","LE HAVRE - 76600","m.kebaili@aentec-groupe.com","09-53-06-23-08",null,null,null,null,"ingénierie et études techniques"]
[null,"AGENCE NORMANDIE TRADUCTION","Jacques CEREZO","ROUEN - 76750","jacques.cerezo@agencenormandietraduction.com","02 78 08 98 06",null,null,null,null,"ingénierie linguistique et documentaire"]
[null,"AGILEC",null,"9002 rue Octave Fauquet\nZA du buisson\n76350 Oissel",null,"02 35 68 54 82",null,"45342037400044",null,"4321A","Travaux d'installation électrique dans tous locaux",7500,"2004-04-02","SARL"]
[null,"AGILEC",null,"9002 RUE OCTAVE FAUQUET ZA DUI BUISSON 76350 OISSEL - FRANCE",null,null,null,"ROUEN B 453 420 374","/","4321A - Travaux d'installation électrique dans tous locaux",null,7500,"2004-04-02","5499 - Société à responsabilité limitée (SARL)"]
[null,"AGILEC",null,"9002 RUE OCTAVE FAUQUET ZA DUI BUISSON 76350 OISSEL - FRANCE",null,null,null,"ROUEN B 453 420 374","/","4321A - Travaux d'installation électrique dans tous locaux",null,7500,"2004-04-02","5499 - Société à responsabilité limitée (SARL)"]
[null,"AIR FRANCE","Claire MONNERIE","BOUGUENAIS - 44340",null,null,null,null,null,null,"voyages d'affaires"]
[null,"AIR8 SAS","Anthony BEAUDU","ST OUEN DE THOUBERVILLE - 27310","abeaudu@air8.fr","02 27 36 56 15",null,null,null,null,"travaux publics"]
[null,"ALARMCOM SARL","FREDERIC PENVERNE","IFS - 14123","alarmcom@wanadoo.fr","02 31 35 44 64",null,null,null,null,"protection des bien et des personnes"]
[null,"ALGPLAST","David AUVRAY","CARPIQUET - 14650","contact@algplast.fr","06 25 17 64 98",null,null,null,null,"chaudronnerie et tuyauterie plastique"]
[null,"ALISE ENVIRONNEMENT",null,"102 rue du Bois Tison\n76160 Saint-Jacques-sur-Darnétal\n",null,"02.35.61.30.19","local","ROUEN B 424 893 774",null,"7112B ","Ingénierie, études techniques",100000,"1999-11-03","SARL"]
[null,"ALIVE TECHNOLOGY",null,"186-191 186 rue Des Cinq Voies 59200 TOURCOING",null,null,null,"LILLE METROPOLE B 465 501 161",null,"4643Z","Commerce de gros (commerce interentreprises) d'appareils électroménagers",157500,"1965-01-01","SAS, société par actions simplifiée"]
[null,"ALUBAT NORMANDIE","Jean-Baptiste SAVALLE","TÔTES - 76890","jb.savalle@alubat-normandie.com","02 35 32 23 50",null,null,null,null,"menuiserie aluminium"]
[null,"AM ATELIER",null,"221 Impasse du Boulay, 76690 Sierville","Antoine.mazy@am-atelier.fr","0672.31.91.89"]
[null,"AMAZON EU SARL",null,"5 RUE PLAETIS L 2338 LUXEMBOURG - LUXEMBOURG",null,null,null,"Société étrangère immatriculée au RCS","FA6JP","4791A - Vente à distance sur catalogue général",null,37500,"2006-03-01","3120 - Société étrangère immatriculée au RCS"]
[null,"AMBIANCE BUREAU",null,"9 RUE DES NONETTES 77500 CHELLES",null,null,null,79090534300022,null,"4665Z","Commerce de gros (commerce interentreprises) de mobilier de bureau",null,null,"SARL"]
[null,"AMETHYSTE","Agnès GAILLARD","LE HAVRE - 76600","agnes.gaillard@amethyste.fr","06 07 79 79 89",null,null,null,null,"logiciels de gestion de l'intégrité des actifs industriels"]
[null,"AMT TRANSFERT",null,"7 RUE DE SAINTE HELENE \n75013 PARIS",null,null,null,390230878,"prospection","4942Z","Service de déménagement",null,null,"SAS"]
[null,"AN DIAG","Christophe AUDOUARD","SAINT ETIENNE DU ROUVRAY - 76800","an.diag@yahoo.fr","06 84 61 39 50",null,null,null,null,"specialistes amiante: analyses - diagnostic - strategies -\nprelevements air et materiaux"]
[null,"ANFRY SAS","Christophe DELABRE","DEAUVILLE - 14800","info@anfry.fr","02 31 88 25 13",null,null,null,null,"systèmes sécurité & sureté & smart home & borne de de recharge"]
[null,"ANOXA","Fabrice VITIS","VAL DE REUIL - 27100","f.vitis@anoxa.fr","06 72 42 29 64",null,null,null,null,"metallerie alu - acier - inox"]
[null,"ANTALVERT","Valerie BRETON","8 route de Rouen 76270 QUIEVRECOURT","info@antalvert.com",null,null,17180043,"Non Référencé","8130Z","Services d'aménagement paysager",100000,"1971-01-01","SAS"]
[null,"ANTE",33235612754,"5 BD INDUSTRIEL CS 50094 76300 SOTTEVILLE-LES-ROUEN\n",null,null,null,"ROUEN B 351 371 380 ",null,null,null,16000,null,"SARL"]
[null,"ANTEA","benoit LEREVEREND","COLOMBELLES - 14461","secretariat.caen@anteagroup.fr","02 31 46 12 46",null,null,null,null,"ingénierie"]
[null,"APAVE",null,"Marie BARRE\n191 rue de Vaugirard \n75015 PARIS","marie.barre@apave.com","02 35 52 61 64","national","527 573 141\n",null,"7120B","Analyses, essais et inspections techniques",184688,"2010-10-12","SA"]
[null,"APN","CHRISTIAN PENIN","MOULT - 14370","apndirection@orange.fr","06 26 63 92 60",null,null,null,null,"traitement de surfaces sur tous supports"]
[null,"APPLIPLAST TECHNOLOGIES - GROUPE WEDO","William JULIEN","ALENCON - 61000","w.julien@wedo.team","02 43 69 36 14",null,null,null,null,"injection plastique et sous-ensembles plastiques"]
[null,"AQUITEN",null,"23 QUAI DE PALUDATE 33800 BORDEAUX - FRANCE",null,null,null,"BORDEAUX B 752 974 691","/","7112B - Ingénierie, études techniques",null,12000,"2012-07-07","5499 - Société à responsabilité limitée (SARL)"]
[null,"ARDATEM","Stéphane QUENTIN","CHERBOURG EN COTENTIN - 50120","squentin@ardatem.fr","02 33 03 84 61",null,null,null,null,"assistance technique et prestations intellectuelles"]
[null,"ARENGI",null,"Lionel D'Harcourt\n15 rue la Fayette \n75009 PARIS",null,null,"National","PARIS B 519 564 645",null,"7022Z","Conseil pour les affaires et autres conseils de getsion","308k€","2010-01-21","SAS"]
[null,"ARKANCE SYSTEMS FRANCE","Claire CHAUSSEPIED","BOIS GUILLAUME - 76230","claire.chaussepied@arkance-systems.com","06 07 01 25 88",null,null,null,null,"platinum autodesk partner et acteur de la digitalisation de la construction, de l'infrastructure et de l'industrie"]
[null,"ARTEC","Anthony MURY","LE HOULME - 76770","contact@artec-application.com","02 35 37 89 77",null,null,null,null,"application de revêtements techniques"]
[null,"ARTELIA INDUSTRIE",null,"171 BD AMIRAL MOUCHEZ 76600 LE HAVRE - FRANCE",null,null,null,"LE HAVRE B 306 100 421","/","7112B - Ingénierie, études techniques",null,430000,"1976-01-01","5710 - Société par actions simplifiée (SAS)"]
[null,"ASPIROTECHNIQUE",null,"28 RUE JEAN JAURES 92800 PUTEAUX ",null,null,null,652011404,null,"8121Z","nettoyage courant des bâtiments",153000,null,"SA"]
[null,"ASTN","Romain LEJEUNE","LE HAVRE - 76620","criou@seine-estuaire.cci.fr","06 26 75 09 57",null,null,null,null,"tuyauterie soudure montage"]
[null,"ATALIAN PROPRETE",null,"110 rue de l'Ourcq 75019 PARIS",null,null,null,321253965,null,"8121Z","Nettoyage courant de bâtiments",18653720,null,"SAS"]
[null,"ATD - GROUPE EPC","Victor LAURENT","PETIT-QUEVILLY - 76140","vlaurent@atd-demolition.com","02 35 62 19 88",null,null,null,null,"désamiantage, démolition, déplombage, dépollution"]
[null,"ATELIER BAGLIN","Gérald GREGOIRE","ARGENTAN - 62200","atelier@baglin.fr","06 89 15 25 44",null,null,null,null,"soudure, rechargement et reparation de pieces mecaniques"]
[null,"ATELIER MECANIQUE ET TECHNIQUE - A.M.T","Cameron GRIEVE","SOULEUVRE EN BOCAGE - 14350","contact@amt.fr","02 31 67 33 40",null,null,null,null,"mecanique, outillage de precision, mecanique generale, fabrication de moules et assemblage, ajustage"]
[null,"ATELIER MICHEL TAILLIS",null,"Zone artisanale\n76890 TOTES",null,"02 35 32 69 54",null,"385 103 361 000 23",null,"3240ZZ","Fabrication de jeux et jouets",30000,"1992-04-29","SASU"]
[null,"ATELIER REGIONAL DE BOBINAGE","Jean-Charles CHOMBART","LE GRAND-QUEVILLY - 76 - 76120","rouen@atbgroupe.com","02 32 11 14 10",null,null,null,null,"bobinage de moteurs electrique"]
[null,"ATMOSPH'AIR SERVICES",null,"M.FISCHEL\n62 boulebard Davout\n75020 PARIS","jp.fischel@groupe-mongreville.fr","01 40 21 84 52","Local",82849893100017,"FA65F","3312Z","Réparation de machines et équipements mécaniques","820k€","2017-03-21","SAS"]
[null,"AUTOMATISMES CG","ERIC CHABOTY","TINCHEBRAY BOCAGE - 61800","eric.chaboty@wanadoo.fr","06 76 82 00 40",null,null,null,null,"constructeur de systèmes automatisés et robotisés"]
[null,"AUX DEMENAGEURS DE NORMANDIE",null,"39 RUE SAINT SEVER \n76100 ROUEN",null,null,null,453737710,"prospection","4942Z","Service de déménagement",null,null,"SARL"]
[null,"AUZOU JOSE GILBERT DANIEL",null,"2020 RTE DE BECQUIGNY 76570 LIMESY - FRANCE",null,null,null,"ROUEN A 382 197 374","/","4779Z - Commerce de détail de biens d'occasion en magasin",null,"NC","1991-01-01","1200 - Commerçant"]
[null,"AUZOU JOSE GILBERT DANIEL",null,"2020 RTE DE BECQUIGNY 76570 LIMESY - FRANCE",null,null,null,"ROUEN A 382 197 374","/","4779Z - Commerce de détail de biens d'occasion en magasin",null,"NC","1991-01-01","1200 - Commerçant"]
[null,"AVENEL SAS","\nAgence de proximité : \nAVENEL SAS\n1 Rue Lucien Fromage, \n76160 DARNETAL\n02 35 08 53 53\n\n\nContact pour l'AO:\nJonathan DROUIN\nj.drouin@avenel.fr","1 RUE LUCIEN FROMAGE 76160 DARNETAL - FRANCE",null,null,null,"ROUEN B 670 500 560","FA6ZV","4321A - Travaux d'installation électrique dans tous locaux",null,2000000,"1988-04-14","5710 - Société par actions simplifiée (SAS)"]
[null,"AVLS",null,"17B res Des Gemeaux 94260 FRESNES France",null,null,null,"CRETEIL B 377 934 278",null,"4743Z","Commerce de détail de matériels audio et vidéo en magasin spécialisé",50000,"1990-05-02","Société à responsabilité limitée (sans autre indication)"]
[null,"AXOTOITS","Rodolphe LEJEUNE","DÉVILLE-LÈS-ROUEN - 76250","slaisney@axotoits.fr","06 43 49 85 58",null,null,null,null,"maintenance et entretien de tous types de toitures"]
[null,"AZ BOX EMBALLAGES","Olivier MAUCOTEL","LOUVERSEY - 27190","contact@az-box.fr","02 32 58 20 10",null,null,null,null,"negoce en emballages industriels"]
[null,"BASILLE FLEURS",null,"40 rue de la mare du Parc\n76000","\ncontact@basillefleurs.fr","02 35 72 04 78",null,"450 401 971 000 12",null,"4776Z"," Commerce de détail de fleurs, plantes, graines, engrais, animaux de compagnie et aliments pour ces animaux en magasin spécialisé",7500,"2003-11-13","SARL"]
[null,"Bene","Jean-Claude VERRAEST\nSales Manager Regions\n",null,"\nMailto : jean-claude.verraest@bene.com  \n"]
[null,"Bene","Jean-Claude VERRAEST\nSales Manager Regions\nBENE GmbH \nOffice adress : 30 rue Galilée, 75116 PARIS\nMobile : +33-(0)614-947-589 - Bureau : +33-(0)156-900-080\nMailto : jean-claude.verraest@bene.com  Web : http://bene.com\n"]
[null,"BGI Cartes"," +33 02 99 00 89 97","BG Ingénierie\n4 rue Paul Langevin\n35220 Châteaubourg\nFrance",null,null,null,null,null,null,null,78400,null,"SARL"]
[null,"BGI Cartes","Typhaine VANNIER\n\nvannier.typhaine@bginge.com\n\n06 16 05 08 83","4 RUE PAUL LANGEVIN 35220 CHATEAUBOURG",null,null,null,"RENNES B 422 808 907 ",null,null,"Lot 1 - Badges",null,null,"SARL"]
[null,"BIELEC ECLA INGENIERIE",null,"10 rue Andreï Sakharov\nParc d’activités technologiques de la Vatine\n76130 Mont-Saint-Aignan","bielec@bielec.fr","02 35 98 16 18","local","ROUEN B 500 450 689",null,"7112B","Ingénierie, études techniques",10000,"2007-10-03","SARL"]
[null,"BLACHERES",null,"t.bouland@blachere-illumination.com",null,"06 70 20 70 15"]
[null,"BMM","FRANCISCO MARTINS","GOURNAY EN BRAY - 76220","bmm.direction@orange.fr","02 35 09 36 30",null,null,null,null,"mécanique de précision"]
[null,"BORFLEX","Yannick BOCK","EQUEURDREVILLE-HAINNEVILLE - 50120","y.bock@borflex.fr","02 33 03 50 20",null,null,null,null,"fabrications en caoutchouc"]
[null,"BOUYGUES ENERGIES ET SERVICES",null,"19 rue Stephensin\n78180 MO?TIGNY LE BRETONNEUX",null,"01 80 61 50 000","National","775 664 873 032 63"," - ","4321A",null,"50 574 k€","1955-07-19","SASU"]
[null,"BRANGEON TRANSPORTS ET LOGISTIQUE","Hassan EL HADAOUI","SAINT MACLOU - 27210","transport@brangeon.fr","02 41 72 11 59",null,null,null,null,"transports et logistique"]
[null,"BRUNO DOLIS",null,"ZA Lionne Chazeau\n302 rue Gay Lussac\n33127 St Jean d'ILLAC","contact@bruno-dolis.com","05 57 26 99 67"]
[null,"BTSI","YANNICK LEBREC","SOLIERS - 14540","direction@btsi.fr","02 31 08 68 51",null,null,null,null,"tolerie fine"]
[null,"BUREAU VERITAS CONSTRUCTION",null,"Laurent MERLIERE","laurent.merliere@bureauveritas.com","06 85 82 27 76","national","NANTERRE B 790 182 786",null,"7120B","Analyses, essais et inspections techniques",15800,"2012-12-24","SASU"]
[null,"BUREAU VERITAS EXPLOITATION",null,"8 CRS DU TRIANGLE 92800 PUTEAUX - FRANCE",null,null,null,"NANTERRE B 790 184 675","FA6MH","7120B - Analyses, essais et inspections techniques",null,36315050,"2012-12-20","5710 - Société par actions simplifiée (SAS)"]
[null,"BURODOC",null,"2, RUE RICHARD WADDINGTON 76160 DARNÉTAL",null,null,null,398805978,null,"4665Z","Commerce de gros (commerce interentreprises) de mobilier de bureau\n",15244.9,"1994-12-13","SARL"]
[null,"Burod'oc","Benjamin SEMARD\n","2 RUE RICHARD WADDINGTON 76160 DARNETAL","\nbenjamin.semard@burodoc.com",null,null,"ROUEN B 398 805 978",null,null,"4665Z - Commerce de gros (commerce\ninterentreprises) de mobilier de bureau",15245,null,"SARL"]
[null,"Burod'oc","Benjamin SEMARD\n06 20 55 81 85\nbenjamin.semard@burodoc.com","2 RUE RICHARD WADDINGTON 76160 DARNETAL",null,null,null,"ROUEN B 398 805 978",null,null,"4665Z - Commerce de gros (commerce\ninterentreprises) de mobilier de bureau",15245,null,"SARL"]
[null,"BURO'DOC",null,"2 RUE RICHARD WADDINGTON 76160 DARNETAL",null,null,null,39880597800010,null,"4665Z","Commerce de gros (commerce interentreprises) de mobilier de bureau",15245,null,"SARL"]
[null,"BURONOMIC",null,"RTE CHAMPLAIN BP 60100 14603 HONFLEUR CEDEX",null,null,null,32140717300012,null,"4665Z","Commerce de gros (commerce interentreprises) de mobilier de bureau",6100000,null,"SAS"]
[null,"BUROSYS",null,"1095 RTE DE PARIS 76520 FRANQUEVILLE-SAINT-PIERRE ",null,null,null,33798850500026,null,"4665Z","Commerce de gros (commerce interentreprises) de mobilier de bureau",250000,null,"SAS"]
[null,"Burosys","Christophe RITTER    \n","1095 ROUTE DE PARIS 76520 FRANQUEVILLE SAINT\nPIERRE","\n\n\ncritter@burosys.fr\n",null,null,"ROUEN B 337 988 505",null,null,"4665Z - Commerce de gros (commerce\ninterentreprises) de mobilier de bureau",250000,null,"SASU"]
[null,"Burosys","Christophe RITTER    \nBurosys\n1095, rte de Paris\n76520 FRANQUEVILLE ST PIERRE\nTél.    02 32 86 86 81  \nPort.  06 03 62 88 73\nFax   02 32 86 05 55\ncritter@burosys.fr\n","1095 ROUTE DE PARIS 76520 FRANQUEVILLE SAINT\nPIERRE",null,null,null,"ROUEN B 337 988 505",null,null,"4665Z - Commerce de gros (commerce\ninterentreprises) de mobilier de bureau",250000,null,"SASU"]
[null,"CAEN COUVERTURE","VINCENT MICHEL","MONDEVILLE - 14120","info@caencouverture.fr","02 31 35 17 65",null,null,null,null,"couverture etancheite zinguerie"]
[null,"CALESTOR PERYWAY",null,"14 RUE ALEXANDRE 14 AU 38 92230 GENNEVILLIERS - FRANCE",null,null,null,"NANTERRE B 393 858 543","FA4D7","4651Z - Commerce de gros (commerce interentreprises) d'ordinateurs, d'équipements informatiques périphériques et de logiciels",null,230000,"1994-02-01","5710 - Société par actions simplifiée (SAS)"]
[null,"CALOMATECH SAS","Breton GWENAEL BRETON","GIBERVILLE - 14730","gwenael.breton@calomatech.fr","06 38 51 72 16",null,null,null,null,"fabrication de matelas isolants thermiques"]
[null,"CARAY",null,"12 AV DE L ILE DE FRANCE  95310 SAINT OUEN L'AUMONE",null,null,null,55206982500024,null,"4665Z","Intermédiaires du commerce en meubles, articles de ménage et quincaillerie",1400000,null,"SAS"]
[null,"CEPIC","Jean-Marc LETONDOT","SAINT ETIENNE DU ROUVRAY - 76800","marie.spriet@cepic.fr","02 32 82 37 82",null,null,null,null,"fabriquant de solutions complètes pour les problèmes de\ncorrosion"]
[null,"CG2I","Thomas MECHEMACHE","YVETOT - 76190","contact@cg2i.org","03 21 07 72 42",null,null,null,null,"concepteur et constructeur de bâtiments professionnels, contractant général, maîtrise d'œuvre, ingénierie fluides"]
[null,"CHATEL TRANSPORTS GROUPE ZIEGLER","Pauline TRUSSART","SAINT VIGOR LE GRAND - 14400","pauline.trussart@zieglergroup.com","02 31 51 15 15",null,null,null,null,"transport"]
[null,"CHEVALIER DIAG","Nicolas CRAMET","CHERBOURG EN COTENTIN - 50100","n.cramet@chevalierdiag.fr","02 33 52 64 30",null,null,null,null,"diagnostic des polluants du bâtiment (amiante ; plomb;\nradon...)"]
[null,"CIDER",null,"15 SQ EDOUARD VII 75009 PARIS",null,null,null,78879710800032,null,"4615Z","Intermédiaires du commerce en meubles, articles de ménage et quincaillerie",710000,null,"SAS"]
[null,"Clen","Patrick AMRAM\n","16 Zone Industrielle\nBP 30140\n37500 Saint-Benoît-la-Forêt\nFrance","patrick.amRAM@clen.fr\n",null,null,"TOURS B 444 540 124",null,null,"6820B - Location de terrains et d'autres biens immobiliers",10207835,null,"SA"]
[null,"CLIMAGINE",null,"M.TIXIER\n26 rue du docteur Heulin\n75017 PARIS","climagine@wanadoo.fr","06 07 40 74 40","Local",35398280400034,"FA10B","4322B","Travaux d'installation d'équipements thermiques et de climatisation","9k€","1990-03-20","SARL"]
[null,"CLIMATICIENS DE France",null,"M. SEMBENINI\n32 rue arago 92800 PUTEAUX","direction@climaticiens.net","01 71 13 00 70\n06 09 06 90 00","National",44539266500037,"FA10D","4322B"," travaux d'installation d'équipements thermiques et de climatisation","319K€","2009-06-05","SAS"]
[null,"CLOSYSTEM","Amaury CLAISE","CARPIQUET - 14650","contact@closystem.com","02 31 15 51 31",null,null,null,null,"clôtures - portail - contrôle d'accès - serrurerie - métallerie"]
[null,"COELYS",null,"36 - 38 Avenue Salvador Allendé\nParc Mykonos - Bâtiment F\n60 000 Beauvais\n",null,"03 448 448 60","national","BEAUVAIS B 450 894 258",null,"7112B ","Ingénierie, études techniques",10500,"2003-12-01","SARL"]
[null,"CO-JAMET-G","Marc GUIGUEN","VALLIQUERVILLE - 76190","co-jamet@wanadoo.fr","02 35 56 20 40",null,null,null,null,"menuiserie agencement peinture"]
[null,"COMPAGNIE GENERALE DE LOCATION",null,"360 RTE DE TOULOUSE 33130 BEGLES - FRANCE",null,null,null,"BORDEAUX B 775 582 026","/","7732Z - Location et location-bail de machines et équipements pour la construction",null,220000,"1963-01-01","5599 - SA à conseil d'administration (SA)"]
[null,"COMPLIANCE IN",null,"Apolline BUCHLER\n12 place de la defense \n92974 PUTEAUX","abuchler@compliance-in.com","06 86 08 70 90","National","NANTERRE B 844 925 511",null,"7022Z","Conseil pour les affaires et autres conseils de getsion",null,"2018-12-12","SASU"]
[null,"CONCEPT ISOLATION","Sébastien HONORÉ","DOUDEVILLE - 76560","contact@concept-isolation.com","09 70 19 16 76",null,null,null,null,"calorifuge, ventilation, chambre froide, porte industrielle"]
[null,"CONDI OUEST","Arthur VISENTIN","MENILLES - 27120","emballage@condi-ouest.com","02 32 37 30 88",null,null,null,null,"fabrication d'emballages en matières plastiques"]
[null,"COREP ROUEN",null,"Université de Rouen 11, rue Lavoisier 76130 - Mont-St-Aignan","rouen@corep.fr","02 32 10 05 74","LOCAL",328730361,null,"8219Z ","Photocopie, préparation de documents et autres activités spécialisées de soutien de bureau","37k€","1983-11-15","SASU"]
[null,"COREP ROUEN",null,"Université de Rouen 11, rue Lavoisier 76130 - Mont-St-Aignan","rouen@corep.fr","02 32 10 05 74","LOCAL",328730361,null,"8219Z ","Photocopie, préparation de documents et autres activités spécialisées de soutien de bureau","37k€","1983-11-15","SASU"]
[null,"COSEBA",null,"57 rue Benoit Malon, 94250 Gentilly","albin.angeli@coseba.fr","01 45 46 45 66","national","CRETEIL B 408 197 002",null,"7112B","Ingénierie, études techniques",20000,"1996-07-05","SAS"]
[null,"CPM INDUSTRIES","MIKE HAUTERS","SAINT ROMAIN DE COLBOSC - 76430","mike.hauters@cpmindustries.fr","02 35 47 55 19",null,null,null,null,"expert en sur mesure industriel"]
[null,"CRAM",null,"203 rue Demidoff\n76600 LE HAVRE\nFabien FLOURY","ffloury@cram.fr","02 35 24 25 26","National","788 212 660 000 13","FA1SX","3530Z",null,"1 428k€","1960-06-10","SAS"]
[null,"CREAVERT","Eliott JEANNINGROS","4000 route de Neufchatel, Le nouveau monde 76230 Quincampoix","bet@creavert.fr",null,null,329805279,"FA1R0","8130Z","Services d'aménagement paysager",40000,"1984-06-19","SA"]
[null,"CREAVERT",null,"4000 route de Neufchatel, Le nouveau monde 76230 Quincampoix",null,null,null,329805279,"FA1R0","8130Z","Services d'aménagement paysager",40000,"1984-06-19","SA"]
[null,"CREDIT AGRICOLE NORMANDIE","Matthieu NOVELIN BALDINI","CAEN - 14000","matthieu.novelinbaldini@ca-normandie.fr","02 31 55 61 11",null,null,null,null,"banque"]
[null,"CRIT","Grégory BRIAND","VAL-DE-REUIL - 27100",null,"02 32 09 35 50",null,null,null,null,"activités liées à l'emploi"]
[null,"DACHSER","Sandrine BIANNIC","SAINT ETIENNE DU ROUVRAY - 76800","sandrine.biannic@dachser.com","02 35 65 72 56",null,null,null,null,"transports routiers europeens de marchandises - logistique"]
[null,"DALKIA",null,"37 av maréchal de lattre de tassigny BP 38\n59350 ST ANDRE LES LILLES","bruno.bellamy@dalkia.fr\nsandy.elachaq@dalkia.fr","03 20 63 42 42\n 06 01 17 12 85","National","456 500 537 000 18","FA1SX","3530Z",null,"220 047k€","1956-02-06","SA"]
[null,"DALKIA SPONSOR","Soazic MARY","SAINT ANDRE LEZ LILLE - 59350",null,"03 20 63 42 42",null,null,null,null,"services energétiques"]
[null,"DARTY GRAND OUEST",null,"32 RUE DE COULONGE PARC TERTIAIRE ERAUDIERE 44300 NANTES - FRANCE",null,null,null,"NANTES B 339 403 933","FA4H7","4754Z - Commerce de détail d'appareils électroménagers en magasin spécialisé",null,30612,"1986-11-03","5202 - Société en nom collectif (SNC)"]
[null,"DB SCHENKER FRANCE","parmentier CLEMENT","SAINT ETIENNE DU ROUVRAY - 76800","clement.parmentier@dbschenker.com","07 69 14 37 10",null,null,null,null,"transport routier"]
[null,"DECA PROPRETE",null,"3 rue Du Chateau De Bel Air 44470 CARQUEFOU ",null,null,null,408949675,null,"8121Z","nettoyage courant des bâtiments",145000,null,"SAS"]
[null,"DEEPKI",null,"28 BD ROCHECHOUART 75018 PARIS 18E ARRONDISSEMENT - FRANCE",null,null,null,"PARIS B 804 763 670","/","6209Z - Autres activités informatiques",null,39541,"2014-09-23","5710 - Société par actions simplifiée (SAS)"]
[null,"DEF","LAURENT AGASSE","ISNEAUVILLE - 76230","laurent.agasse@def-online.com","06 88 51 68 05",null,null,null,null,"expert en solution de système de sécurité incendie"]
[null,"DEKOM",null,"14 rue Laplace 33700 MERIGNAC France",null,null,null,"BORDEAUX B 795 070 283",null,"4743Z","Commerce de détail de matériels audio et vidéo en magasin spécialisé",50000,"2013-09-03","SAS, société par actions simplifiée"]
[null,"DEKRA INDUSTRIAL",null,"19 RUE STUART MILL ZI MAGRE 87008 LIMOGES CEDEX - FRANCE",null,null,null,"LIMOGES B 433 250 834","FA375","7120B - Analyses, essais et inspections techniques",null,25060000,"2000-10-01","5710 - Société par actions simplifiée (SAS)"]
[null,"DEKRA INDUSTRIAL SAS","Romain LEFRANCOIS","CAEN - 14000","romain.lefrancois@dekra.com","06 11 23 09 85",null,null,null,null,"bureau de contrôle"]
[null,"DEKRA INDUSTRIAL SAS","Elise MALA","MONT-SAINT-AIGNAN - 76137","alexia.bernardo@dekra.com","06 24 57 31 46",null,null,null,null,"bureau de contrôle"]
[null,"DEKRA INDUSTRIAL SAS",null,"Ludovic LENDORMY\nAgence Normandie\n39 rue Raymon Aron\nCS 70406\n76137 MONT ST AIGNAN","ludovic.lendormy@dekra.com","02 35 12 83 20\n06 25 16 67 47","national","LIMOGES B 433250834",null,"7120B","Analyses, essais et inspections techniques",25060,"2000-10-24","SAS"]
[null,"DEMECO TRANSFERT\nNASSE ET MARCHAND TRANSFERT",null,"5 RUE DE LA BATARDIERE \n45140 SAINT JEAN DE LA RUELLE",null,null,null,410307615,"prospection","4942Z","Service de déménagement",null,null,"SARL"]
[null,"DEMEPOOL",null,"5 RUE GALLIENI \n92230 GENNEVILLIERS",null,null,null,303972061,"prospection","4942Z","Service de déménagement",null,null,"SA"]
[null,"DEMVAL",null,"57 AVENUE DE BRETAGNE\n76100 ROUEN ",null,null,null,507982114,"A1UT","4941A","Transport routier de fret interurbain",null,null,"SARL"]
[null,"DENIOS",null,"HAM DU VAL 27550 NASSANDRES SUR RISLE",null,null,null,39366517900031,"non référencé","2511Z","Fabrication de structures métalliques et de parties de structures",500000,null,"SARL"]
[null,"DEPANNAGE RENOVATION ELECTRICITE",null,"40 RUE EMILE ZOLA 76300 SOTTEVILLE-LES-ROUEN - FRANCE",null,null,null,"ROUEN B 498 862 515","/","4321A - Travaux d'installation électrique dans tous locaux",null,10000,"2007-06-25","5499 - Société à responsabilité limitée (SARL)"]
[null,"DEREMAUX","Stéphane DEREMAUX","AUMALE - 76390","sd.deremaux@deremaux.net","02 35 94 60 97",null,null,null,null,"construction mecanique"]
[null,"DERICHEBOURG PROPRETE",null,"6 ALLEE DES COQUELICOTS 94470 BOISSY SAINT LEGER ",null,null,null,702021114,null,"8121Z","nettoyage courant des bâtiments",20000000,null,"SAS"]
[null,"DEVATECH","SARA HEFNAOUI","ELBEUF - 76500","contact@devatech.fr","09 88 57 10 00",null,null,null,null,"integration & prestations intellectuelles"]
[null,"DGC","LAURENT GUIDEZ","PETIT COURONNE - 76650","laurent.guidez@dgcnormandie.com","02 32 18 42 61",null,null,null,null,"distribution de pompe à chaleur, système de ventilation et climatisation pour l'industrie, le tertiaire et le logement"]
[null,"DHL INTERNATIONAL EXPRESS","Nacera LAIDAOUI\n","Bat A  Le Mermoz\n53 Av Jean Jaures\n93350 LE BOURGET","nacera.laidaoui@dhl.com",null,"National",494956774,null,"4941B","Transports routiers de fret de proximité","19 347k€","2007-03-21","SAS"]
[null,"DIMOE","Sylvain GOUFFIER","LE HAVRE - 76600","contact@dimo-energie.fr","09 87 15 65 13",null,null,null,null,"amo énergies et be cvc"]
[null,"DINACTIS","Joris GAHÉRY","LILLEBONNE - 76170","contact@dinactis.com","02 35 38 44 27",null,null,null,null,"installation de système de ventilation, climatisation et\ndépoussiérage industriel"]
[null,"Dionet",null,"84 RUE MAURICE BEJART 34080 MONTPELLIER - FRANCE","info@dionet.fr",null,"National",827763004,null,"8121Z",null,5000,"2016-09-23","SARL"]
[null,"DLE OUEST","Pascal LUMINEAU","GRAND COURONNE - 76530","dleouest.normandie@eiffage.com","02 35 69 10 99",null,null,null,null,"travaux de canalisation"]
[null,"DML BOVIS","VANESSA PRAT","BOURGUEBUS - 14540","dml@bovis.fr","02 31 72 50 05",null,null,null,null,"levage/ manutention/ transfert industriel"]
[null,"DMP","Nicolas CHAUVIN","CUVERVILLE - 14780","contact@dmp-industrie.com","02 31 35 81 60",null,null,null,null,"développement de machines spéciales et usinage"]
[null,"DUHAMEL LOGISTIQUE","Florian GERBRON","VAL DE REUIL - 27100","n.nollet@duhamel-logistique.fr","02 32 09 32 65",null,null,null,null,"logistique - conditionnement - preparation de commandes -\ntransports"]
[null,"DUHAMEL SARL","Frédéric DUHAMEL","AUTIGNY - 76740","qualite@duhamel-charpentes.com","02 35 57 25 68",null,null,null,null,"fabrication et pose de charpentes lamellé-collé"]
[null,"DUMONT MÉTAL INDUTRIE","Guillaume ADE","SAINT NICOLAS D'ALIERMONT - 76510","g.ade@amgeindustrie.fr","02 35 04 24 65",null,null,null,null,"atelier tôlerie, chaudronnerie"]
[null,"DUVAL",33235614444,"RUE GUSTAVE EIFFEL ESPACE LEADER 76235 BOIS-GUILLAUME CEDEX - France",null,null,null,"ROUEN B 560 501 264 ",null,null,null,258240,null,"SASU"]
[null,"DUVAL ELECTRICITE","\nAgence de proximité : \nDUVAL ELECTRICITE\nrue Gustave Eiffel,\n76230 BOIS GUILLAUME \n02 35 61 44 44\n\n\nContact pour l'AO:\nSéverine VAUTHIER\nsmancelle@duval-electricite.fr","RUE GUSTAVE EIFFEL ESPACE LEADER 76235 BOIS-GUILLAUME CEDEX - FRANCE",null,null,null,"ROUEN B 560 501 264","FA1X1","4321A - Travaux d'installation électrique dans tous locaux",null,258240,"1956-01-01","5710 - Société par actions simplifiée (SAS)"]
[null,"ECOMETHODES SMEE","Ludovic PIERRE","ÉTERVILLE - 14930","ac.trochu@ecomethodes.fr","06 42 64 30 40",null,null,null,null,"efficacité énergétique / économies d'eau et d'énergie /\nvalorisation primes cee"]
[null,"ECOSYSTEM CLEON 4.0","Annick AUGER"," - "]
[null,"EDC TRANSMOUSS","Romaric DUSSUS","MORTAGNE AU PERCHE - 61400","romaric.dussus@edc-transmouss.fr","06 59 75 28 79",null,null,null,null,"emballages carton sur mesure"]
[null,"EDF",null,"22 Avenue de Wagram\n75008 PARIS","david.hamelin@edf.fr","06 69 67 92 43","National",552081317,null,"3511Z","Production d'électricité","1 505 133k€","1955-06-17","SA"]
[null,"EDF EPR2","Laurent JAVELLE"," - "]
[null,"EDSVI","anthony ROUILLARD","MONTIVILLIERS - 76290","a.rouillard@edsvi.fr","02 35 54 53 30",null,null,null,null,"amenagement de vehicule"]
[null,"EG - ENTREPRISES EN GROUPEMENT","STEPHANE CLEMENT","LE HAVRE - 76600","stephane.clement@egsas.fr","06 72 20 74 13",null,null,null,null,"développement commercial de sociétés de services à\nl'industrie"]
[null,"EIFFAGE","BERQUET (philippe.berquet@eiffage.com)\n\n(06) 17 90 07 99","3 PL DE L EUROPE 78140 VELIZY-VILLACOUBLAY",null,null,null,"VERSAILLES B 709 802 094",null,null,"Lot 1 - Badges\nLot 2 - Migration de la technologie de carte d'accès\nLot 3 - Maintenance",null,null,"SA"]
[null,"EIFFAGE ENERGIE",null,"M.BERQUET\nZAC  du clos de la tête rue jacques prévert 14730 GIBERVILLE","philippe.berquet@eiffage.com","02 31 52 37 00","National","Normandie 39846158200015\nSiège 775673031","FA1ZM","4321A","travaux d'installation électrique dans tous les locaux","92 616k€","1931-05-07","SASU"]
[null,"EIFFAGE TRAVAUX","M.BERQUET\nzac du clos de la tête rue, jacques prevert, 14730 GIBERVILLE\n",null,"philippe.berquet@eiffage.com","02 31 52 37 00\n06 17 90 07 99","National","Normandie 39846158200015\nSiège : 775673031","FA1ZM","4321A","Travaux d'installation électrique dans tous locaux ","92 616K€","1931-05-07","SASU"]
[null,"ELAIRGIE","DAVID MORENO","LE CASTELET - 14540","caen@elairgie.fr","02 31 79 89 91",null,null,null,null,"genie climatique"]
[null,"ELIOR SERVICES",null,"9-11 Allée de l'Arche 92400 COURBEVOIE",null,null,null,303409593,null,"8121Z","nettoyage courant des bâtiments",41073970,null,"SAS"]
[null,"elliaden",null,"11 RUE MARJOLIN 92300 LEVALLOIS-PERRET - France",null,null,null,"NANTERRE B 484 132 337",null,null,null,300000,null,"EURL"]
[null,"EMANOR","GUILLAUME LANGRENE","ST ROMAIN DE COLBOSC - 76430","contact@emanor.fr","06 17 41 75 70",null,null,null,null,"ingénierie et maintenance industrielle, réalisation de\nmachines spéciales, cobotique, projet clés en main"]
[null,"EMPACABOIS","Clémence MARQUES","PACY-SUR-EURE - 27120","commercial@empacabois.fr","06 33 87 75 48",null,null,null,null,"fabrication de carton ondulé, conditionnement à façon, logistique"]
[null,"ENDEL","EDOUARD CHAUVRIS","CLEON - 76410","edouard.chauvris@altradendel.com","02 32 93 82 60",null,null,null,null,"chaudronnerie - tuyauterie - electromécanique - robinetterie\n- machine spéciale"]
[null,"ENGIE",null,"M.BARRE\n2 bis rue d'alembert BP281\n76140 PETIT QUEVILLY\n+\nSiège  : 1 place Samule de champlain 92400 COURBEVOIE","nicolas.barre@engie.com","01 44 22 00 00","National",54210765113030,"FA10W","3523Z","Commerce de combustible  gazeux par conduites","2 435 285k€","1954-12-24","SA"]
[null,"ENGIE",null,"1 Place Samuel de Champlain\n92400 COURBEVOIE\nParc d'activités de la Bretèque 94 rue Louis Blériot\n76230 Bois Guillaume","thomas.poupardin@engie.com","06 18 88 29 28","National",542107651,null,"3523Z","Commerce de combustibles gazeux par conduites","2 435 285k€","1954-12-24","SA"]
[null,"ENGIE","thomas.poupardin@engie.com\n\n\nTél: +33 (0)6 18 88 29 28, ","Parc d’activités de la Bretèque – 94 rue Louis Blériot\n76230 Bois Guillaume\n",null,null,null,"NANTERRE B 542 107 651",null,null,"Lot 1 - Badges\nLot 2 - Migration de la technologie de carte d'accès\nLot 3 - Maintenance",null,null,"SA"]
[null,"ENGIE COFELY","2 rue d'Alembert\n76140 LE PETIT QUEVILLY\nJean Paul LEGRAND",null,"jean-paul.legrand@engie.com","06 63 22 03 10","Local",55204695530047,null,"3530Z","Production et distribution de vapeur et d'air conditionné",null,"2010-04-27","SA"]
[null,"ENGIE ENERGIE SERVICES","Pascal LECREUX","PETIT-QUEVILLY - 76140","pascal.lecreux@engie.com","06 74 33 82 52",null,null,null,null,55204695503047]
[null,"ENGIE INEO ",null,"1 Place Samuel De Champlain faubourg de l'arche\n92930 Courbevoie Cedex",null,"05 61 17 15 00",null,"55210879701117",null,"4321A","Travaux d'installation électrique dans tous locaux",106637716,null,"SA"]
[null,"ENI",null,"24 rue jacques ibert\n92300 LEVALLOIS PERRET\nCédric DRABOWICZ","mathieu.dehaut@eni.com","06 66 73 50 67","National",451225692,"FA5E6","3523Z","Commerce de combustibles gazeux par conduites","29 937k€","2003-12-16","SA"]
[null,"ENRI","Stéphane BILLON","EPAIGNES - 27260","contact@enri.fr","02 32 57 87 89",null,null,null,null,"fab de rouleaux industriels revetements en elastomere et\ntoutes pieces techniques"]
[null,"ENTERPRISE GEORGES LANFRY",null,"18 IMP BARBET 76250 DEVILLE-LES-ROUEN - France",null,null,"LOCAL",34892274100049,null,4391,"travaux de charpente",1440000,"1988-07-12","SAS"]
[null,"ENTREPRISE FOUCHARD","Avenue de Verdun\n50200 COUTANCES\nrue de la Grande Epine\n78600 St ETIENNE DU ROUVRAY\nMichael GARNIER",null,"fouchard@fouchard.fr","02 33 76 61 61","Local",37773087400015,null,"4322B","Travaux d'installation d'équipements thermiques et de climatisation","700k€","1990-04-25","SAS"]
[null,"ENVIRONNEMENT SERVICE","Sébastien LECHEVALLIER","2600 route de Neufchatel 76230 QUINCAMPOIX","environnement-service@orange.fr",null,null,352563241,"Non Référencé","8130Z","Services d'aménagement paysager",150000,"1989-11-20","SARL"]
[null,"ENVOYE SPECIAL","Sabrina GOMIS","LESQUIN - 59812","e.moya@envoye-special.fr","06 19 22 70 94",null,null,null,null,"transport routier de marchandises"]
[null,"EODD",null,"171 RUE LEON BLUM 171-173 69100 VILLEURBANNE",null,"04 78 82 39 32","national","LYON B 383 812 666",null,"7112B ","Ingénierie, études techniques",360000,"1991-11-18","SAS"]
[null,"Eol","Pascal PHILIPPE\n","17 RUE J ET ETIENNE DE MONTGOLFIER CS 40004\n93110 ROSNY SOUS BOIS","pascal.philippe@eol-group.net\n",null,null,"BOBIGNY B 380 937 169",null,null,"3101Z - Fabrication de meubles de bureau et de\nmagasin",3000000,null,"SASU"]
[null,"EOS France (CONTENTIA)","Nicolas SCHNEIDER \nThomas COLLINEAU ","74 RUE DE LA FEDERATION 75015 PARIS 15"," nicolas.schneider@eos-france.com\nThomas.COLLINEAU@eos-france.com ",null,null,488825217,null,"8291Z","Activités des agences de recouvrement de factures et des sociétés d'information financière sur la clientèle",18300000,null,"SAS"]
[null,"EPOXIA",null,"6 AV CHARLES DE GAULLE 78150 LE CHESNAY-ROCQUENCOURT",null,null,null,495005928,null,"4665Z","Commerce de gros (commerce interentreprises) de mobilier de bureau",37774,null,"SARL"]
[null,"ESAT LES CONQUÉRANTS / GIE NORM'HANDI","Patrick MAUDUIT","FALAISE - 14700","pmauduit@apaeipapf.fr","06 82 70 11 41",null,null,null,null,"insertion par le travail des personnes en situation de\nhandicap"]
[null,"ESSI",null,"12 rue Courat 75020 PARIS 20 France",null,null,null,327435137,null,"7010Z","Activité des sièges sociaux",503500,null,"SAS"]
[null,"ETABLISSEMENTS DESORMEAUX",null,"38 RUE PAUL LAMBARD 76120 LE GRAND-QUEVILLY - FRANCE",null,null,null,"ROUEN B 387 934 177","/","4321A - Travaux d'installation électrique dans tous locaux",null,1297950,"1991-10-01","5710 - Société par actions simplifiée (SAS)"]
[null,"ETABLISSEMENTS DESORMEAUX","\nAgence de proximité : \nETABLISSEMENTS DESORMEAUX\n38 rue Paul Lambard, \n76123 LE GRAND QUEVILLY CEDEX \n02 35 69 65 56\n\n\nContact pour l'AO:\n\nsecretariat@groupedgt.com\n","38 RUE PAUL LAMBARD 76120 LE GRAND-QUEVILLY - FRANCE",null,null,null,"ROUEN B 387 934 177","/","4321A - Travaux d'installation électrique dans tous locaux",null,1297950,"1991-10-01","5710 - Société par actions simplifiée (SAS)"]
[null,"ETMP","Bernard POULET","OISSEL - 76350","contact@etmp.net","02 35 64 94 94",null,null,null,null,"chaudronnerie plastique, composites, tuyauterie process"]
[null,"ETN","Nicolas DENTZ","SOTTEVILLE LES ROUEN - 76300","ndentz@etn.fr","02 32 91 51 51",null,null,null,null,"distribution de matériel d'automatisme, robotique, ethernet industriel, electrotechnique"]
[null,"ETS GUY  CHALLANCAIN",null,"99 avenue Michelet 93400 SAINT OUEN France",null,null,null,572053833,null,"8121Z","nettoyage courant des bâtiments",1075000,null,"SAS"]
[null,"EUCLYD EUROTOP",null,"33 BD DE L YSER 76000 ROUEN\nM.QUINEL","ao@euclyd-eurotop.fr","02 35 71 42 32","LOCAL",43281165100095,null,"7112A ","Activité des géomètres",763300,"2000-08-01","SELARL"]
[null,"EUROFLASH",null,"12 RUE VERGNIAUD\n 92300 LEVALLOIS PERRET ",null,null,null,330065889,"A12Q","4942Z","Service de déménagement",null,null,"SAS"]
[null,"EURONERGY",null,"M.COURGEAU\n45 boulevard des remparts 83300 DRAGUIGNAN","euronergy@wanadoo.fr","04 94 67 74 23","Local",44340292000021,"FA12U","4322B","Travaux d'installation d'équipements thermiques et de climatisation","50k€","2002-02-19","SARL"]
[null,"Eurosit","Hugues DESERT\nResponsable réseau Ouest\n","ZI NEVERS SAINT ELOI BP 273 58000 SAINT ELOI","\nEmail:h.desert@eurosit.fr\n",null,null,"NEVERS B 775 732 811",null,null,"3101Z - Fabrication de meubles de bureau et de\nmagasin",2223318,null,"SA"]
[null,"Eurosit","Hugues DESERT\nResponsable réseau Ouest\nTél: 06 74 82 08 58\nFax:\nEmail:h.desert@eurosit.fr\n","ZI NEVERS SAINT ELOI BP 273 58000 SAINT ELOI",null,null,null,"NEVERS B 775 732 811",null,null,"3101Z - Fabrication de meubles de bureau et de\nmagasin",2223318,null,"SA"]
[null,"FACILIBOT","MARTIAL BEUQUE","LE HAVRE - 76600","contact@azurnettoyage.fr","02 32 79 64 70",null,null,null,null,"nettoyage robotise"]
[null,"FAUCHÉ","Bruno MEYER","CANTELEU - 76380","bmeyer@fauche.com","06 15 69 75 04",null,null,null,null,"electricité industrielle, automatisme, robotique, et électricité\ntertiaire"]
[null,"FEMEL PROTECTION SARL","\nAgence de proximité : \nFEMEL PROTECTION SARL\n26 Bis Rue des Roses, \n76710 ESLETTES\n02 35 33 73 80\n\n\nContact pour l'AO :\nFranck ROUCOU\nFranck.roucou@femel-protection.fr\n06 48 60 53 22\n","26B RUE DES ROSES 76710 ESLETTES - FRANCE",null,null,null,"ROUEN B 487 662 702","/","4321A - Travaux d'installation électrique dans tous locaux",null,300000,"2005-12-05","5499 - Société à responsabilité limitée (SARL)"]
[null,"FERET HEBBERT",null,"110 AV DU MONT RIBOUDET 110-112 76000 ROUEN\nAlexis HEBBERT","contact@feret-hebbert.fr","02 78 77 04 04","LOCAL",80766073300021,null,"7112A ","Activité des géomètres",10000,"2014-10-23","SELARL"]
[null,"FERMATIC",null,"6 rue Verdun\n76240 BIHOREL","d.neveu@fermatic.fr","06 25 89 69 02","Régional",79219347600019,"FA13W","4329b","autres travaux d'installation","200 k€","2013-04-02","SASU"]
[null,"FERTIVERT","LUDOVIC DUFOUR","BELLEVILLE EN CAUX - 76890","ludo.dufour@wanadoo.fr","02 35 80 86 46",null,null,null,null,"traitement et compostage de dechets verts"]
[null,"FNAC DIRECT",null,"9 RUE DES BATEAUX - LAVOIRS ZAC PORT D IVRY 94200 IVRY-SUR-SEINE - FRANCE",null,null,null,"CRETEIL B 377 853 536","FA590","4791A - Vente à distance sur catalogue général",null,13583280,"1990-03-14","5710 - Société par actions simplifiée (SAS)"]
[null,"FONTEYRAUD",null,"M.FONTEYRAUD\n17 avenue du pont\n33410 CADILLAC","sarl.fonteyraud@wanadoo.fr","05 56 62 66 09","Local",31483179300026,"FA15R","4322A","travaux d'installation d'eau et de gaz en tous locaux","7k€","1979-03-08","SARL"]
[null,"FORMA DESIGN",null,"1 MAIL FRANCOIS MITERRAND 35000 RENNES",null,null,null,37927597700088,null,"4759A","Commerce de détail de meubles",25000,null,"SAS"]
[null,"France Hygiène Ventilation","Fabien Thomas","17 RUE REMBRANDT BUGATTI 14370 MOULT-CHICHEBOVILLE- France ","rouen@francehygieneventilation.fr",null,"National",501002000,null,"8122Z",null,8000,"2007-11-21","SARL"]
[null,"FRANCIS PLAGNOL",null,"LES FUCHSIAS RTE DE CORMEILLES 27210 BEUZEVILLE - France",null,null,"LOCAL",80893523300029,null,4391,"travaux de charpente",1000,"2014-12-01","artisan"]
[null,"GARD ROLAND",null,"M.ARGAUD\n6 ave Maurice Rene Simonet\n26000 VALENCE","joel.argaud@roland-gard.fr","04 75 82 02 60","Local",43738018100036,"FA18P","4321A","travaux d'installation électrique dans tous les locaux","269k€","1973-01-26","SA"]
[null,"GARDET ET DE BEZENAC BAUDELET ENVIRONNEMENT","Paul GRANGER","GREMONVILLE - 76970","normandie@baudelet.fr","02 35 95 16 34",null,null,null,null,"dechets"]
[null,"GCI CONSTRUCTION","Benoit CONTAMIN","COLOMBELLES - 14460","accueil@gci-construction.fr","02 31 72 51 51",null,null,null,null,"maîtrise d'oeuvre et clés en mains"]
[null,"GDA SERVICES",null,"69 AVENUE DES CHATAIGNIERS \n95150 TAVERNY ",null,null,null,335233409,"prospection","4941A","Transports routiers de fret interurbains",null,null,"SARL"]
[null,"GE360",null,"1042 RUE AUGUSTIN FRESNEL ZAC PLAINE DE LA RONCE 76230 BOIS-GUILLAUME",null,"02 35 70 54 60","LOCAL",32119409400066,null,"7112A ","Activité des géomètres",60679,"1981-01-02","SARL"]
[null,"GECI INGÉNIERIE","Stéphane LEBAS","SAINT-CONTEST - 14280","s.lebas@geci-ingenierie.fr","02 78 94 14 28",null,null,null,null,"construction et réhabilitation clé en main de bâtiments professionnels bureaux, industrie, commerce, logistique (...)"]
[null,"GEFCO","Eric ARMAND","COLOMBES - 92700","eric.armand@gefco.net","06 48 73 33 62",null,null,null,null,"transport"]
[null,"GENELEC",null,"68 RUE MARIUS BERLIET 69400 ARNAS - FRANCE",null,null,null,"VILLEFRANCHE-TARARE B 383 241 312","/","4669A - Commerce de gros (commerce interentreprises) de matériel électrique",null,3100000,"1991-07-01","5710 - Société par actions simplifiée (SAS)"]
[null,"GEODIS CALBERSON France Express","Marilyn OZEEL\n","\nRue de l'etang Delpech\n76805 ST ETIENNE DU ROUVRAY","marilyn.ozeel@geodis.com",null,"National","393 123 724\ncalberson normandie",null,"5229A","Messagerie, fert express","1 388k€","1993-11-25","SAS"]
[null,"GEODIS GE",null,"\n14 AV DE LA VOIE AU COQ ZA DES FORQUES 14760 BRETTEVILLE-SUR-ODON \nEmilie LECHEVALIER","e.lechevalier@geodis-ge.com","02 31 75 85 01","LOCAL",38413968900028,null,"7112A ","Activité des géomètres",450000,"1992-01-02","Société d'exercice libéral à forme anonyme à conseil d'administration"]
[null,"GEP ELECTRICITE","\nAgence de proximité : \nGEP ELECTRICITE\nParc Activités Ondelles, 76240 BELBEUF\n02 35 79 03 37\n02 35 64 04 48\n\nContact pour l'AO:\nSylvie POINSSONET\ncontact@gepelectricite.com\n","LES ONDELLES PARC D'ACTIVITES 76240 BELBEUF - FRANCE",null,null,null,"ROUEN B 380 113 662","FA19Z","4321A - Travaux d'installation électrique dans tous locaux",null,24000,"1990-11-01","5499 - Société à responsabilité limitée (SARL)"]
[null,"GEPSA","Claudie PATELLI","CONDE SUR SARTHE - 61250","claudie.patelli@gepsa.fr","06 71 12 86 38",null,null,null,null,"sous-traitance industrielle et tertiaire"]
[null,"GH CONNECTIVE","Mylène LANTEUIL","LE HAVRE - 76600","syonnet@ghconnective.com","06 44 15 32 09",null,null,null,null,"cabinet de conseil en management de projets"]
[null,"GILLES GUESNET SARL","Vincent GUESNET","BERNAY - 27300","gilles.guesnet@wanadoo.fr","06 44 35 08 87",null,null,null,null,"peinture en batiment / menusierie/ isolation"]
[null,"GINGER BURGEAP","Emilie BRUNEL-RAYMOND","SAINT-ETIENNE-DU-ROUVRAY - 76800","burgeap.rouen@groupeginger.com","02 32 81 45 00",null,null,null,null,"bet environnement"]
[null,"GLS EXPRESS","Mathias GOURCI\n","\nZac des Portes de Val de Reuil - Voie du Testelet\n27100 VAL DE REUIL","mathias.gourci@gls-france.com",null,"National",315334011,null,"5229B","Affrétement et organistaion des transports","7 782k€","1979-03-20","SAS"]
[null,"Gosto","Frédéric COUPEZ","408 RUE ALBERT BAILLY 59290 WASQUEHAL","\nf.coupez@gosto.fr",null,null,"LILLE METROPOLE B 489 807 750",null,null,"4665Z - Commerce de gros (commerce\ninterentreprises) de mobilier de bureau",100000,null,"SARL"]
[null,"GRAPHELIO",null,"P.A.T La Vatine\n7 rue Linus Carl Pauling\n76130 Mont-Saint-Aignan","contact@graphelio-rouen.fr","02 35 61 14 93","LOCAL",99787800400057,null,"8219Z ","Photocopie, préparation de documents et autres activités spécialisées de soutien de bureau","200k€","1977-01-01","SAS"]
[null,"GRAPHELIO",null,"P.A.T La Vatine\n7 rue Linus Carl Pauling\n76130 Mont-Saint-Aignan","contact@graphelio-rouen.fr","02 35 61 14 93","LOCAL",99787800400057,null,"8219Z ","Photocopie, préparation de documents et autres activités spécialisées de soutien de bureau","200k€","1977-01-01","SAS"]
[null,"GREENOFFICE",null,"22 rue du Président Wilson 22 a 24 92300 LEVALLOIS PERRET",null,null,null,47991975500021,"FA2B5","4669C","Commerce de gros et fournitures et équipements divers pour le commerce et les services",70000,null,"SAS"]
[null,"GROUPE CANDOR","Franck LEMAITRE","VAL-DE-REUIL - 27701","flemaitre@groupecandor.fr","02 32 63 43 00",null,null,null,null,"entreprise de propreté et services associés"]
[null,"GROUPE IDEA","Nicolas GUILLERET","CHERBOURG EN COTENTIN - 50100","contact@groupe-idea.com","02 40 90 08 09",null,null,null,null,"prestataire en logistique industrielle"]
[null,"GSE","François NAITALI","SAINT-ETIENNE DU ROUVRAY - 76800","fnaitali@gsegroup.com","07 86 68 59 27",null,null,null,null,"construction de bâtiments clef en main"]
[null,"GSF",null,"49 rue de Trevise 75009 PARIS ",null,null,null,775675291,null,"7070Z","Activité des sièges sociaux",9000000,null,"SAS"]
[null,"GSF NEPTUNE","Kévin DERAYMOND","BOIS GUILLAUME - 76230","abaudinet@gsf.fr","02 32 19 61 50",null,null,null,null,"nettoyage industriel, logistique générale, services aux occupants des locaux nettoyés, services, manutention,\nnettoyage aéroportuaires"]
[null,"GUERIN","Jonathan BO","TESSY BOCAGE - 50420","dubourg@guerin-elec.com","02 33 77 38 36",null,null,null,null,"solutions et services pour le raccordement, la distribution et la production de l'énergie électrique hta et bt."]
[null,"HANDYJOB","Philippe PALAMARAS","BRETTEVILLE SUR ODON - 14760","contact@handycom.fr","02 50 22 00 09",null,null,null,null,"multiservices - nettoyage - marquage au sol - espaces verts - communication"]
[null,"HANDYJOB","Stéphane PERIN","BRETTEVILLE SUR ODON - 14760","s.perin@handycom.fr","06 75 00 06 70",null,null,null,null,"multiservices - nettoyage - marquage au sol - espaces verts -\ncommunication"]
[null,"Haworth","Constantin BOLLET\n","LES LANDES DE ROUSSAIS 85600 MONTAIGU","\nconstantin.bollet@haworh.com",null,null,"LA ROCHE-SUR-YON B 545 750 580",null,null,"3101Z - Fabrication de meubles de bureau et de magasin",2000000,null,"SAS"]
[null,"Haworth","Constantin BOLLET\n06 31 16 99 09\nconstantin.bollet@haworh.com","LES LANDES DE ROUSSAIS 85600 MONTAIGU",null,null,null,"LA ROCHE-SUR-YON B 545 750 580",null,null,"3101Z - Fabrication de meubles de bureau et de magasin",2000000,null,"SAS"]
[null,"HEBERT","Mathieu KIERS","HARFLEUR - 76700","direction@hebert-elec.fr","02 35 22 46 68",null,null,null,null,"électricité industrielle, instrumentation, contrôle commande, le câblage courant faible, la vidéosurveillance, l’interphonie, le contrôle d'accès, alarme intrusion"]
[null,"HELIO SERVICES",null,"16 bis rue Alfred Kastler\n76130 Mont Saint aignan",null,"02 32 19 50 15","LOCAL",65050170300039,null,"4649Z","Commerce de gros (commerce interentreprises) d'autres biens domestiques","450k€","1965-01-01"]
[null,"HELIO SERVICES",null,"16 bis rue Alfred Kastler\n76130 Mont Saint aignan","franck.lys@helio-service.fr","02 32 19 50 15","LOCAL",65050170300039,null,"4649Z","Commerce de gros (commerce interentreprises) d'autres biens domestiques","450k€","1965-01-01","SA"]
[null,"HERVE THERMIQUE",null,"SOUCHET Laurent\n14 rue denis papin\n37300 JOUE LES TOURS","Laurent.SOUCHET@herve-thermique.com","06 45 80 81 68","National"," 627 220 049",null,4322,"Travaux d'installation d'équipements thermiques et de climatisation",null,"1972-01-01","SAS"]
[null,"HERVE THERMIQUE",null,"M.GANDON\n14 rue denis Papin BP105\n37301 JOUE LES TOURS","patrick.gandon@herve-thermique.com","02 47 68 36 00","Local",62722004900654,"FA2EH","4322B","Travaux d'installation d'équipements thermiques et de climatisation","3 000k€","1972-01-24","SAS"]
[null,"HERVE THERMIQUE",null,"14 RUE DENIS PAPIN 37300 JOUE-LES-TOURS - FRANCE",null,null,null,"TOURS B 627 220 049","FA2EH","4322B - Travaux d'installation d'équipements thermiques et de climatisation",null,3000000,"1972-01-01","5710 - Société par actions simplifiée (SAS)"]
[null,"HEURTEVENT",null,"970 RTE D EURVILLE 76890 VAL-DE-SAANE - FRANCE",null,null,null,"DIEPPE B 350 693 560","/","4322B - Travaux d'installation d'équipements thermiques et de climatisation",null,180000,"1989-04-01","5499 - Société à responsabilité limitée (SARL)"]
[null,"HISA INGENIERIE","ALEXANDRE PAMPOLARI","ST ROMAIN DE COLBOSC - 76430","c.lecoq@hisa.fr","02 35 47 76 76",null,null,null,null,"ingénierie / bureau d'études"]
[null,"HYDRAUHAVRE","Paul COUSINARD","ROGERVILLE - 76700","c.gilbert@hydrauhavre.fr","02 35 47 02 82",null,null,null,null,"vente et reparation de materiels hydrauliques"]
[null,"HYGIS France",null,"509 AV DES FONTAINES 30320 POULX - France","contact76@hygis.com",null,"National",823296439,null,"6420Z",null,50000,"2016-10-10","SAS"]
[null,"ICEGEM",null,"170 allée Robert Lemasson\n76230 BOIS GUILLAUME\nM.CAVELIER","cavelier@icegem.fr","02 35 61 34 93","local","ROUEN B 335 093 233",null,"7490A ","Activité des économistes de la construction",94300,"1976-03-01","SARL"]
[null,"ID RESTAURATION",null,"9 boulevard Richard Lenoir\n75011 Paris",null,"01 55 28 98 80 ",null,34967528000078,null,"5629B","Autres services de restauration n.c.a.","180 K€","1989-02-13","SAS"]
[null,"ID VERDE","Severine SZULCZYK","122 RUE EDOUARD VAILLANT 92300 LEVALLOIS-PERRET","laurence.dubois@idverde.com",null,null,339609661,"Non Référencé","8130Z","Services d'aménagement paysager",19923480,"1986-10-01","SAS"]
[null,"IEC",null,"141 avenue Des Gresillons 92230 GENNEVILLIERS France",null,null,null,"NANTERRE B 350 093 704",null,"4652Z","Commerce de gros (commerce interentreprises) de composants et d'équipements",2000000,"1989-03-08","SAS, société par actions simplifiée"]
[null,"IKARIAN",null,"Anna KORNYUKHINA\n3 rue de Teheran \n75008 PARIS","akorn@ikarian.eu","06 03 99 34 69","National","PARIS B 812 293 074",null,"7022Z","Conseil pour les affaires et autres conseils de getsion","2k€","2015-06-30","SARL"]
[null,"IMETAL","Sabrina ALLORY","SAINT LAURENT DE BREVEDENT - 76700","sabrina.allory@imetalgroupe.com","02 35 55 24 70",null,null,null,null,"tolerie industrielle-integrateur"]
[null,"INEO NORMANDIE","\nAgence de proximité : \nINEO NORMANDIE\nrue Boulaie, \n76800 SAINT ETIENNE DU ROUVRAY \n 02 32 95 86 10\n\n\nContact pour l'AO:\nRichard LE GOADEC\nrichard.legoadec@engie.com","94 RUE LOUIS BLERIOT 76230 BOIS-GUILLAUME - FRANCE",null,null,null,"ROUEN B 409 881 083","/","4321A - Travaux d'installation électrique dans tous locaux",null,1000000,"1996-11-15","5202 - Société en nom collectif (SNC)"]
[null,"INEVO","Cécile LECUYER","SAINT ETIENNE DU ROUVRAY - 76800","clecuyer@inevo.fr","33 63 14 07 57 5",null,null,null,null,"conseil en génie des procédés"]
[null,"INEXCO GROUPE","Flavien COTTARD","GONFREVILLE L'ORCHER - 76700","flavien.cottard@inexco-groupe.com","06 02 57 47 75",null,null,null,null,"activités d'architecture et d'ingénierie ; activités de contrôle\net analyses techniques"]
[null,"INGELIANCE","Quentin BOIDIN","LE HAVRE - 76600","quentin.boidin@ingeliance.com","06 79 99 77 19",null,null,null,null,"ingénierie / bureau d'etudes"]
[null,"INGELIANCE TECHNOLOGIES","Anne-Claire PERROT","CHERBOURG EN COTENTIN - 50100","administratif.cherbourg@ingeliance.com","02 33 22 89 00",null,null,null,null,"bureau d'2tude conception mecanique et simulation\nnumerique"]
[null,"INSTITUT DE SOUDURE INDUSTRIE","ALLISON LELONG","EQUEURDREVILLE HAINNEVILLE - 50120","al.lelong@isgroupe.com","02 33 41 20 38",null,null,null,null,"formation professionnelle / inspection contrôle"]
[null,"INSTITUT FORGECO",null,"6 bis, rue Emile Duclaux \n92150 Suresnes",null,"01 45 06 73 45 ",null,39124758200037,null,"8559A","Formation continue d'adultes","40 K€","1993-04-15","SASU"]
[null,"INTERFILTRE","Christophe COLOMER","FERVAQUES - 14140","interfiltre@interfiltre.fr","02 31 32 08 57",null,null,null,null,"fabrication d'équipement pour améliorer la qualité de l'air"]
[null,"INTRUM France","Frédéric Martinez ","104 AV ALBERT 1ER PARC TECHNOLOGIQUE BATIMENT SEQUOIA 1 92500 RUEIL-MALMAISON","Frederic.MARTINEZ@lindorff.com",null,null,797546769,null,"8291Z ","Activités des agences de recouvrement de factures et des sociétés d'information financière sur la clientèle",26155000,null,"SAS"]
[null,"IPE OUEST","Olivier QUINCÉ","CAEN - 14000","info@ipe-ouest.fr","02 31 84 68 05",null,null,null,null,"maître d'oeuvre et contractant général - conception et\nréalisation de bâtiment d'entreprise"]
[null,"IQERA - Ex-DSO","Marie CARTIER","256 Bis RUE DES PYRENEES 75020 PARIS 20","macartier@iqera.com",null,null,435198627,"FA31U","8299Z","Autres activités de soutien aux entreprises n.c.a.",13105940,null,"SAS"]
[null,"ISODIAG","ERIC MARINELLO","LE HAVRE - 76620","contact@isodiag.net","02 35 53 76 34",null,null,null,null,"diagnostic amiante / plomb et prélèvement d'air - milieu\nindustriel, bâtiment et sols pollués"]
[null,"ISOLATION CONSEIL","Franck DORAY","ALIZAY - 27460","contact@isolation-conseil.com","02 35 12 04 58",null,null,null,null,"isolation thermique, protection passive, ventilation"]
[null,"ISOR",null,"18 rue d'Arras \n92000 NANTERRE",null,null,null,339447534,null,"8121Z","nettoyage courant des bâtiments",2675475,null,"SAS"]
[null,"ISS PROPRETE",null,"12 RUE FRUCTIDOR 75017 PARIS ",null,null,null,"542 016 951",null,"8121Z","nettoyage courant des bâtiments",165000000,null,"SASU"]
[null,"J - CARDON ET FILS","DAVID HEUZE","LE HAVRE - 76057","info@j-cardon.fr","02 35 25 06 25",null,null,null,null,"ventes accessoires de levage et de manutention et epi"]
[null,"JARDINS CONSULTING ESPACES VERTS","N.C","RUE DU BOIS CORDIEU 27110 VITOT","j.cev@orange.fr",null,null,482258258,"Non Référencé","8130Z","Services d'aménagement paysager",30000,"2005-04-21","SARL"]
[null,"JM BLAIS ENVIRONNEMENT",null,"10 Boulevard Félix Faure\n86100 Châtellerault\n","jean-marc.blais@blais-environnement.fr","05 49 20 49 51","national","POITIERS B 392 172 995",null,"7112B ","Ingénierie, études techniques",13270,"1993-08-23","SARL"]
[null,"KAPA LOGISTIC","Fabrice GIRARD","ALIZAY - 27460","fgirard@kapa-reynolds.com","06 25 42 72 18",null,null,null,null,"service intégré de prestation logistique, en b2b et en b2c"]
[null,"KILOUTOU","Nathalie GUIGOURESE","MONDEVILLE - 14120","@kiloutou.fr","02 31 82 80 80",null,null,null,null,"location de materiels et services"]
[null,"KILOUTOU","Georges MERIEULT","SOTTEVILLE-LES-ROUEN - 76300","@kiloutou.fr","02 25 65 71 71",null,null,null,null,"location de materiels et services"]
[null,"KILOUTOU","Benoit LEBLANC","LE HAVRE - 76600","agence0396@kiloutou.fr","02 35 13 08 08",null,null,null,null,"location de matériels et services"]
[null,"KILOUTOU MODULE","Pierre LEGAL","EPOUVILLE - 76133","plegal@kiloutou-module.fr","06 03 21 01 57",null,null,null,null,"location modulaire"]
[null,"Kinnarps","Mme Aicha CAMARA\nResponsable Grandes Organisations\n","1712 ROUTE DE QUARANTE SOUS 78630 ORGEVAL","\n\naicha.camara@kinnarps.fr\nKinnarps France\n1712 route de 40 sous - 78630 Orgeval\nkinnarps.fr\n",null,null,"VERSAILLES B 337 879 464",null,null,"4665Z - Commerce de gros (commerce\ninterentreprises) de mobilier de bureau",5000000,null,"SA"]
[null,"KINNARPS SA",null,"1712 route de Quarante Sous 78630 Orgeval",null,null,null,337879464,null,"4665Z","Commerce de gros (commerce interentreprises) de mobilier de bureau\n",5000000,"1986-07-07","SA à conseil d'administration"]
[null,"Knoll","Catherine ROYER\nKnoll International\n","268 BOULEVARD SAINT GERMAIN 75007 PARIS 7","\nc.royer@knolleurope.com",null,null,"PARIS B 334 069 457",null,null,"4665Z - Commerce de gros (commerce interentreprises) de\nmobilier de bureau",800000,null,"SAS"]
[null,"Knoll","Catherine ROYER\nKnoll International\n268, Bd Saint-Germain\nF – Paris 75007\nTel 33(0)1 44 18 19 72\nMob 33(0)6 23 12 08 43\nc.royer@knolleurope.com\n","268 BOULEVARD SAINT GERMAIN 75007 PARIS 7",null,null,null,"PARIS B 334 069 457",null,null,"4665Z - Commerce de gros (commerce interentreprises) de\nmobilier de bureau",800000,null,"SAS"]
[null,"KONE","Philippe ROUDAUT","SAINT-ÉTIENNE-DU-ROUVRAY - 76800","philippe.roudaut@kone.com","09 70 80 80 80",null,null,null,null,"fabrication, installation, maintenance d'ascenseurs, portes\nautomatiques et escaliers mécaniques"]
[null,"KONE",null,"\n28 boulevard industriel\n76800 ST Etienne du Rouvray\nPhilippe ROUDAUT","philippe.roudaut@kone.com","06 30 32 45 23","National",59205230201860,"FA2KW","4329b","autres travaux d'installation","10 410k€","1935-04-05","SA"]
[null,"KONECT DESIGN",null,"2 RUE CLAUDE CHAPPE BATIMENT B 35230 NOYAL-CHATILLON-SUR-SEICHE",null,null,null,83815767500011,null,"4759A","Commerce de détail de meubles",30000,null,"SAS"]
[null,"KONICA MINOLTA BUSINESS SOLUTIONS FRANCE","Florent BERRANGER","SAINT CONTEST - 14280","jean-marc.aubrion@konicaminolta.fr","06 65 20 55 57",null,null,null,null,"commerce de détail d'ordinateurs, d'unités périphériques et de logiciels en magasin spécialisé"]
[null,"KPMG","Paul COISNARD","HÉROUVILLE SAINT CLAIR CEDEX - 14209",null,"02 14 37 55 00",null,null,null,null,"activités comptables"]
[null,"LA MAISON DUPUIS",null,"RTE DE SAINT GERMAIN SOUS CAILLY 76690 CAILLY",null,"02 35 34 92 58","LOCAL",40885871000028,null,4391,"travaux de couverture par éléments",80000,"1995-05-17","SAS"]
[null,"LANEF",null,"76250 DEVILLE LES ROUEN",null,null,null,429726763,"A2CN","4669C","Commerce de gros (commerce interentreprises) de fournitures et équipements divers pour le commerce et les services",400000,"2000-03-07","SARL"]
[null,"LEGOUPIL INDUSTRIE","Ludovic CHAMPION","VIRE - 14500","siege@legoupil-industrie.com","02 31 68 16 16",null,null,null,null,"location et vente de bâtiments industriels et constructions\nmodulaires"]
[null,"LES ATELIERS AUBERT LABANSAT",null,"LE GRAND VAUDOME 50200 COUTANCES",null," 02 33 76 60 60","LOCAL",42445830500028,null,1623,"Fabrication de charpentes et d'autres menuiseries",122000,"1999-09-29","SAS"]
[null,"LES FLEURS DU PASSAGE",null,"2 Passage de l'Ancien Hôtel de Ville\n76000 ROUEN","felix.nicolas76360@gmail.com","06 83 13 62 28"]
[null,"LES JARDINS DE GALLY",null,"Ferme de Vauluceau\n78870 BAILLY","sdemmi@gally.com"," 01 39 63 48 00",null,"729 803 973 000 35",null,"8130Z","Services d'aménagement paysager",202498,"1972-05-15","SARL"]
[null,"Linéa France","Christine Godefroy\nConsultante Commerciale","ALLEE DES MARRONNIERS BP 223 27400 HEUDEBOUVILLE","Email c.godefroy.sedia@gmail.com \n",null,null,"EVREUX B 489 321 745",null,null,"3101Z - Fabrication de meubles de bureau et de magasin",37000,null,"SAS"]
[null,"LMB DESIGN SAS","Laurence MARIN BRUNEL","CAEN - 14000","contact@lmb-design.com","06 42 96 68 40",null,null,null,null,"aménagement d'espace tertiaire et space planning"]
[null,"LOGFRET SAS","david BOULAUD","LE HAVRE - 76086","dboulaud@logfret.com","33 67 52 72 32 3",null,null,null,null,"transitaire"]
[null,"LOGISTIC TWICE ASA","Olivier BOURGET","HEUDEBOUVILLE - 27400","aphilippe@logistic-twice-asa.com","07 66 61 51 79",null,null,null,null,"prestataire logistique"]
[null,"LOXAM",null,"256 RUE NICOLAS COATANLEM 56850 CAUDAN - FRANCE",null,null,null,"LORIENT B 450 776 968","/","7732Z - Location et location-bail de machines et équipements pour la construction",null,224818150,"2003-10-15","5710 - Société par actions simplifiée (SAS)"]
[null,"LOXAM RENTAL","Jean-François BLANCHARD","SAINT JEAN DU CARDONNAY - 76150","jeanfrancois.blanchard@loxam.fr","06 80 35 94 87",null,null,null,null,"location de materiel"]
[null,"LYOVEL NORD PICARDIE NORMANDIE",null,null,null,null,null,387452436,null,"4799B","Vente par automates et autres commerces de détail hors magasin, éventaires ou marchés n.c.a.",10100807,"1992-05-19","SASU"]
[null,"MA SOLUTION GESTION","Brice LEDORMEUR","MONDEVILLE - 14120","b.ledormeur@masolution-gestion.fr","06 61 66 99 37",null,null,null,null,"logiciels de gestion"]
[null,"MADELINE CONSTRUCTION",null,"48 RTE DE PARIS 76240 LE MESNIL-ESNARD - FRANCE",null,"02 35 79 89 47",null,79207384300023,null,"4120A","Construction de maisons individuelles",null,"2013-01-14","SAS"]
[null,"MAJENCIA",null,"24 QUAI DU PRESIDENT CARNOT 92210 SAINT CLOUD ",null,null,null,353311525,"A2TB","3101Z","Fabrication de meubles de bureau et de magasin",9175000,"1990-01-30","SA"]
[null,"MANEXI",null,"19 CHE DE PRUNAY 78430 LOUVECIENNES - FRANCE",null,null,null,"VERSAILLES B 390 393 916","/","7120B - Analyses, essais et inspections techniques",null,77000,"1993-03-09","5710 - Société par actions simplifiée (SAS)"]
[null,"MANGANELLI",null,"340 8 340 avenue De La Marne 59700 MARCQ EN BAROEUL",null,null,null,null,null,"4652Z","Commerce de gros (commerce interentreprises) de composants et d'équipements",227500,"2005-06-10","SAS, société par actions simplifiée"]
[null,"MANUCO-SERVICES","Rémy POTIER","ST JACQUES SUR DARNETAL - 76160","contact@manuco-services.fr","02 32 98 98 18",null,null,null,null,"vente / location / sav matériel de manutention mitsubishi et matériel btp bobcat"]
[null,"MANUMESURE","Régis RAOELINA","REUX - 14130","industrie@manumesure.fr","02 31 64 51 55",null,null,null,null,"métrologie et contrôle réglementaire"]
[null,"MANUTAN\nA245551",null,"AV DU XXIEME SIECLE 95500 GONESSE ",null,null,null,33466885200042,"FA2TK","4669B","Commerce de gros (commerce interentreprises) de fournitures et équipements industriels divers",16072720,null,"SA"]
[null,"MARCHANI","Nassereddine MARCHANI","SAINT ETIENNE DU ROUVRAY - 76800","n.marchani@marchani.fr","09 53 01 59 53",null,null,null,null,"tuyauterie chaudronnerie mecanique industrielle"]
[null,"MARELLI MOTORI SPA",null,"4 RUE 36071 ARZIGNANO 1 VIA SABBIONARA - ITALIE",null,null,null,"Lyon B 403 305 014","/","2790Z - Fabrication d'autres matériels électriques",null,5164.57,"1996-01-01","3120 - Société étrangère immatriculée au RCS"]
[null,"MARTINON MSE",null,"Mme LESAGE\nZI de charneveuax - 575 rouete de givors\n38670 CHASSE SUR RHONE","sav@martinon-mse.com","04 78 07 40 74","Local",38957306400034,null,"3312Z","Réparation de machines et équipements mécaniques","200k€","1992-12-17","SAS"]
[null,"MASSELIN FABRICATION","JEROME RENAULT","CORMELLES LE ROYAL - 14123","acceuil@masselin-fabrication.fr","02 31 35 04 66",null,null,null,null,"tolerie / chaudronnerie - application peinture - cablage"]
[null,"MATMUT - SPONSOR","Elyse MARTIN"," - "]
[null,"MCE AUTOMATION","JUSTINE MENARD","SAINT-ROMAIN-DE-COLBOSC - 76430","contact@mce-automation.com","02 78 94 02 90",null,null,null,null,"automatisme-safety-sncc-supervision scada-informatique- réseau-etude et conception electrique/instrumentation- préparation et supervision travaux ei"]
[null,"MEDIAS PLUS",null,"BD DE NORMANDIE 76360 BARENTIN - FRANCE",null,null,null,"ROUEN B 325 291 367","FA2U5","4652Z - Commerce de gros (commerce interentreprises) de composants et d'équipements électroniques et de télécommunication",null,121960,"1982-09-01","5599 - SA à conseil d'administration (SA)"]
[null,"MEGA P","Gilles TURGIS","LE VAL D'HAZEY - 27940","contact@mega-p.fr","02 32 77 52 77",null,null,null,null,"ingenierie mecanique - usinage de precision"]
[null,"METALTECH LEGIRET","Francois-Eric LEGIRET","ST JEAN DE SAVIGNY - 50680","gestion@legiret.com","02 33 77 50 14",null,null,null,null,"toutes activités d’usinage par enlèvement de métal, décolletage, autres travaux d’usinage, façons de tournage"]
[null,"MEULINE BENOIT",null,"50 RUE DU CORDONNIER 27340 CRIQUEBEUF-SUR-SEINE - France",null,null,"LOCAL",82480300100018,null,4391,"travaux de charpente"," - ","2016-12-01","artisan"]
[null,"MHBT","Cédric MACQUET","ESLETTES - 76710","c.macquet@mhbt.fr","06 43 59 71 54",null,null,null,null,"maintenance ht et bt"]
[null,"MIL ECLAIR","Jean-Marc VOLCK","TROUVILLE-SUR-MER - 14360","contact@mileclair.fr","02 31 85 32 10",null,null,null,null,"nettoyage industriel"]
[null,"MP ALTOR",null,"37 RUE VOLTAIRE\n93700 DRANCY\nZA de la briqueterie Voie C - N°340\n76160 ST Jacques sur Darnetal","sylvie@mpaltor.com","01 48 31 06 10","National","492 083 910 000 17",null,"4329b","autres travaux d'installation","162k€","2006-09-27","SAS"]
[null,"MTCA",null,"4, rue Nicéphore Niépce \n76300 Sottevile-lès-Rouen",null,null,null,"ROUEN B 304 669 666",null,"9002Z","Activités de soutien au spectacle vivant","400 000,00","2005-06-10","SAS, société par actions simplifiée"]
[null,"MTCA",null,"4 RUE NICEPHORE NIEPCE 76300 SOTTEVILLE-LES-ROUEN - FRANCE",null,null,null,"ROUEN B 304 669 666","FA2ZA","9002Z - Activités de soutien au spectacle vivant",null,400000,"1975-01-01","5710 - Société par actions simplifiée (SAS)"]
[null,"MTCA",null,"MTCA - Nicolas BESSIRARD <nicolas.bessirard@mtca.fr>"]
[null,"MUGO","A: Frederic LEVIN\nB: Antoine GOUDARD","359 rue Fourny 78530  BUC","flevin@mugo.fr\nagoudard@mugo.fr",null,null,511820896,"Non Référencé","8130Z","Services d'aménagement paysager",40000,"2009-04-14","SARL"]
[null,"MUTERLOGER",null,"8 CHE DU JUBIN \n69570 DARDILLY",null,null,null,409593431,"prospection","7022Z","Conseil pour les affaires et autres conseils de gestion",null,null,"SASU"]
[null,"NAITE SAS","laurent PIERROZ","FAUVILLE EN CAUX - 76640","lpierroz@naite.fr","02 35 95 91 10",null,null,null,null,"tuyauterie"]
[null,"NAMIXIS",null,"Avenue des hauts grigneux\n76230 BOIS GUILLAUME","luc.dandre@groupesystea.com","09 60 37 40 55\n06 13 12 04 64","local","VERSAILLES B 393 488 531",null,"7112B","Ingénierie, études techniques",481600,"1994-01-01","SAS"]
[null,"NETMAN","Yvan LOUIS","VALLIQUERVILLE - 76190","info@netman.fr","02 35 95 30 79",null,null,null,null,"prestations de logistique et propreté"]
[null,"NEXECUR"]
[null,"NEXECUR","Alain BEDOUET\nDirecteur Développement Commercial Grands Comptes\nTél. 06.42.02.75.80\n22/24 Rue Lavoisier\n92000 NANTERRE\n\nBEDOUET Alain <alain.bedouet@nexecur.fr> ","13 RUE DE BELLE ILE 72190 COULAINES",null,null,null,"LE MANS B 799 869 342 ",null,null,"Lot 2 - Migration de la technologie de carte d'accès\nLot 3 - Maintenance",null,null,"SAS"]
[null,"Nexity",null,"19 rue De Vienne - 75008 PARIS",null,null,null,444346795,null,null,null,273915085,"21/11/202"]
[null,"NEXUS","Radhouane CHABBI\n\nMobile : +33(0) 6 73 44 60 07\n \nRadhouane.chabbi@nexusgroup.com\n","1 RUE JOUFFROY D'ABBANS 75017 PARIS 17",null,null,null,"PARIS B 348 219 916",null,null,"Lot 1 - Badges",null,null,"SAS"]
[null,"NIORT FRÈRES DISTRIBUTION","CEDRICK ROGE","SAINT JEAN DU CARDONNAY - 76150","c-roge@niortfreres.fr","06 09 84 40 27",null,null,null,null,"vente d'équipement industriel"]
[null,"NOM",null,"adresse","MAIL","TEL: ","Local / National","RCS","Code fournisseur","NAF","Activite",null,"Date de Création","Forme"]
[null,"nom",null,"adresse",null,null,null,"RCS",null,null,null,"K social","date de création"]
[null,"NOMEA","Jérôme ONOF","TURRETOT - 76280","jerome.onof@nomea.fr","06 63 82 12 36",null,null,null,null,"prestations de service intellectuelles"]
[null,"Norma Froid",null,"76360 BARENTIN",null,null,null,341850857,"A204M","3320B","Installation de machines et équipements mécaniques",63000,"1987-09-28","SAS"]
[null,"NORMADECO",null,"10 Rue du 8 juin 1944\n14740 BRETEVILLE L'ORGUEILLEUSE","olivierpinier@normadeco.fr","02 31 75 18 99",null,"484 684 519 000 32",null,"7729Z","Location et location bail d'autres biens personnels et domestiques",200000,"2005-10-24","SARL"]
[null,"NORMANDIE EMBALLAGES","YOHANN MONTIEL","MONDEVILLE - 14120","contact@normandie-emballages.com","02 31 35 63 35",null,null,null,null,"negoce en emballages industriels"]
[null,"Normandie Equipement",null,"76800 ST ETIENNE DU ROUVRAY",null,null,null,414538322,"A5ZN","3320B","Installation de machines et équipements mécaniques",40000,"1997-11-27","SA"]
[null,"NORMANDIE MANUTENTION","David ERNOULT","SAINT ETIENNE DU ROUVRAY - 76800","isabelle.guerin@normandie.manutention.fr","02 35 69 99 00",null,null,null,null,"location et location-bail d'autres machines, équipements et\nbiens matériels"]
[null,"NORMANDVERT","Laurent ELY","RUE SANTOS DUMONT ZAC MULTISITE LONG BUISSON 27930 GUICHAINVILLE","normandvert@wanadoo.fr",null,null,451355549,"Non Référencé","8130Z","Services d'aménagement paysager",80000,"2004-01-02","SARL"]
[null,"NORMANDY TRANSFERT",null,"60 AV. CH DE GAULLE \n92200 NEUILLY SUR SEINE ",null,null,null,493672471,"A4AT","4942Z","Service de déménagement",null,null,"SARL"]
[null,"NORPALEX","Henry DE BEAUPUIS","CALLENGEVILLE - 76270","norpalex@norpalex.fr","06 80 45 35 61",null,null,null,null,"achat vente palettes neuve et reconditionné"]
[null,"NOUET",null,"AVENUE DES CARRIERES \n14760 BRETTEVILLE S/ODON",null,null,null,384087326,"A4F5","4942Z","Service de déménagement",null,null,"SAS"]
[null,"NOVALAIR NORMANDIE","David Carrie","RUE DES BOURRELIERS ZAC DU BOIS DE L ARC NORD- BATIMENT 4 76760 YERVILLE - FRANCE","dcarrie@novalair.com",null,"National",519695654,"FA5A1","8122Z",null,10000,"2009-12-21","SARL"]
[null,"NOVAT","Yannis GUILLOTEAU","LE THUIT DE L'OISON - 27370","contact-cmt@novat.fr","02 35 05 90 07",null,null,null,null,"chaudronnerie - metallerie - tuyauterie - découpe laser"]
[null,"Nowy styl-Majencia","Hervé Burel.\nManager Commercial Normandie / Hauts de France Nowy Styl - Majencia SAS.\nArea Sales Manager Normandie / Hauts de France at the Nowy Styl - Majencia SAS.\n","10 RUE LA FONTAINE BP 164 38160 SAINT MARCELLIN","NOWY STYL GROUP | www.nowystylgroup.com\n\nE: herve.burel@majencia.com\n",null,null,"EN COURS D IMMATRICULATION\nGRENOBLE B 347 866 576",null,null,"4665Z - Commerce de gros (commerce\ninterentreprises) de mobilier de bureau",250000,null,"SAS"]
[null,"Nowy styl-Majencia","Hervé Burel.\nManager Commercial Normandie / Hauts de France Nowy Styl - Majencia SAS.\nArea Sales Manager Normandie / Hauts de France at the Nowy Styl - Majencia SAS.\n\nNOWY STYL GROUP | www.nowystylgroup.com\nNowy Styl - Majencia SAS Normandie : Batiment Berthelot, 15 allée Paul Langevin 76230 Bois Guillaume.                          \nNowy Styl - Majencia SAS Hauts de France : Neo Businesspole, 12 rue Denis Papin 59650 Villeneuve d'Ascq.\n\nM: +33 683 546 081\nE: herve.burel@majencia.com\n","10 RUE LA FONTAINE BP 164 38160 SAINT MARCELLIN",null,null,null,"EN COURS D IMMATRICULATION\nGRENOBLE B 347 866 576",null,null,"4665Z - Commerce de gros (commerce\ninterentreprises) de mobilier de bureau",250000,null,"SAS"]
[null,"OFRACAR","Gilles CRAIGNOU","MONT-SAINT-AIGNAN CEDEX - 76136",null,"02 35 12 35 50",null,null,null,null,"courtage en assurance"]
[null,"OISSELEC","\nAgence de proximité : \nOISSELEC\n2 Avenue Philippe Lebon, 76120 LE GRAND-QUEVILLY\n 02 32 11 65 75\n\n\nContact pour l'AO:\nMaria DUFROY\nreseaux@oisselec.fr","2 AV PHILIPPE LEBON 76120 LE GRAND-QUEVILLY - FRANCE",null,null,null,"ROUEN B 329 845 507","FA210","4321A - Travaux d'installation électrique dans tous locaux",null,130000,"1984-04-01","5710 - Société par actions simplifiée (SAS)"]
[null,"OMNIAS","Bertrand RENAULT","LE HAVRE - 76600","b.renault@omnias.fr","06 62 78 68 71",null,null,null,null,"etudes et ingénierie en informatique / automatismes /\ncybersecurité"]
[null,"OMNIDESK","Régis LE GOFF","CAEN - 14000","contact@omnidesk.fr","06 08 36 30 77",null,null,null,null,"informatique infrastructure et cybersecurite"]
[null,"OMNIPESAGE","Stéphane GANCEL","HEROUVILLE SAINT CLAIR - 14200","stephane.gancel@omnipesage.com","06 83 87 45 80",null,null,null,null,"pesage industriel"]
[null,"OMS SYNERGIE GROUP",null,"Zone des Béthunes 38 avenue du Fond de Vaux 95310 ST OUEN l'AUMONE ",null,null,null,484834981,null,"7070Z","Activité des sièges sociaux",400000,null,"SAS"]
[null,"ONET SERVICES",null,"36 BOULEVARD DE L OCEAN 13009 MARSEILLE ",null,null,null,67800425,null,"8121Z","nettoyage courant des bâtiments",8153600,null,"SAS"]
[null,"Optimobi","Sylvie KOLP\n06.84.10.82.80\nsylvie.kolp@optimobi.fr\n","LE PETIT MOULIN 85700 REAUMUR\n",null,null,null,"LA ROCHE-SUR-YON B 792 915 118",null,null,"4690Z - Commerce de gros (commerce interentreprises) non\nspécialisé",15000,null,"SARL"]
[null,"ORANO DS","Laurent JUMIAUX","GIF-SUR-YVETTE - 91190","laurent.jumiaux1@orano.group","02 35 97 23 54",null,null,null,null,"démentelement & services"]
[null,"OTIS",null,"23 rue delariviere Lefoullon\n92800 PUTEAUX\nErika  QUELEN","erika.quelen@fr.otis.com\npatricia.lecomte@fr.otis.com\ndiane.godet@fr.otis.com","01 46 91 60 00","National","542 107 800 039 43",null,"4329b","autres travaux d'installation","6 202 k€","1954-12-27","société en commandite simple"]
[null,"OVERSPEED","Annie GRENIER","ROUEN - 76000","annie.grenier@overspeed.fr","02 35 60 28 18",null,null,null,null,"bureau d'études spécialisé dans la conception, le développement et la fabrication de produits électroniques connectés. nous élaborons des solutions électroniques innovantes pour le savoir, le confort, le bien-être, la mobilité, la sécurité des personnes et de leur environnement."]
[null,"PAPREC GROUP",null,"7 RUE DU DOCTEUR LANCEREAUX 75008 PARIS 8",null,null,null,48945536000052,"non référencé","7010Z","Activités des sièges sociaux",124846152,null,"SAS"]
[null,"PAYSAGE ADELINE ","Stéphane GENECQUE","ZAC DES CHAMPS CHOUETTE RUE DU BOIS DE SAINT PAUL 27600 SAINT-AUBIN-SUR-GAILLON  27600 SAINT-AUBIN-SUR-GAILLON","commercial@paysagesadeline.com",null,null,399432517,"Non Référencé","8130Z","Services d'aménagement paysager",25000,"1994-12-15","SARL"]
[null,"PERIER",null,"BD MAL DE LATTE DE TASSIGNY",null,null,null,500697875,"FA4UG","4939A","Transports routiers réguliers de voyageurs",747622,"2007-10-30","SASU"]
[null,"PIM-PME","Guillaume RICOUR","BAYEUX - 14400","contact@pim-pme.fr","01 80 75 02 95",null,null,null,null,"conseil en systèmes et logiciels informatiques"]
[null,"PLEXITECH","Charlotte BLOTIERE","SAINT ANDRE SUR ORNE - 14320","charlotte.blotiere@plexitech.fr","02 31 74 07 24",null,null,null,null,"transformation plastique"]
[null,"PORTAKABIN","Boutteville CHRISTEL","TEMPLEMARS - 59175","contact@portakabin.com","03 20 16 50 00",null,null,null,null,"bâtiment modulaire"]
[null,"POSTEL",null,"7 CHEMIN DE LA VOUTE \n76120 LE GRAND-QUEVILLY ",null,null,null,312669336,"A266","4942Z","Service de déménagement",null,null,"SARL"]
[null,"PROPOST SERVICES",null,"82, rue Jeanne d'Arc\n76000 ROUEN",null,"02 35 15 58 59","LOCAL","NE FONT QUE DU A3/A4"]
[null,"PROPOST SERVICES",null,"82, rue Jeanne d'Arc\n76000 ROUEN",null,"02 35 15 58 59","LOCAL","NE FONT QUE DU A3/A4"]
[null,"QCS SERVICES",null,"1B RUE DU PETIT CLAMART VELIZY PLUS BATIMENT D 78140 VELIZY-VILLACOUBLAY - FRANCE",null,null,null,"VERSAILLES B 804 448 587","/","7112B - Ingénierie, études techniques",null,300000,"2014-09-01","5710 - Société par actions simplifiée (SAS)"]
[null,"QCS Services (AMO ICPE)",null,"1 bis rue du petit Clamart, Bât. D, 78140 Vélizy-Villacoublay\n",null,"01 73 95 11 09","national","VERSAILLES B 804 448 587",null,"7112B ","Ingénierie, études techniques",300000,"2014-09-01","SAS"]
[null,"RBC",null,"1 AV FONTANISSE ZAC POLE ACTIF 30660 GALLARGUES-LE-MONTUEUX",null,null,null,32744882500049,null,"4759A","Commerce de détail de meubles",152257,null,"SARL"]
[null,"RECY GO",null,"57 RUE YVES KERMEN 57-59 92100 BOULOGNE-BILLANCOURT",null,null,null,50943072400047,"non référencé","3832Z","Récupération de déchets triés",37000,null,"SAS"]
[null,"RECYCLEOFFICE","Grégoire LÉVEILLÉ","ALENCON - 61000","contact@recycleoffice.com","02 33 28 00 00",null,null,null,null,"fournisseurs de fournitures et d'équipements divers pour le\ncommerce et les services"]
[null,"REENIU","Pascal BALLON","SAINT-MARTIN DE MAILLOC - 14100","ecrire@reeniu.eco","33 02 61 82 01 29",null,null,null,null,"decarbonation et economie d'eau"]
[null,"REGNARD TECHNOLOGIES","Julie FLORIN-REGNARD","RUGLES - 27250","contact@regnardtechnologie.com","02 33 34 43 16",null,null,null,null,"réparation servomoteurs, moteurs linéaires et codeurs"]
[null,"RFID LABS\n\nGSP TECHNOLOGIES",33316403125,"1235 CHE DE LA BOSQUE D'ANTONNELLE 13090 AIX-ENPROVENCE",null,null,null,"AIX-EN-PROVENCE B 519 939 755",null,null,null,10000,null,"SARL"]
[null,"RFID LABS\n\nGSP TECHNOLOGIES","Gilles PERROTEY \n\nMob: +33 (0) 6 12 19 12 69\n\ngperrotey@rfid-labs.com\n","1235 CHE DE LA BOSQUE D'ANTONNELLE 13090 AIX-ENPROVENCE",null,null,null,"AIX-EN-PROVENCE B 519 939 755",null,null,"Lot 1 - Badges",null,null,"SARL"]
[null,"ROAV7","GREGOIRE GRANDJEAN","LE HAVRE - 76600","gregoire.grandjean@roav7.com","07 63 32 67 17",null,null,null,null,"inspection par drone"]
[null,"ROSSIGNOL",null,"RTE DE SAINT CENERE 53150 MONTSURS",null,null,null,39796384400030,"non référencé","2599A","Fabrication d'articles  métalliques ménagers",500000,null,"SASU"]
[null,"S.D.M.O. INDUSTRIES",null,"270B RUE DE KERERVERN 29490 GUIPAVAS - FRANCE",null,null,null,"BREST B 548 202 985","/","2711Z - Fabrication de moteurs, génératrices et transformateurs électriques",null,17066520,"1974-01-01","5710 - Société par actions simplifiée (SAS)"]
[null,"SADA",null,"ZA DU PETIT VERGER - 1703 RTE DE GOURNAY  76160 PREAUX",null,null,null,489412346,"A5QB","4799B","Vente par automates et autres commerces de détail hors magasin, éventaires ou marchés n.c.a.",10000,"2006-03-31","SASU"]
[null,"SADE CGTH","BERTRAND PASQUIER","SOTTEVILLE LES ROUEN - 76300","commercial.normandie@sade-cgth.fr","02 35 63 74 35",null,null,null,null,"travaux publics et industriels"]
[null,"SAFENGY","Arnaud VAUTIER","VERNON - 27200","admin@safengy.com","06 31 15 55 28",null,null,null,null,"spécialisés en étude d'ingénierie de sécurité et risques\nindustriels"]
[null,"SAFENGY",null,"26-28 rue de Londres, 75009 Paris",null," 02 47 75 18 87","national","PARIS B 507 600 260",null,"7112B ","Ingénierie, études techniques",21000,"2008-08-07","SARL"]
[null,"SAMSIC",null,"6 rue de Chatillon \n35510 CESSON SEVIGNE",null,null,null,403227796,null,"7010Z","Activité des sièges sociaux",45000000,null,"SAS"]
[null,"SAPIAN","Thierry Grail","31 PL RONDE 92800 PUTEAUX - France","thierry.grail@sapian.fr",null,"National",662005214,"FA6ZB","8129A",null,"NC","1966-01-01","SAS"]
[null,"SARAH FARSY",null,"ROUEN","sarah.farsy@hotmail.fr","06 88 96 76 83",null,81143206100026,null,null,null,null,null,"TPE"]
[null,"SARENS NORMANDIE","AMELIE LEMETAIS","LE GRAND QUEVILLY - 76120","kevin.delarue@sarens.fr","06 03 78 48 03",null,null,null,null,"levage"]
[null,"SARL ANGER",null,"104 RUE DU CHATEAU D EAU 76730 AVREMESNIL",null,"02 35 85 33 85","LOCAL",33346647200011,null,4391,"travaux de charpente",200000,"1985-07-01","SARL"]
[null,"SARL DUCHESNE",null,"30 ALL DU TEMPLE AUTRETOT 76190 LES HAUTS-DE-CAUX - France",null,"02 35 95 13 85","LOCAL",39358004800014,null,4391,"travaux de charpente",100000,"1994-01-17","SARL"]
[null,"SAS ALLURE SOUS TRAITANCE INDUSTRIELLE","Esin GUNES","ELBEUF - 76500","contact@sasallure.fr","06 95 78 97 12",null,null,null,null,"son activité&#1113130; consiste en des travaux de sous- traitance : d’assemblage, de tri, de conditionnement, de fabrication, de distribution, de remise en conformité, de revalorisation des rebuts industriels, ainsi que le conseil, l’audit, des prestations se rapportant au domaine de\nl’industrie."]
[null,"SASP","Elodie HINFRAY","SAINT ROMAIN DE COLBOSC - 76430","contact@sasp.fr","02 35 42 02 88",null,null,null,null,"informatique industrielle, sncc et automatisme,\ncybersecurite"]
[null,"SAVI","Sébastien CACAN","ZA des pointes rue des Canadiens 76520 Authieux Port Saint Ouen","sc@groupesavi.fr",null,null,342585049,"FA3FJ","8130Z","Services d'aménagement paysager",130200,"1987-10-12","SAS"]
[null,"SAVI",null,"ZA des pointes rue des Canadiens 76520 Authieux Port Saint Ouen",null,null,null,342585049,"FA3FJ","8130Z","Services d'aménagement paysager",130200,"1987-10-12","SAS"]
[null,"SCHENKER France","Clément PARMENTIER\n","Route de nantes\nBP 49 \n85600 MONTAIGU","clement.parmentier@dbschenker.com",null,"National",311799456,null,"5229A","Messagerie Fret express","5 749k€","1977-12-29","SAS"]
[null,"SCHILO","Didier QUINGARE","CHERBOURG-EN-COTENTIN - 50100","direction@schilo.fr","02 33 88 46 07",null,null,null,null,"maîtrise d'oeuvre opérationnelle"]
[null,"SCHINDLER",null,"1 rue Dewoitine\n78140 VELIZY VILLACOUBLAY","fabien.crestaux@schindler.com",613263128,"National",38371167800011,null,"4329b","autres travaux d'installation","8 594k€","1991-11-26","SA"]
[null,"SCHNEIDER ELECTRIC ENERGY France",null,"35 rue Joseph Monier\n92500 Rueil-Malmaison",null,"01 41 39 62 00",null,"51174635600019",null,"2712Z","Fabrication de matériel de distribution et de commande électrique",6909620,"2009-04-08","SASU"]
[null,"SCHNEIDER ELECTRIC ENERGY France",null,"35 rue Joseph Monier\n92500 Rueil-Malmaison",null,"01 41 39 62 00",null,"51174635600019",null,"2712Z","Fabrication de matériel de distribution et de commande électrique",6909620,"2009-04-08","SASU"]
[null,"SCOPUS OMNIBADGES"," +3 35 56 34 38","RUE NICOLAS LEBLANC 33700 MERIGNAC",null,null,null,"BORDEAUX B 438 065 070 ",null,null,null,820000,null,"SASU"]
[null,"SCOPUS OMNIBADGES","Thomas PAYA\n\nTél: :+33 (0)1 46 54 15 13 | Port: +33 (0)6 77 01 49 70\n\nEmail: tp@scopus.fr \n","RUE NICOLAS LEBLANC 33700 MERIGNAC",null,null,null,"BORDEAUX B 438 065 070",null,null,"Lot 1 - Badges",null,null,"SASU"]
[null,"SECURIT INGENIERIE","José LACHERAY","PETIT COURONNE - 76650","j.lacheray@securit-ingenierie.com","02 35 68 87 64",null,null,null,null,"etudes, conseils, formations et assistance dans les domaines\nqualité sécurité santé et environnement"]
[null,"SEHYMA","Jean-François JAVEY","MONDEVILLE - 14120","contact@sehyma.fr","06 28 59 75 87",null,null,null,null,"commerce de gros"]
[null,"SELECTA",null,null,null,null,null,552014201,null,"4799B","Vente par automates et autres commerces de détail hors magasin, éventaires ou marchés n.c.a.",3323044,"1955-01-27","SA"]
[null,"SELLTEN","Damien PENOT","NORMANVILLE - 27930","contact@sellten.com","02 32 33 00 56",null,null,null,null,"confection et pose de bâches de protection sur mesure"]
[null,"SERIMATEC","Julien UGUZZOLI","VAL-DE-REUIL - 27100","commercial@serimatec-sn.com","02 32 61 34 64",null,null,null,null,"manutention et transitique robotisés - gestion de flux"]
[null,"SERIMATEC 2","Audrey FONTAINE","VAL-DE-REUIL - 27100","commercial@serimatec-sn.com","02 32 61 34 64",null,null,null,null,"manutention et transitique automatisée/robotisée"]
[null,"SERODEM","Franck DUMAINE","SAINT PIERRE D'ENTREMONT - 61800","serodem@serodem.fr","02 33 98 17 70",null,null,null,null,"mecanique de precision : usinage pièces unitaires - conception et réalisation outillages de presse - réalisation unités de taillage - machines spéciales - ingénierie mécanique"]
[null,"SERVALY","Valéry DAJON","GROSSOEUVRE - 27220","nathalie.eluecque@servaly.com","02 32 30 98 97",null,null,null,null,"sous-traitance en assemblage et câblage électrique et\nélectronique"]
[null,"SESA SYSTEMS","Magali LODIEU","CRIQUEBEUF SUR SEINE - 27340","ygrillot@sesa-systems.com","02 32 96 06 72",null,null,null,null,"lean manufacturing"]
[null,"SETEC EOCEN","CYRILLE LAPLANCHE-DUHAMEL","CHERBOURG OCTEVILLE - 50103","info.eocen@setec.com","01 82 51 50 50",null,null,null,null,"management et gestion de projet"]
[null,"SEVDEC","M. SEVESTRE Jacky","20 rue David Ferrand\n76100 Rouen","sarl.sevdec@wanadoo.fr","02 35 73 73 93",null,"38064471600017","FA3JW","4321A","Travaux d'installation électrique dans tous locaux",16000,"1991-01-21","SARL"]
[null,"SEVDEC",null,"20 RUE DAVID FERRAND 76100 ROUEN - FRANCE",null,null,null,"ROUEN B 380 644 716","FA3JW","4321A - Travaux d'installation électrique dans tous locaux",null,16000,"1991-01-21","5499 - Société à responsabilité limitée (SARL)"]
[null,"SEVDEC","\nAgence de proximité : \nSEVDEC\n20 Rue David Ferrand,\n76100 ROUEN\n02 35 73 73 93\n\n\nContact pour l'AO:\nJacky SEVESTRE\nsarl.sevdec@wanadoo.fr","20 RUE DAVID FERRAND 76100 ROUEN - FRANCE",null,null,null,"ROUEN B 380 644 716","FA3JW","4321A - Travaux d'installation électrique dans tous locaux",null,16000,"1991-01-21","5499 - Société à responsabilité limitée (SARL)"]
[null,"SEVDEC",33235737393,"20 RUE DAVID FERRAND 76100 ROUEN",null,null,null,"ROUEN B 380 644 716 ",null,null,null,16000,null,"SARL"]
[null,"SFC DESIGN 1","Antoine LOUVET","MESNILS-SUR-ITON - 27240","contact@sfcdesign.fr","06 12 40 67 20",null,null,null,null,"modélisation de model 3d, mise en plan 2d, administration\nd'outils (cao) et data management"]
[null,"SFC DESIGN 2","Florian SINET","MESNILS-SUR-ITON - 27240","contact@sfcdesign.fr","06 12 40 67 20",null,null,null,null,"modélisation de model 3d, mise en plan 2d, administration\nd'outils (cao) et data management"]
[null,"SI PREV",null,"21 rue Jacques Cartier - Bâtiment F\n78960 - VOISINS-LE-BRETONNEUX","emilie.loizon@si-prev.fr","01 30 55 71 74","national","VERSAILLES B 814 748 786",null,"8020Z","Activités liées aux systèmes de sécurité",58000,"2015-12-01","SAS"]
[null,"SIATEL","HELENE GUILLOU","ROUEN - 76000","contact@siatel.com","02 78 77 13 00",null,null,null,null,"dématérialisation et digitalisation de processus documentaires, transformation numerique : accompagnement et edition logicielle"]
[null,"SIEMENS"]
[null,"SIEMENS","Pascal DUCY\n\nMobil: +33 6 2435-4778\n\nmailto:pascal.ducy@siemens.com\n","Siemens SAS\n47, avenue du Général Leclerc\n76120 Le Grand-Quevilly, France",null,null,null,"BOBIGNY B 562 016 774",null,null,"Lot 1 - Badges\nLot 2 - Migration de la technologie de carte d'accès\nLot 3 - Maintenance",null,null,"SASU"]
[null,"SIGMA MESURE","Frank FOULATIER","VERNON - 27200","infos@sigma-mesure.com","06 01 92 80 45",null,null,null,null,"maintenance préventive - analyse ultrasons sur hta htb"]
[null,"SINTEO",null,"29 RUE SAINT LAZARE 75009 PARIS 9E ARRONDISSEMENT - FRANCE",null,null,null,"PARIS B 502 080 104","/","8121Z - Nettoyage courant des bâtiments",null,14160,"2008-01-01","5710 - Société par actions simplifiée (SAS)"]
[null,"SIS","M. SEMBIANTE\n\nMail : b.sembiante@sis-france.eu\n\nGSM : 06.77.83.84.71\nTEL : 01.85.08.15.27","SIS FRANCE\nZ.A.C LEONARD DE VINCI 24-28 Avenue Graham Bell\n77600 BUSSY SAINT GEORGES",null,null,null,"MEAUX B 799 994 413",null,null,"Lot 2 - Migration de la technologie de carte d'accès\nLot 3 - Maintenance",null,null,"SARL"]
[null,"SMA","Sébastien KURTZ","SAINT-MARTIN D'ECUBLEI - 61300","contact@sma-laigle.fr","02 33 24 14 26",null,null,null,null,"usinage de pièces tous métaux, réalisation de pièces de maintenance, assemblage montage et mise au point, fabrication de convoyeurs et de machines spéciales"]
[null,"SMED SOCIETE DE MAINTENANCE ELECTRO MECANIQUE ET DISTRIBUTION",null,"287 RTE DES ENTREPRISES 76430 OUDALLE - FRANCE",null,null,null,"LE HAVRE B 480 878 818","/","3314Z - Réparation d'équipements électriques",null,500000,"2005-03-01","5499 - Société à responsabilité limitée (SARL)"]
[null,"SMED SOCIETE DE MAINTENANCE ELECTRO MECANIQUE ET DISTRIBUTION",null,"287 RTE DES ENTREPRISES 76430 OUDALLE - FRANCE",null,null,null,"LE HAVRE B 480 878 818","/","3314Z - Réparation d'équipements électriques",null,500000,"2005-03-01","5499 - Société à responsabilité limitée (SARL)"]
[null,"SNEF CLIM",null,"54 rue d'arcueil \n94150 RUNGIS",null,"01 41 11 79 00\n01 60 48 81 81","National",751067216000034,null,"4322B","Travaux d'installation d'équipements thermiques et de climatisation","1 5000k€","2012-04-19","SASU"]
[null,"SNLD","BENJAMIN LEPICARD","LONGUEIL - 76860","snld@snld.fr","02 35 85 16 71",null,null,null,null,"chaudronnerie tuyauterie metallerie charpente"]
[null,"SOCAPS SA","Ryan VOLLARD","ROUEN - 76000","contact@socaps.fr","02 35 32 72 00",null,null,null,null,"assistance technique industrielle (ingénierie / renfort de production / installation / maintenance / optimisation / conseil)"]
[null,"SOCIÉTÉ NORMANDE DE SERVICES EN ELECTRONIQUE (SNSE)","Geoffrey MOUGEOT","FOUCARMONT - 76340","geoffrey.mougeot@snselec.com","06 31 31 95 78",null,null,null,null,"fabrication sous ensemble electronique - etude - prototypage"]
[null,"SOFREN","Olivier GREVELLEC","ST ROMAIN-DE-COLBOSC. - 76430","o.grevellec@sofrengroup.fr","06 07 61 31 03",null,null,null,null,"activite de prestation des services et bureau d’études"]
[null,"SOGEDI","Régis GUERMEUR","48 RUE GEORGES CHARPAK 44115 HAUTE-GOULAINE","rguermeur@sogedis.fr",null,null,440614816,"FA34X","8291Z","Activités des agences de recouvrement de factures et des sociétés d'information financière sur la clientèle",1750000,null,"SAS"]
[null,"Sokoa","Maria Oliveira\nResponsable Prescription\n","26 ROUTE DE BEHOBIE BP 404 64700 HENDAYE","\nm.oliveira@sokoa.com\n\nM + 33 6 42 90 66 29\n",null,null,"BAYONNE B 712 720 374",null,null,"3101Z - Fabrication de meubles de bureau et de\nmagasin",14074470,null,"SA"]
[null,"Sokoa","Maria Oliveira\nResponsable Prescription\nm.oliveira@sokoa.com\nT   + 33 5 59 48 27 02\nM + 33 6 42 90 66 29\n","26 ROUTE DE BEHOBIE BP 404 64700 HENDAYE",null,null,null,"BAYONNE B 712 720 374",null,null,"3101Z - Fabrication de meubles de bureau et de\nmagasin",14074470,null,"SA"]
[null,"SOLUTION JARDIN",null,"20 route de Rouen 27310 La Trinité de Thouberville",null,null,null,488342528,"Non référencé","8130Z","Services d'aménagement paysager",100000,"2006-01-02","SARL"]
[null,"SOLUTIONS CONSOMMABLES",null,"RUE DE LA GRANDE EPINE PARS ACTIVITES DE LA BASSE SEINE 76800 SAINT-ETIENNE-DU-ROUVRAY - FRANCE",null,null,null,"ROUEN B 530 953 850","FA3NC","4651Z - Commerce de gros (commerce interentreprises) d'ordinateurs, d'équipements informatiques périphériques et de logiciels",null,130000,"2011-03-15","5710 - Société par actions simplifiée (SAS)"]
[null,"SONOLUX",null,"35 avenue Aristide Briand BP 827\n50100 CHERBOURG EN COTENTIN","sonolux@wanadoo.fr","02 33 44 64 24",null,"817 997 968 000 18",null,"9329Z","Autres activités récréatives et de loisirs",427000,"2016-02-02","SAS"]
[null,"SONORCO","Philippe LECOEUR","CONDE-EN-NORMANDIE - 14110","tlevillain@sonorco.fr","07 87 36 03 03",null,null,null,null,"fabrication de vêtements de travail"]
[null,"SOVIMEF","19 rue aristide Briand\nBP 5 \n76580 LE TRAIT\nRobin PECQUEUR",null,"r.pecqueur@sovimef.fr","02 35 05 62 62\n06 22 92 45 72","Local",77570214500019,"FA5GZ","3320B","Installation de machines et équipements mécaniques","157 k€","1965-11-12","SAS"]
[null,"SPECTACULAIRES",null,"21 avenue Cossinade\n35310 ST THURAIL",null,"02 99 87 07 07",null,"341 387 371 000 08",null,"4322AZ","Travaux  d'installation d'eau et de gaz en tous locaux",250000,"1987-06-16","SASU"]
[null,"SPIE",null,"4 Avenue Jean Jaures\nBP19\n69551 Feyzin Cedex",null,"04 72 21 12 00",null,"44005586100312","FA3OF","4321A","Travaux d'installation électrique dans tous locaux",81070272,"2001-10-09","SAS"]
[null,"SPIE FACILITIES",null,"M.JEFFROY\n38 rue du bois des coutures BP60204\n76410 CLEON \n+\nM.BARBOSA\nservice mgt 23 montée castellane 69140","gregory.jeffroy@spie.com\ndomingos.barbosa@spie.com","01 48 13 42 42 ","National","538 700 022 000 22",null,"4321A",null,"35 227k€","2011-12-21","SAS"]
[null,"SPRINT IMPRESSION",null,"Pavillon Casimir Delavigne, 11 Boulevard André Siegfried, 76131 Mont-Saint-Aignan","campuspro@orange.fr","02 35 88 92 40","LOCAL",9506167220043,null,"8219Z ","Photocopie, préparation de documents et autres activités spécialisées de soutien de bureau","7ke","1989-09-01","SARL"]
[null,"SPRINT IMPRESSION",null,"Pavillon Casimir Delavigne, 11 Boulevard André Siegfried, 76131 Mont-Saint-Aignan","campuspro@orange.fr","02 35 88 92 40","LOCAL",9506167220043,null,"8219Z ","Photocopie, préparation de documents et autres activités spécialisées de soutien de bureau","7ke","1989-09-01","SARL"]
[null,"STEELCASE",null,"1 Allee d Oslo - 67300 Schiltigheim",null,null,null,302162623,null,"3101Z","Fabrication de meubles de bureau et de magasin",117558895,"1900-01-01","SA à conseil d'administration"]
[null,"Steelcase","asoutiph@steelcase.com\n01 49 29 61 61\n","Direction commerciale\n23 Boulevard Jules Ferry, 75011 Paris","asoutiph@steelcase.com\n\n",null,null,"STRASBOURG B 302 162 623",null,null,"3101Z - Fabrication de meubles de bureau et de\nmagasin",45439205,null,"SAS"]
[null,"STRUCTURE REALISATEUR D'ESPACES","Bruno PANTHOU","LISIEUX - 14100","b.panthou@agencestructure.com","02 31 62 95 55",null,null,null,null,"maîtrise d'œuvre, construction et rénovation bâtiment"]
[null,"SYNCHRONIC",673864972,"393 RUE DES MANETS 76520 FRANQUEVILLE-SAINT-PIERRE",null,null,null,"ROUEN B 344 539 564",null,null,null,1000000,null,"SAS"]
[null,"T2C",null,"473 rue des manets\n76520 Franqueville Saint Pierre",null,"02 32 86 80 80",null,412206757,"FA3QA","4399C","Travaux de maçonnerie générale et gros œuvre de bâtiment",323156,"1997-05-16","SAS"]
[null,"TALKME","Olivier BELLET","ALENCON - 61000","nicolas.tessier@talkme.tech","06 37 49 98 59",null,null,null,null,"programmation de solutions informatique pour les industriels"]
[null,"TECHNI OUTILLAGES SAS","Karim KHOUIDER","INCHEVILLE - 76117","contact@techni-outillages.fr","02 27 28 21 30",null,null,null,null,"mécanique de précision, outillages de presses découpe et\nemboutissage, usinage de prototypes"]
[null,"TECHNODOC","Fréderic NAGA","CHERBOURG EN COTENTIN - 50130","contact@technodoc.fr","06 70 31 34 40",null,null,null,null,"ingenierie informationnelle"]
[null,"TEMPERIA CLIMATISATION",null,"M.DELMOTTE\n430 rue de l'abbaye CS 70104\n82001 MONTAUBAN\n\nM.SENECAL\n26 rue Desseaux\n76100 ROUEN",null,"05 63 66 50 50","Multi régional",34349218700038,"FA3Q2","4322B",null,"300k€","1988-01-28","SAS"]
[null,"TEMPERIA CLIMATISATION","\nMr SENECAL\n26 rue Desseaux \n 76100 ROUEN\n\n",null,"r.senecal@temperia.fr","06 99 47 81 54","Multi régional",34349218700038,"FA3Q2","4322B","Travaux d'installation d'équipements thermiques et de climatisation ","300K€","1988-01-28","SAS"]
[null,"THYSSENKRUPP ASCENSEUR",null,"8 rue parmentier\n92816 PUTEAUX","philippe.lebourhis@thyssenkrupp.com\nphilippe.huby@thyssenkrupp.com\n\n","06 29 87 51 35\n06 03 91 59 11","National","722 024 742 001 72","FA6L9","4329b","autres travaux d'installation","8 116k€","1972-04-25","SASU"]
[null,"TRANSPORT NOYON","CEDRIC FULMES","MONDEVILLE - 14120","commerce.transports@noyon.eu","02 31 70 70 70",null,null,null,null,"transport"]
[null,"TREUIL CONSTRUCTION INGENIERIE","Damien MARECHAL","LE VIEIL EVREUX - 27930","accueil@tci-treuil.fr","02 32 62 18 62",null,null,null,null,"construction de batiment industriel cles en main. renovation energetique de batiment industriel"]
[null,"TSI NUCLEAIRE","Jean-Louis BILLARD","NEUVILLE LES DIEPPE - 76370","j-l.billard@orange.fr","06 01 78 77 09",null,null,null,null,"travaux et maintenance en tuyauterie"]
[null,"UCLER","taner UCLER","LE PETIT QUEVILLY - 76140","contact@cbr-batiment.fr","02 35 88 94 40",null,null,null,null,"renovation energetique"]
[null,"UNIFER ENVIRONNEMENT","Léo SANSON","LE HAVRE - 76600","clement.camoin@unifer.fr","06 51 05 89 17",null,null,null,null,"recyclage des déchets"]
[null,"USINAGE DIEPPOIS","Gaëtan MOTTE","ROUXMESNIL-BOUTEILLES - 76370","gaetan-motte@usinage-dieppois.fr","02 32 14 45 70",null,null,null,null,"sous-traitant mécanique de précision sur commande numérique, intégration, industrialisation,impression 3d."]
[null,"VASSARD OMB MOBILIER","Benoit DUHEM","CAEN - 14000","direction@vassard-omb-mobilier.fr","02 31 46 41 41",null,null,null,null,"distributeur de mobilier de bureau"]
[null,"VEOLIA ENERGIE France",null,"21 rue de la Boetie 75008 PARIS",null,"01 85 57 70 00","National","Siège 508 867 124 000 51",null,"3530Z",null,"18 100ke","2008-11-05","SASU"]
[null,"VFPI","Vincent DOCTEUR","ANGERVILLE L'ORCHER - 76280","contact@vfpi.fr","02 35 49 64 10",null,null,null,null,"façonnage matières plastiques et dérivés"]
[null,"VICI RESTAURATION",null,"9 rue Georges Auric\nZA Mozart\n26000 Valence\n",null,"04 75 86 09 20",null,"338 063 092",null,"8299Z","Autres activités de soutien aux entreprises ","60 K€","1986-07-01","SARL"]
[null,"VINCI FACILITIES",null,"23 -27 rue delarivière Lefoullon \n92 800 PUTEAUX","gabriel.martin@vinci-facilities.com","02 76 67 63 59\n07 85 68 95 11","National","Siège : 503 117 228 000 42",null,"7022Z",null,"714 520k€","2008-03-13","SAS"]
[null,"WEEECYCLING","Mélanie BEDEL","TOURVILLE LES IFS - 76400","melanie.bedel@morphosis.fr","02 32 72 74 10",null,null,null,null,"récupération de déchets triés"]
[null,"XELIANS",null,"ZA du Bois de l’Epicier\nRoute de Rambouillet\n78 550 Maulette\n","ana.pereira@xelians.fr>","01 30 88 11 99","LOCAL",32484709400335,null,"5210B \n"," Entreposage et stockage non frigorifique","1 495k€","1982-06-01","SAS"]
[null,"XELIANS",null,"ZA du Bois de l’Epicier\nRoute de Rambouillet\n78 550 Maulette\n","ana.pereira@xelians.fr","01 30 88 11 99","LOCAL",32484709400335,null,"5210B \n"," Entreposage et stockage non frigorifique","1 495k€","1982-06-01","SAS"]
[null,"YSEIS","caroline BRET","SAINT ETIENNE DU ROUVRAY - 76800","caroline.bret@yseis.com","06 67 48 69 36",null,null,null,null,"prevention, csps, formation"]